{"text_format":"1","workbook":"xlsx","n_sheets":10,"sheets":["Instrucciones de Uso","Flujo de Validación","Comentarios de Validación","Principal","Listas","Lista Archivos","Validacion","Titulos","Etiquetas","TipoDatos"],"not_rendered":{"charts":0,"images":8,"macros":1,"external_links":0,"defined_names":20,"comments":1,"pivot_tables":0},"unopened":[],"bounds":{"document_bytes":16777216,"sheet_cells":100000,"rows_first":2000,"rows_last":500,"rows_between":2000,"halvings":0,"cell_chars":16384,"cell_head_chars":4096},"cells_cut":0,"cells_raw":0,"read":"whole","date_system":"1900"}

{"sheet":"Instrucciones de Uso","index":0,"n_rows":23,"n_cols":3,"rows_kept":23,"cut":false,"hidden":false,"merged":[[7,2,7,5],[8,2,8,5],[9,2,9,5],[19,2,19,5],[5,2,5,5],[0,2,0,5],[1,2,1,5],[2,2,2,5],[3,2,3,5],[4,2,4,5]]}
[null,null,"CONSIDERACIONES PARA EL DILIGENCIAMIENTO DE LOS FORMATOS"]
[null,1,"Mantenga el código en el nombre de la hojas sin modificación (A##F#), si requiere duplicar alguna hoja o detallar su contenido realicelo después del código (Ejemplo: A02F1 Troncal ASD ó A02F1 Troncal XYZ)"]
[null,2,"Si existen formatos que no requieran ser diligenciados (Ejemplo si no cuenta con estaciones compresoras) eliminar la hojas correspondientes"]
[null,3,"No modifique la estructura de las hojas (filas, columnas, etiquetas, formatos)"]
[null,4,"Unicamente se permite insertar filas en las tablas de datos, para lo cual se recomienda insertar las filas necesarias antes del última fila de la tabla y de igual manera mantener los formatos, estilos y rangos de datos"]
[null,5,"En las tablas de datos no deje filas intermedias y finales en blanco."]
[]
[null,null,"INSTRUCCIONES DE USO PARA EJECUTAR LA MACRO DE VALIDACIÓN"]
[null,1,"Guardar la macro en una carpeta del computador."]
[null,2,"En una carpeta raiz (Ejemplo: c:\\, d:\\, etc.) Crear una carpeta nueva y alojar todos los archivos a validar dentro de la misma.\nConfirmar que la macro este almacenada en una ubicación diferente a la carpeta que contiene los archivos a validar"]
[null,3,"Liberar la mayor cantidad de recursos del computador, cerrando todas las aplicaciones."]
[null,4,"Abrir el archivo Excel que contiene macro, habilitando el contenido y la ejecución de macros"]
[]
[null,5,"En la hoja Principal, hacer clic en el botón \"Validar\""]
[]
[null,6,"Seleccionar el directorio creado en el punto 2"]
[]
[null,7,"Permitir que la macro se ejecute, sin realizar acciones adicionales sobre el computador, hasta obtener un mensaje de respuesta."]
[]
[null,8,"En el directorio donde se encuentra alojada la macro, se genera un Reporte de Validación con la fecha y hora del sistema, el cual contiene los comentarios de validación."]
[]
[null,9,"Corrija las inconsistencias reportadas en el Reporte de Validación"]
[null,10,"Ejecute la macro, tantas veces sea necesaria hasta que los formularios sean validados correctamente"]

{"sheet":"Flujo de Validación","index":1,"n_rows":0,"n_cols":0,"rows_kept":0,"cut":false,"hidden":false,"merged":[]}

{"sheet":"Comentarios de Validación","index":2,"n_rows":20,"n_cols":4,"rows_kept":20,"cut":false,"hidden":false,"merged":[[0,1,0,4],[8,1,19,1],[5,1,6,1],[3,1,4,1]]}
[null,"COMENTARIOS DE VALIDACIÓN"]
[]
[null,"NIVEL","COMENTARIO","ACCIÓN SUGERIDA"]
[null,"Nivel 1. Archivo","N1. Error Archivo Inválido","Confirme que el archivo no sea un archivo Excel 97-2003, o temporal y que se pueda abrir sin errores"]
[null,null,"N1. Error Tamaño del Archivo 0 bytes","Confirme que el archivo contenga información"]
[null,"Nivel 2. Hoja","N2. Error Hoja No Identificada","Confirme que la hoja indicada corresponda a alguno de los formatos base"]
[null,null,"N2. Error Título Inválido","Confirme que el encabezado de la hoja contenga el mismo título del formato base"]
[null,"Nivel 3. Etiquetas","N3. Error Etiqueta Inválida","Confirme que la celda indicada contenga la misma etiqueta que los formato base remitidos"]
[null,"Nivel 4. Datos","N4. Error Valor Superior al Máximo Permitido [#]","Confirme que el valor de la celda indicada no contenga un valor superior al indicado entre corchetes"]
[null,null,"N4. Error Valor Inferior al Mínimo Permitido [#]","Confirme que el valor de la celda indicada no contenga un valor inferior al indicado entre corchetes"]
[null,null,"N4. Error en el Número de Decimales [#]","Confirme que el valor de la celda indicada incluya el número de decimales indicado entre corchetes"]
[null,null,"N4. Error Valor No Numérico","Confirme que el valor de la celda indicada contenga un número"]
[null,null,"N4. Error Texto Inválido","Confirme que la celda indicada contenga un texto"]
[null,null,"N4. Error Elemento de la Lista Inválido","Confirme los elementos de la lista desplegable de acuerdo con el formato base"]
[null,null,"N4. Error Longitud del Texto Mayor a la Máxima Permitida [#]","Confirme que la celda indicada contenga un texto con longitud inferior al indicado entre corchetes"]
[null,null,"N4. Error Longitud del Texto Menor a la Mínima Permitida [#]","Confirme que la celda indicada contenga un texto con longitud mayor al indicado entre corchetes"]
[null,null,"N4. Error Fecha Superior a [AAAA-MM-DD]","Confirme que la celda indicada contenga una fecha anterior a la indicada entre corchetes"]
[null,null,"N4. Error Fecha Diferente a [AAAA-MM-DD]","Confirme que la celda indicada contenga una fecha igual a la indicada entre corchetes"]
[null,null,"N4. Error Fecha Inválida","Confirme que la celda indicada contenga una fecha válida"]
[null,null,"N4. Error Formato en Blanco","Si el formato no es requerido, elimine la hoja"]

{"sheet":"Principal","index":3,"n_rows":6,"n_cols":3,"rows_kept":6,"cut":false,"hidden":false,"merged":[[1,1,2,2],[1,4,2,4]]}
[]
[null,"Validador Formatos \nResolución CREG 175-2021"]
[]
[]
[]
[null,"Versión :",4]

{"sheet":"Listas","index":4,"n_rows":20,"n_cols":77,"rows_kept":20,"cut":false,"hidden":true,"merged":[[0,24,0,26],[0,0,0,1],[0,4,0,6],[0,9,0,11],[0,14,0,16],[0,19,0,21],[0,57,0,59],[0,62,0,63],[0,29,0,31],[0,34,0,36],[0,38,0,40],[0,42,0,44],[0,47,0,49],[0,52,0,54]]}
["TIPO ACTIVO",null,null,null,"TIPOS DE SUELO",null,null,null,null,"TIPOS DE VEGETACIÓN",null,null,null,null,"TIPOS DE NIVEL FREÁTICO",null,null,null,null,"CLASE DE LOCALIDAD",null,null,null,null,"TIPOS DE CRUCE CUERPOS DE AGUA",null,null,null,null,"INCLINACIONES DEL TERRENO",null,null,null,null,"MEDIA LADERA",null,null,null,"VUN",null,null,null,"TECNOLOGÍA",null,null,null,null,"ENERGIA DE USO",null,null,null,null,"TIPOS PROYECTOS F3",null,null,null,null,"TIPOS PROYECTOS F4",null,null,null,null,"USO SERVIDUMBRE"]
["Id Tipo de Activo","Nombre Tipo de Activo",null,null,"Id Tipo de Suelo","Nombre Tipo de Suelo","Descripción tipo de Suelo",null,null,"Id Tipo de vegetación","Nombre tipo de vegetación","Descripción tipo de vegetación",null,null,"Id. Nivel Freático","Nombre Nivel Freático","Descripción del tipo de nivel freático",null,null,"Id. Clase de localidad","Nombre Clase de localidad","Descripción de la clase de localidad",null,null,"Id. Tipo de cruce cuerpos de agua","Tipo de cruce cuerpos de agua","Descripción del tipo de cruce cuerpos de agua",null,null,"Id. Inclinación del terreno","Inclinación del terreno","Descripción de la inclinación del terreno",null,null,"Id. Media ladera","Media ladera","Descripción Media ladera",null,"Id. VUN","Tiempo VUN","Descripción VUN",null,"Id. Tecnología","Tecnología","Descripción Tecnología",null,null,"Id. Energía Uso","Energia Uso","Descripción",null,null,"Id. Tipo proyecto","Tipo Proyecto","Descripción Tipo Proyecto",null,null,"Id. Tipo proyecto","Tipo Proyecto","Descripción Tipo Proyecto",null,null,"Id. Uso Servidumbre","Nombre Uso Servidumbre",null,"Componentes de la ERPC",null,"Accion"]
[1,"Ramal",null,null,1,"Arcilloso","Los suelos arcillosos son un tipo de suelo que está formado por granos finos de color amarillento, arcilla en un 45%, retienen mucho el agua y forman charcos. También conocidos como suelos pesados, estos son potencialmente fértiles, ya que contienen nutrientes unidos a los minerales arcillosos en el suelo. Pero también contienen una alta proporción de agua debido a la atracción capilar de los pequeños espacios entre las numerosas partículas de arcilla. Drenan lentamente y tardan más en calentarse en primavera que los suelos arenosos. Los suelos arcillosos se compactan fácilmente cuando se pisan mientras están húmedos y se hornean con fuerza en verano, a menudo se agrietan notablemente. Estos suelos a menudo ponen a prueba al jardinero al límite, pero cuando se maneja adecuadamente con el cultivo y la elección de la planta , puede ser muy gratificante trabajar con este tipo de suelo. De hecho, si se mezcla con humos es bueno para cultivar. Como decimos, este tipo de suelos tienen gran poder de retener agua y nutrientes pero una baja porosidad así que es difícil trabajarlos. Su textura y viscosidad hace que las raíces no tengan una adecuada aireación y por lo tanto se pueden pudrir. En este tipo de suelos no se puede plantar cualquier tipo de plantas o árboles, funcionan los que tiene raíces de ir hacia zonas más profundas buscando aireación. Como la melisa o el nogal, los alisos, el fresno, o el álamo blanco.",null,null,1,"Tundra",null,null,null,0,"Ninguno",null,null,null,1,"Localidad Clase 1",null,null,null,0,"Ninguno",null,null,null,1,"Terreno inclinado entre 0%-5%",null,null,null,0,"Ninguno",null,null,1,"20 años",null,null,1,"Reciprocante",null,null,null,1,"Eléctrica",null,null,null,1,"Contraflujo",null,null,null,1,"Cambio de Revestimiento",null,null,null,1,"Gasoducto",null,"Medidor",null,"Si",null,null,null,null,null,null,null,1,"1.1.1 Programa de instalacio´n de camisas resultado de corrida de herramientas inteligentes y programas de integridad. Se siguen presentando por deterioro normal del ducto y dependera´ hasta que nivel de desgaste o pe´rdida de espesor se cambio´ en el periodo anterior. Inversiones mayores al periodo anterior por un mayor desgaste del ducto."]
[2,"Troncal",null,null,2,"Rocoso","A este tipo de suelos se les llama así porque tienen pequeñas formaciones de piedra en su composición. Esto se produce porque la superficie terrestre se desdobla por causas naturales o por causas provocadas. El gran problema de este tipo de suelos es que son semi-impermeables por lo que no permiten la entrada de agua. De esta manera, es muy complicado el cultivo en este tipo de suelos aunque existe un tipo de plantas de origen xerófilo que sí pueden crecer en este tipo de suelos. Algunos de los cultivos típicos de estos suelos son: milenrama, caléndula, amor de hombre o lavanda fina. ",null,null,2,"Bosque Templado",null,null,null,1,"Sumideros y zanjas",null,null,null,2,"Localidad Clase 2",null,null,null,1,"Zanja",null,null,null,2,"Terreno inclinado entre 5%-10%",null,null,null,1,"media ladera 15%",null,null,2,"30 años",null,null,2,"Centrífuga",null,null,null,2,"Gas Natural",null,null,null,2,"Ajuste de válvulas",null,null,null,2,"Variante",null,null,null,2,"City Gate",null,"Válvulas regulación y control",null,"No",null,null,null,null,null,null,null,2,"1.1.2 Profundizacio´n de tramos de tuberi´a, principalmente en zonas de inestabilidad geote´cnica y cruces subfluviales. Se pueden presentar por cambios en la hidrologi´a de las cuencas por agentes ajenos al ducto y que pueden ser en cualquier momento; deforestacio´n, represamiento natural o externo del caudal, deshielos u otros, pero que no han causado dan~o o ruptura del tubo, que no se manifestaron en el periodo anterior. Inversiones menores respecto al periodo anterior, porque se espera mayor control de estas situaciones tanto por el transportador como por entes expertos externos."]
[null,null,null,null,3,"Arenoso","Entre lo tipos de suelos, el arenoso contiene partículas más grandes que el resto de los suelos. Es áspero y seco al tacto porque las partículas que lo componen están muy separadas entre ellas y no mantienen bien el agua. En los suelos arenosos el agua se drena rápidamente. Estos suelos no son los de mejor calidad  para la agricultura ya que no retienen los nutrientes.  Las plantas en suelos arenosos no tienen la oportunidad de aprovechar bien los nutrientes de forma eficiente por la velocidad con la que el agua se drena. El suelo arenoso por otro lado retine mejor la temperatura, así que en cuento llega la primavera resulta más cálido que otro tipo de suelo. Entre los árboles que se pueden cultivar en suelos arenosos está el aguacate, las palmeras, los pinos, eucualiptus o los cipreses.",null,null,3,"Selva Subtropical",null,null,null,2,"Sistema de aspiración",null,null,null,3,"Localidad Clase 3",null,null,null,2,"Perforación horizontal Dirigida",null,null,null,3,"Terreno inclinado entre 10%-15%",null,null,null,2,"media ladera 25%",null,null,null,null,null,null,null,null,null,null,null,null,null,null,null,null,3,"Obras en gasoducto",null,null,null,3,"Cambio de Válvulas",null,null,null,3,"Estación de Regulación",null,"ESDV  Filtro-separador",null,null,null,null,null,null,null,null,null,3,"1.1.3 Reemplazo de Va´lvulas por dan~os del cuerpo elementos internos o externos, que ya no permitan dar sello seguro o no sean seguras para su operacio´n. Nuevas situaciones de golpes o movimientos diferentes al periodo anterior. Inversiones menores respecto al periodo anterior, porque se espera mayor control de estas situaciones por el transportador, sin embargo no se puede tener control al 100% de las contingencias operativas o de la naturaleza."]
[null,null,null,null,null,null,null,null,null,4,"Desierto Árido",null,null,null,3,"Ataguías",null,null,null,4,"Localidad Clase 4",null,null,null,3,"Aéreo",null,null,null,4,"Terreno inclinado entre 15%-20%",null,null,null,3,"media ladera 35%",null,null,null,null,null,null,null,null,null,null,null,null,null,null,null,null,4,"Proyecto IPAT",null,null,null,4,"Protección Catódica,",null,null,null,4,"Otros",null,"Skid Calentador",null,null,null,null,null,null,null,null,null,4,"1.1.4 Instalacio´n de sistemas de by pass de tuberi´a dentro de una estacio´n o tramo de tuberi´a, para temas de seguridad u optimizacio´n de la operacio´n, debido a cambios de la lo´gica inicial dentro de la construccio´n. Direccionalidad, ingreso o salida de nuevas corrientes en el nuevo periodo, siempre se pueden presentar. Inversiones menores respecto al periodo anterior, porque se espera mayor control y desarrollo del entorno de suministro."]
[null,null,null,null,null,null,null,null,null,5,"Estepa Seca",null,null,null,null,null,null,null,null,null,null,null,null,null,null,null,null,null,null,5,"Terreno inclinado entre 20%-25%",null,null,null,null,null,null,null,null,null,null,null,null,null,null,null,null,null,null,null,null,null,5,"Almacenamiento",null,null,null,5,"Geotécnia",null,null,null,null,null,null,"Skid Odorizador",null,null,null,null,null,null,null,null,null,5,"1.1.5 Implementacio´n de nuevos sistemas de seguridad de monitoreo del ducto. Cambio de tecnologi´a que no permitan continuar con los del periodo anterior. Inversiones iguales o mayor respecto al periodo anterior, porque se espera obsolescencia y necesidad de cambio de ser necesario por situaciones operativas y del entorno."]
[null,null,null,null,null,null,null,null,null,6,"Sabana",null,null,null,null,null,null,null,null,null,null,null,null,null,null,null,null,null,null,6,"Terreno inclinado más de 25%",null,null,null,null,null,null,null,null,null,null,null,null,null,null,null,null,null,null,null,null,null,null,null,null,null,null,6,"Otras inversiones adicionales",null,null,null,null,null,null,"Comunicaciones (GRPS, RADIO, INTERNET)",null,null,null,null,null,null,null,null,null,6,"1.1.6 Implementacio´n de nuevos sistemas de automatizacio´n de estaciones. Cambio de tecnologi´a que no permitan continuar con los del periodo anterior. Inversiones iguales o mayor respecto al periodo anterior, porque se espera obsolescencia y necesidad de cambio de ser necesario por situaciones operativas y del entorno."]
[null,null,null,null,null,null,null,null,null,7,"Selva Tropical",null,null,null,null,null,null,null,null,null,null,null,null,null,null,null,null,null,null,null,null,null,null,null,null,null,null,null,null,null,null,null,null,null,null,null,null,null,null,null,null,null,null,null,null,null,null,null,null,null,null,null,null,null,null,"Otro",null,null,null,null,null,null,null,null,null,7,"1.1.7 Instalacio´n de nueva sen~alizacio´n del derecho de vi´a. Cambio de reglamentacio´n, de nu´meros o empresas a cargo en un nuevo periodo. Inversiones menores respecto al periodo anterior, porque se espera menor puntos por sen~alizar y desarrollo de poli´ticas internas que den continuidad a la sen~alizacio´n existente."]
[null,null,null,null,null,null,null,null,null,8,"Tundra Alpina",null,null,null,null,null,null,null,null,null,null,null,null,null,null,null,null,null,null,null,null,null,null,null,null,null,null,null,null,null,null,null,null,null,null,null,null,null,null,null,null,null,null,null,null,null,null,null,null,null,null,null,null,null,null,null,null,null,null,null,null,null,null,null,null,8,"1.2.1 Construccio´n de variantes por necesidades de cambio del trazado inicial por problemas de estabilidad geote´cnica del derecho de vi´a o aspectos socioculturales que han provocado invasio´n del Derecho de Vi´a, generando riesgo hacia el ducto posteriores al disen~o y construccio´n."]
[null,null,null,null,null,null,null,null,null,null,null,null,null,null,null,null,null,null,null,null,null,null,null,null,null,null,null,null,null,null,null,null,null,null,null,null,null,null,null,null,null,null,null,null,null,null,null,null,null,null,null,null,null,null,null,null,null,null,null,null,null,null,null,null,null,null,null,null,null,null,null,null,null,null,null,9,"1.2.2 Construccio´n de variantes localizadas por interferencias con nuevas estructuras de terceros; tuberi´as, vi´as, edificaciones y otras."]
[null,null,null,null,null,null,null,null,null,null,null,null,null,null,null,null,null,null,null,null,null,null,null,null,null,null,null,null,null,null,null,null,null,null,null,null,null,null,null,null,null,null,null,null,null,null,null,null,null,null,null,null,null,null,null,null,null,null,null,null,null,null,null,null,null,null,null,null,null,null,null,null,null,null,null,10,"1.2.3 Construccio´n de loops para reemplazar tramos de tuberi´a paralelas que se abandonan o bajan presio´n por problemas de dan~os internos por condiciones de fluido o imperfecciones propias del ducto, que ocasionaron perdida de espesor o por ana´lisis de integridad."]
[null,null,null,null,null,null,null,null,null,null,null,null,null,null,null,null,null,null,null,null,null,null,null,null,null,null,null,null,null,null,null,null,null,null,null,null,null,null,null,null,null,null,null,null,null,null,null,null,null,null,null,null,null,null,null,null,null,null,null,null,null,null,null,null,null,null,null,null,null,null,null,null,null,null,null,11,"1.2.4 Programa de refuerzo externo de espesor de tuberi´a por pe´rdidas de material o dan~os por corrosio´n o similar."]
[null,null,null,null,null,null,null,null,null,null,null,null,null,null,null,null,null,null,null,null,null,null,null,null,null,null,null,null,null,null,null,null,null,null,null,null,null,null,null,null,null,null,null,null,null,null,null,null,null,null,null,null,null,null,null,null,null,null,null,null,null,null,null,null,null,null,null,null,null,null,null,null,null,null,null,12,"1.2.5 Cambio de Cruces subfluviales y especiales, por dan~os por exposicio´n por socavacio´n lateral o vertical profundidad de los actuales. Tuberi´a sometida a esfuerzos de las corrientes o de los terrenos."]
[null,null,null,null,null,null,null,null,null,null,null,null,null,null,null,null,null,null,null,null,null,null,null,null,null,null,null,null,null,null,null,null,null,null,null,null,null,null,null,null,null,null,null,null,null,null,null,null,null,null,null,null,null,null,null,null,null,null,null,null,null,null,null,null,null,null,null,null,null,null,null,null,null,null,null,13,"1.2.6 Ejecucio´n de un programa de Obras Geote´cnicas correctivas que impliquen trabajos por fuera del derecho de vi´a. Ocasionados por inestabilidad de terrenos adyacentes por causas naturales no manifiestas durante estudios iniciales o actividades externas de terceros, que ponen el riego la estabilidad del terreno adyacente que puede inducir desplazamientos del ducto en el derecho de vi´a."]
[null,null,null,null,null,null,null,null,null,null,null,null,null,null,null,null,null,null,null,null,null,null,null,null,null,null,null,null,null,null,null,null,null,null,null,null,null,null,null,null,null,null,null,null,null,null,null,null,null,null,null,null,null,null,null,null,null,null,null,null,null,null,null,null,null,null,null,null,null,null,null,null,null,null,null,14,"1.2.7 en un periodo de 20 an~os se puede presentar la implementacio´n de modificaciones de facilidades operativas por cambios regulatorios, normas te´cnicas o de HSE que impliquen nuevas infraestructuras adicionales a las existentes o cambio de las mismas."]
[null,null,null,null,null,null,null,null,null,null,null,null,null,null,null,null,null,null,null,null,null,null,null,null,null,null,null,null,null,null,null,null,null,null,null,null,null,null,null,null,null,null,null,null,null,null,null,null,null,null,null,null,null,null,null,null,null,null,null,null,null,null,null,null,null,null,null,null,null,null,null,null,null,null,null,15,"1.2.8 Cambio o calibracio´n de partes o reemplazo total de medidores, por dan~os o necesidad por volu´menes."]
[null,null,null,null,null,null,null,null,null,null,null,null,null,null,null,null,null,null,null,null,null,null,null,null,null,null,null,null,null,null,null,null,null,null,null,null,null,null,null,null,null,null,null,null,null,null,null,null,null,null,null,null,null,null,null,null,null,null,null,null,null,null,null,null,null,null,null,null,null,null,null,null,null,null,null,16,"1.2.9 Trabajos de alivio de esfuerzo de zonas no definidas en el disen~o y construccio´n, que impliquen afectacio´n del derecho de vi´a y apertura de zanja."]
[null,null,null,null,null,null,null,null,null,null,null,null,null,null,null,null,null,null,null,null,null,null,null,null,null,null,null,null,null,null,null,null,null,null,null,null,null,null,null,null,null,null,null,null,null,null,null,null,null,null,null,null,null,null,null,null,null,null,null,null,null,null,null,null,null,null,null,null,null,null,null,null,null,null,null,17,"1.2.10 Sistemas nuevos o de refuerzo del sistema de proteccio´n Cato´dica por cambios de las condiciones o situaciones del trazado que impliquen cambio de revestimiento de tramos de tuberi´a."]
[null,null,null,null,null,null,null,null,null,null,null,null,null,null,null,null,null,null,null,null,null,null,null,null,null,null,null,null,null,null,null,null,null,null,null,null,null,null,null,null,null,null,null,null,null,null,null,null,null,null,null,null,null,null,null,null,null,null,null,null,null,null,null,null,null,null,null,null,null,null,null,null,null,null,null,18,"1.2.11 Programa de abandono o desmantelamiento de ductos o tramos y/o facilidades existentes. 1.2.12 Cambio de tramos en zonas de falla que presenten abolladuras o deformacio´n del ducto. 1.2.13 Remodelacio´n de los bunkers o casetas de va´lvulas u otros equipos por tema de seguridad en el O&M."]

{"sheet":"Lista Archivos","index":5,"n_rows":4,"n_cols":6,"rows_kept":4,"cut":false,"hidden":true,"merged":[[1,0,1,3]]}
[]
["LISTA DE ARCHIVOS"]
[]
["Ubicación","Archivo","Tipo","Tamaño","Tipo de Información Incluida en el Archivo","Justificación Legal"]

{"sheet":"Validacion","index":6,"n_rows":4,"n_cols":8,"rows_kept":4,"cut":false,"hidden":true,"merged":[[1,0,1,4]]}
[]
["REPORTE DE VALIDACIÓN"]
[]
["Ubicación","Archivo","Hoja","Celda","Comentario","Formato","Tramo","Validaciones"]

{"sheet":"Titulos","index":7,"n_rows":33,"n_cols":7,"rows_kept":33,"cut":false,"hidden":true,"merged":[]}
["Formato","Formato Validación","Título","Formato Validación","Celda Tramo","Celdas Formato en Blanco","Valor Celda en Blanco"]
["Datos Empresa","DATOS","INFORMACIÓN DE LA EMPRESA","DATOS",null,"D5"]
["Formato A2F1","A02F1","INFORMACIÓN PARA VALORAR GASODUCTOS\nAnexo 2 Formato 1 \nTransporte de Gas Natural por Redes de Tubería","A02F1","D5","D5","-Seleccione el nombre del activo a reportar-"]
["Formato A2F2","A02F2","INFORMACIÓN PARA VALORAR ESTACIONES DE COMPRESIÓN\nAnexo 2 Formato 2\nTransporte de Gas Natural por Redes de Tubería","A02F2","P16","P16","-Seleccione el nombre del activo a reportar-"]
["Formato A2F3","A02F3","FORMATO PARA EL REPORTE DE COSTOS PROYECTADOS DE OTROS PROYECTOS\nAnexo 2 Formato 3\nTransporte de Gas Natural por Redes de Tubería","A02F3","G12","G12","-Seleccione el nombre del activo a reportar-"]
["Formato A2F3Aux","A02F3Aux","FORMATO PARA EL REPORTE DE COSTOS PROYECTADOS DE PROYECTOS\nAnexo 2 Formato 3 Auxiliar\nTransporte de Gas Natural por Redes de Tubería","A02F3Aux",null,"G23"]
["Formato A2F4","A02F4","FORMATO PARA EL REPORTE DE PROYECTOS QUE CUMPLEN VUN\nAnexo 2 Formato 4\nTransporte de Gas Natural por Redes de Tubería","A02F4","F6","F6","-Seleccione el nombre del activo a reportar-"]
["Anexo_2_Diagrama_de_flujo","A02F5","DIAGRAMA DE FLUJO DEL GASODUCTO\nAnexo 2 Formato 5\nTransporte de Gas Natural por Redes de Tubería","A02F5"]
["Formato A3F1","A03F1","COSTO REAL EN GASODUCTOS\nAnexo 3 Formato 1\nTransporte de Gas Natural por Redes de Tubería","A03F1","G5","G5"]
["Formato A3F2","A03F2","COSTO REAL EN COMPRESORES\nAnexo 3 Formato 2\nTransporte de Gas Natural por Redes de Tubería","A03F2",null,"F5"]
["Formato A3F3","A03F3","COSTO REAL DE OTROS PROYECTOS\nAnexo 3 Formato 3\nTransporte de Gas Natural por Redes de Tubería","A03F3","G12","G12","-Seleccione el nombre del activo a reportar-"]
["Formato A4F1","A04F1","GASTOS DE ADMINISTRACIÓN OPERACIÓN Y MANTENIMIENTO, AOMg\nAnexo 4 Formato 1\nTransporte de Gas Natural por Redes de Tubería","A04F1","C3","C3","-Seleccione el gasoducto troncal asociado-"]
["Formato A4F2","A04F2","REPORTE DE PREDIOS\nAnexo 4 Formato 2\nTransporte de Gas Natural por Redes de Tubería","A04F2","E4","E4","-Seleccione el nombre del activo a reportar-"]
["Formato A4F3","A04F3","REPORTE DE OTROS ACTIVOS MENORES\nAnexo 4 Formato 3\nTransporte de Gas Natural por Redes de Tubería","A04F3","D5","D5","-Seleccione el nombre del activo a reportar-"]
["Formato A4F4","A04F4","REPORTE DE SERVIDUMBRES\nAnexo 4 Formato 4\nTransporte de Gas Natural por Redes de Tubería","A04F4","G5","G5","-Seleccione el nombre del activo a reportar-"]
["Formato A5F1","A05F1","INFORMACIÓN UTILIZADA PARA EL CÁLCULO DE LA CMMP\nAnexo 5 Formato 1\nTransporte de Gas Natural por Redes de Tubería","A05F1","F5","F5","-Seleccione el nombre del activo a reportar-"]
["Formato A5F1Aux","A05F1Aux","INFORMACIÓN UTILIZADA PARA EL CÁLCULO DE LA CMMP\nAnexo 5 Formato 1 Auxiliar\nTransporte de Gas Natural por Redes de Tubería","A05F1Aux","D16","D16","-Seleccione el gasoducto troncal asociado-"]
["Formato A5F2","A05F2","VALORES NORMALIZADOS DE LA CROMATOGRAFÍA DEL GAS\nAnexo 5 Formato 2\nTransporte de Gas Natural por Redes de Tubería","A05F2",null,"C8","Punto 1"]
["Formato A5F3","A05F3","PERFIL DE DEMANDA HORARIO\nAnexo 5 Formato 3\nTransporte de Gas Natural por Redes de Tubería","A05F3",null,"C7","Punto 1"]
["Formato A6F1","A06F1","INVERSIÓN EXISTENTE EN RED TIPO I DE TRANSPORTE\nAnexo 6 Formato 1\nTransporte de Gas Natural por Redes de Tubería","A06F1","E5","E5","-Seleccione el nombre del activo a reportar-"]
["Formato A6F2","A06F2","INVERSIÓN EXISTENTE EN RED TIPO II DE TRANSPORTE\nAnexo 6 Formato 2\nTransporte de Gas Natural por Redes de Tubería","A06F2","E5","E5","-Seleccione el nombre del activo a reportar-"]
["Formato A6F3","A06F3","PROGRAMA DE NUEVAS INVERSIONES, PNI\nAnexo 6 Formato 3\nTransporte de Gas Natural por Redes de Tubería","A06F3","E5","E5","-Seleccione el nombre del activo a reportar-"]
["Formato A6F4","A06F4","INVERSIONES EN AUMENTO DE CAPACIDAD, IAC\nAnexo 6 Formato 4\nTransporte de Gas Natural por Redes de Tubería","A06F4","E5","E5","-Seleccione el nombre del activo a reportar-"]
["Formato A6F5","A06F5","GASTOS DE AOM PARA EL HORIZONTE DE PROYECCIÓN\nAnexo 6 Formato 5\nTransporte de Gas Natural por Redes de Tubería","A06F5","E5","E5","-Seleccione el nombre del activo a reportar-"]
["Formato A6F6","A06F6","DEMANDAS DE CAPACIDAD Y VOLUMEN\nAnexo 6 Formato 6\nTransporte de Gas Natural por Redes de Tubería","A06F6","F5","F5","-Seleccione el nombre del activo a reportar-"]
["Formato A6F7","A06F7","GAS DE EMPAQUETAMIENTO\nAnexo 6 Formato 7\nTransporte de Gas Natural por Redes de Tubería","A06F7","E5","E5","-Seleccione el nombre del activo a reportar-"]
["Formato A6F8","A06F8","FORMATO PARA EL REPORTE DE CRONOGRAMAS DE PROYECTOS\nAnexo 6 Formato 8\nTransporte de Gas Natural por Redes de Tubería","A06F8",null,"B14"]
["Formato A8F1","A08F1","GASTOS REALES HISTÓRICOS DE COMPRESIÓN DISTINTOS A COMBUSTIBLES \nAnexo 8 Formato 1\nTransporte de Gas Natural por Redes de Tubería","A08F1",null,"F5"]
["Formato A9F1","A09F1","FORMATO DE DECLARACIÓN SOBRE ACUERDO ENTRE TRANSPORTADOR Y\nDISTRIBUIDOR PARA ASUMIR RESPONSABILIDAD DE ERPC\nAnexo 9 Formato 1\nTransporte de Gas Natural por Redes de Tubería","A09F1","D8","D8","-Seleccione el gasoducto troncal asociado-"]
["Formato A9F1Aux","A09F1Aux","FORMATO PARA EL REPORTE DE CONFIGURACIÓN DE ESTACIONES DE REGULACIÓN DE PUERTA DE CIUDAD - ERPC\nAnexo 9 Formato 1 Auxiliar\nTransporte de Gas Natural por Redes de Tubería","A09F1Aux",null,"C20"]
["Formato A9F2","A09F2","INFORMACIÓN DE INVERSIONES PARA ESTACIONES DE REGULACIÓN DE PUERTA DE CIUDAD - ERPC\nAnexo 9 Formato 2\nTransporte de Gas Natural por Gasoductos","A09F2",null,"B47"]
["Formato A9F3","A09F3","COSTO REAL DE ERPCs\nAnexo 9 Formato 3\nTransporte de Gas Natural por Redes de Tubería","A09F3",null,"G35"]
["Formato A10F1","A10F1","FORMATO DE DECLARACIÓN DE ERPC EN EL SISTEMA DE TRANSPORTE\nAnexo 10 Formato 1\nTransporte de Gas Natural por Redes de Tubería","A10F1","D8","D8","-Seleccione el gasoducto troncal asociado-"]

{"sheet":"Etiquetas","index":8,"n_rows":1691,"n_cols":8,"rows_kept":1691,"cut":false,"hidden":true,"merged":[]}
["Formulario","Validación","Nombre del Rango Rev 20220216b","Nombre del Rango Rev 0","Celda","Fila","Columna","Validador"]
["Datos Empresa","DATOS","Información",null,{"$f":"ADDRESS(F2,G2,4)","v":"B3"},3,2]
["Datos Empresa","DATOS","Nombre de la Empresa",null,"C5",5,3]
["Datos Empresa","DATOS","NIT",null,"C6",6,3]
["Datos Empresa","DATOS","Nombre del Representante Legal",null,"C7",7,3]
["Datos Empresa","DATOS","Nombre de Contacto para Aclarar Inquietudes",null,"C8",8,3]
["Datos Empresa","DATOS","Correo Electrónico de Contacto",null,"C9",9,3]
["Formato A2F1","A02F1","Nombre del gasoducto troncal asociado al reporte:",null,"A3",3,1]
["Formato A2F1","A02F1","Tipo de activo que se está reportando:",null,"A4",4,1]
["Formato A2F1","A02F1","Nombre del activo que se está reportando:",null,"A5",5,1]
["Formato A2F1","A02F1","Fecha Base:",null,"A6",6,1]
["Formato A2F1","A02F1","Valor total (en $COP de la fecha base):",null,"A7",7,1]
["Formato A2F1","A02F1","Año de entrada en operación:",null,"A8",8,1]
["Formato A2F1","A02F1","Información de georreferenciación",null,"C10",10,3]
["Formato A2F1","A02F1","No. Segmento",null,"A11",11,1]
["Formato A2F1","A02F1","Longitud segmento (metros)",null,"B11",11,2]
["Formato A2F1","A02F1","Latitud(Decimal)",null,"C11",11,3]
["Formato A2F1","A02F1","Longitud(Decimal)",null,"D11",11,4]
["Formato A2F1","A02F1","Altura (metros sobre el nivel del mar)",null,"E11",11,5]
["Formato A2F1","A02F1","Diámetro (pulgadas)",null,"F11",11,6]
["Formato A2F1","A02F1","Tipo de suelo",null,"G11",11,7]
["Formato A2F1","A02F1","Vegetación",null,"H11",11,8]
["Formato A2F1","A02F1","Nivel freático",null,"I11",11,9]
["Formato A2F1","A02F1","Clase de localidad",null,"J11",11,10]
["Formato A2F1","A02F1","Cruces de cuerpos de agua",null,"K11",11,11]
["Formato A2F1","A02F1","Cruces fallas geológicas (cruces sismicos)",null,"L11",11,12]
["Formato A2F1","A02F1","Terreno cultivado",null,"M11",11,13]
["Formato A2F1","A02F1","Inclinación de terreno",null,"N11",11,14]
["Formato A2F1","A02F1","Media ladera",null,"O11",11,15]
["Formato A2F1","A02F1","Gasoducto construido a Doble junta",null,"P11",11,16]
["Formato A2F1","A02F1","Área congestionada",null,"Q11",11,17]
["Formato A2F1","A02F1","No. de conexiones tapón doble más hot tap y bypass",null,"R11",11,18]
["Formato A2F1","A02F1","No. de conexiones tapón doble más hot tap ",null,"S11",11,19]
["Formato A2F1","A02F1","No. de conexiones corte en caliente,  hot tap ",null,"T11",11,20]
["Formato A2F1","A02F1","No. de conexiones corte en frio,  cold tap ",null,"U11",11,21]
["Formato A2F2","A02F2","Generalidades",null,"B3",3,2]
["Formato A2F2","A02F2","Nombre del compresor:",null,"C5",5,3]
["Formato A2F2","A02F2","Capacidad total:",null,"C6",6,3]
["Formato A2F2","A02F2","Potencia total:",null,"C7",7,3]
["Formato A2F2","A02F2","Presión mínima entrada:",null,"C8",8,3]
["Formato A2F2","A02F2","Presión máxima salida:",null,"C9",9,3]
["Formato A2F2","A02F2","Temperatura de succión:",null,"C10",10,3]
["Formato A2F2","A02F2","Temperatura de descarga:",null,"C11",11,3]
["Formato A2F2","A02F2","Fecha inicio del proyecto:",null,"C12",12,3]
["Formato A2F2","A02F2","Fecha Puesta en operación comercial:",null,"C13",13,3]
["Formato A2F2","A02F2","Valor insonorización:",null,"C14",14,3]
["Formato A2F2","A02F2","Valor total estación compresora:",null,"C15",15,3]
["Formato A2F2","A02F2","Incluye tea:",null,"C16",16,3]
["Formato A2F2","A02F2","Latitud:",null,"P7",7,16]
["Formato A2F2","A02F2","Longitud:",null,"P9",9,16]
["Formato A2F2","A02F2","Altura:",null,"P11",11,16]
["Formato A2F2","A02F2","Tramo o grupos de gasoductos asociados:",null,"L16",16,12]
["Formato A2F2","A02F2","Breve descripción del alcance del sistema de control:",null,"C18",18,3]
["Formato A2F2","A02F2","Breve descripción del alcance del sistema de monitoreo y protección del equipo:",null,"C23",23,3]
["Formato A2F2","A02F2","Si se incluye tea haga la descripción aquí:",null,"C28",28,3]
["Formato A2F2","A02F2","Descripción insonorización:",null,"C34",34,3]
["Formato A2F2","A02F2","Caracterización compresor",null,"B43",43,2]
["Formato A2F2","A02F2","No. Unidad",null,"B44",44,2]
["Formato A2F2","A02F2","Tecnología ",null,"C44",44,3]
["Formato A2F2","A02F2","Potencia",null,"D44",44,4]
["Formato A2F2","A02F2","Presión mínima entrada",null,"E44",44,5]
["Formato A2F2","A02F2","Presión máxima salida",null,"G44",44,7]
["Formato A2F2","A02F2","Número de etapas",null,"I44",44,9]
["Formato A2F2","A02F2","Tipo de combustible que usa el compresor para operar ",null,"K44",44,11]
["Formato A2F2","A02F2","Consumo a plena carga [BTU/hora]",null,"P44",44,16]
["Formato A2F2","A02F2","Consumo a plena carga [kWh]",null,{"$f":"ADDRESS(F66,G66,4)","v":"S44"},44,19]
["Formato A2F2","A02F2","Composición del gas (Incluir la composicion de gas para el que fue diseñada la estación compresora)",null,"B66",66,2]
["Formato A2F2","A02F2","Componente",null,"C68",68,3]
["Formato A2F2","A02F2","Fórmula química",null,"E68",68,5]
["Formato A2F2","A02F2","Composición porcentual molar",null,"G68",68,7]
["Formato A2F2","A02F2","Metano",null,"C69",69,3]
["Formato A2F2","A02F2","Nitrógeno",null,"C70",70,3]
["Formato A2F2","A02F2","Dióxido de Carbono",null,"C71",71,3]
["Formato A2F2","A02F2","Etano",null,"C72",72,3]
["Formato A2F2","A02F2","Propano",null,"C73",73,3]
["Formato A2F2","A02F2","Agua",null,"C74",74,3]
["Formato A2F2","A02F2","Sulfuro de Hidrógeno",null,"C75",75,3]
["Formato A2F2","A02F2","Hidrógeno",null,"C76",76,3]
["Formato A2F2","A02F2","Monóxido de Carbono",null,"C77",77,3]
["Formato A2F2","A02F2","Oxígeno",null,"C78",78,3]
["Formato A2F2","A02F2","i-Butano",null,"C79",79,3]
["Formato A2F2","A02F2","n-Butano",null,"C80",80,3]
["Formato A2F2","A02F2","i-Pentano",null,"C81",81,3]
["Formato A2F2","A02F2","n-Pentano",null,"C82",82,3]
["Formato A2F2","A02F2","n-Hexano",null,"C83",83,3]
["Formato A2F2","A02F2","n-Heptano",null,"C84",84,3]
["Formato A2F2","A02F2","n-Octano",null,"C85",85,3]
["Formato A2F2","A02F2","n-Nonano",null,"C86",86,3]
["Formato A2F2","A02F2","n-Decano",null,"C87",87,3]
["Formato A2F2","A02F2","Helio",null,"C88",88,3]
["Formato A2F2","A02F2","Argón",null,"C89",89,3]
["Formato A2F2","A02F2","Total",null,"C90",90,3]
["Formato A2F3","A02F3","Datos generales del proyecto",null,"B3",3,2]
["Formato A2F3","A02F3","Nombre:",null,"C5",5,3]
["Formato A2F3","A02F3","Tipo (a):",null,"C6",6,3]
["Formato A2F3","A02F3","Días de ejecución (c):",null,"C7",7,3]
["Formato A2F3","A02F3","Fecha de inicio:",null,"C8",8,3]
["Formato A2F3","A02F3","Fecha de finalización:",null,"C9",9,3]
["Formato A2F3","A02F3","Gasoducto troncal asociado:",null,"C10",10,3]
["Formato A2F3","A02F3","Tipo de activo asociado:",null,"C11",11,3]
["Formato A2F3","A02F3","Nombre del activo asociado:",null,"C12",12,3]
["Formato A2F3","A02F3","No. del segmento reportado al que se conecta:",null,"C13",13,3]
["Formato A2F3","A02F3","Ubicación geográfica del proyecto",null,"P5",5,16]
["Formato A2F3","A02F3","Latitud  (d)",null,"P7",7,16]
["Formato A2F3","A02F3","Longitud (d):",null,"P9",9,16]
["Formato A2F3","A02F3","Altura:",null,"P11",11,16]
["Formato A2F3","A02F3","Descripción del proyecto (b):",null,"C15",15,3]
["Formato A2F3","A02F3","Flujo de construcción",null,"B26",26,2]
["Formato A2F3","A02F3","No.",null,"B27",27,2]
["Formato A2F3","A02F3","Año",null,"C27",27,3]
["Formato A2F3","A02F3","Total otras actividades (e)","Inversión total (e)","D27",27,4]
["Formato A2F3","A02F3","Costo de equipos (f)",null,"F27",27,6]
["Formato A2F3","A02F3","Costo obra civil y mecánica (g)",null,"H27",27,8]
["Formato A2F3","A02F3","Costo de permisos temporales servidumbres (h)",null,"K27",27,11]
["Formato A2F3","A02F3","Costo de inversión socio ambiental (i)",null,"P27",27,16]
["Formato A2F3","A02F3","Total",null,"T27",27,20]
["Formato A2F3Aux","A02F3Aux","Nombre del proyecto:",null,"C23",23,3]
["Formato A2F3Aux","A02F3Aux","Variable metodología:",null,"C24",24,3]
["Formato A2F3Aux","A02F3Aux","Tipo proyecto:",null,"C25",25,3]
["Formato A2F3Aux","A02F3Aux","Días de ejecución (a):",null,"C26",26,3]
["Formato A2F3Aux","A02F3Aux","Fecha de inicio:",null,"C27",27,3]
["Formato A2F3Aux","A02F3Aux","Fecha de finalización:",null,"C28",28,3]
["Formato A2F3Aux","A02F3Aux","Año y mes de entrada en operación:",null,"C29",29,3]
["Formato A2F3Aux","A02F3Aux","Año y mes de reconocimiento en cargos:",null,"C30",30,3]
["Formato A2F3Aux","A02F3Aux","Gasoducto troncal asociado:",null,"C31",31,3]
["Formato A2F3Aux","A02F3Aux","Tipo de activo asociado:",null,"C32",32,3]
["Formato A2F3Aux","A02F3Aux","Nombre del activo asociado:",null,"C33",33,3]
["Formato A2F3Aux","A02F3Aux","Descripción del proyecto (b):",null,"C35",35,3]
["Formato A2F3Aux","A02F3Aux","Justificación del proyecto:",null,"C45",45,3]
["Formato A2F3Aux","A02F3Aux","Carpeta con la descripción del proyecto:",null,"F55",55,6]
["Formato A2F3Aux","A02F3Aux","Documento memoria técnica del proyecto:",null,"F56",56,6]
["Formato A2F3Aux","A02F3Aux","Nombre del archivo .kmz con trazado y ubicación del proyecto:",null,"F57",57,6]
["Formato A2F3Aux","A02F3Aux","Nombre de la carpeta del archivo kmz asociada al gasoducto:",null,"F58",58,6]
["Formato A2F3Aux","A02F3Aux","Información complementaria:",null,"F59",59,6]
["Formato A2F3Aux","A02F3Aux","No.",null,"B65",65,2]
["Formato A2F3Aux","A02F3Aux","Año",null,"C65",65,3]
["Formato A2F3Aux","A02F3Aux","Total otras actividades (d)",null,"D65",65,4]
["Formato A2F3Aux","A02F3Aux","Costo de equipos (e)",null,"F65",65,6]
["Formato A2F3Aux","A02F3Aux","Costo obra civil y mecánica (f)",null,"H65",65,8]
["Formato A2F3Aux","A02F3Aux","Costo de permisos temporales servidumbres (g)",null,"K65",65,11]
["Formato A2F3Aux","A02F3Aux","Costo de inversión socio ambiental (h)",null,"P65",65,16]
["Formato A2F3Aux","A02F3Aux","Total",null,"T65",65,20]
["Formato A2F4","A02F4","Proyectos para activos que cumplen VUN y el transportador declara que siguen operando",null,"A3",3,1]
["Formato A2F4","A02F4","General",null,"A4",4,1]
["Formato A2F4","A02F4","Punto geográfico donde se proyecta a hacer el proyecto.",null,"G4",4,7]
["Formato A2F4","A02F4","Tipo de proyecto e información",null,"J4",4,10]
["Formato A2F4","A02F4","No.",null,"A5",5,1]
["Formato A2F4","A02F4","Tipo  proyecto",null,"B5",5,2]
["Formato A2F4","A02F4","Año y mes de entrada en operación",null,"C5",5,3]
["Formato A2F4","A02F4","Año y mes en el que la CREG por primera vez lo reconoció en los cargos tarifarios",null,"D5",5,4]
["Formato A2F4","A02F4","Gasoducto troncal ",null,"E5",5,5]
["Formato A2F4","A02F4","Tramo al que se le aplica el proyecto",null,"F5",5,6]
["Formato A2F4","A02F4","Latitud(Decimal)",null,"G5",5,7]
["Formato A2F4","A02F4","Longitud(Decimal)",null,"H5",5,8]
["Formato A2F4","A02F4","Altura (metros sobre el nivel del mar)",null,"I5",5,9]
["Formato A2F4","A02F4","descripción del proyecto",null,{"$f":"ADDRESS(F156,G156,4)","v":"J5"},5,10]
["Formato A2F4","A02F4","Justificación del proyecto.",null,"K5",5,11]
["Formato A2F4","A02F4","Carpeta con la descripcion del proyecto ",null,"L5",5,12]
["Formato A2F4","A02F4","Nombre del archivo .kmz con trazado y ubicación del proyecto",null,"M5",5,13]
["Formato A2F4","A02F4","Nombre de la carpeta del archivo kmz asociada al gasoducto ",null,"N5",5,14]
["Formato A2F4","A02F4","información complementaria",null,"O5",5,15]
["Formato A3F1","A03F1","Datos generales",null,"B3",3,2]
["Formato A3F1","A03F1","Nombre del gasoducto:",null,"C5",5,3]
["Formato A3F1","A03F1","Capacidad máxima de mediano plazo:",null,"C6",6,3]
["Formato A3F1","A03F1","Días de ejecución del proyecto:",null,"C7",7,3]
["Formato A3F1","A03F1","Longitud de construcción por día:",null,"C8",8,3]
["Formato A3F1","A03F1","Longitud total  del gasoducto:",null,"C9",9,3]
["Formato A3F1","A03F1","No. de conexiones tapón doble más hot tap y bypass:",null,"C10",10,3]
["Formato A3F1","A03F1","No. de conexiones tapón doble más hot tap:",null,"C11",11,3]
["Formato A3F1","A03F1","No. de conexiones corte en caliente, hot tap:",null,"C12",12,3]
["Formato A3F1","A03F1","No. de conexiones corte en frio,  cold tap:",null,"C13",13,3]
["Formato A3F1","A03F1","Fecha inicio del proyecto:",null,"C14",14,3]
["Formato A3F1","A03F1","Fecha finalización del proyecto:",null,"C15",15,3]
["Formato A3F1","A03F1","Ubicación geográfica del proyecto",null,"P5",5,16]
["Formato A3F1","A03F1","Latitud:",null,"P7",7,16]
["Formato A3F1","A03F1","Longitud:",null,"P9",9,16]
["Formato A3F1","A03F1","Altura:",null,"P11",11,16]
["Formato A3F1","A03F1","Flujo de construcción",null,"B18",18,2]
["Formato A3F1","A03F1","No.",null,"B19",19,2]
["Formato A3F1","A03F1","Año",null,"C19",19,3]
["Formato A3F1","A03F1","Metros construidos",null,"D19",19,4]
["Formato A3F1","A03F1","Costo de construcción del gasoducto (a)",null,"F19",19,6]
["Formato A3F1","A03F1","Costo de todos los materiales permanentes (b)",null,"H19",19,8]
["Formato A3F1","A03F1","Costo de permisos temporales servidumbres (c) ",null,"J19",19,10]
["Formato A3F1","A03F1","Costo en inversión social (d)",null,"L19",19,12]
["Formato A3F1","A03F1","Costo en inversión ambiental (e) ",null,"N19",19,14]
["Formato A3F1","A03F1","Costo en inversion de estación de transferencia entre transportadores (f)",null,"P19",19,16]
["Formato A3F1","A03F1","Total",null,"T19",19,20]
["Formato A3F2","A03F2","Generalidades",null,"B3",3,2]
["Formato A3F2","A03F2","Nombre de la estación de compresión:",null,"C5",5,3]
["Formato A3F2","A03F2","Capacidad de compresión:",null,"C6",6,3]
["Formato A3F2","A03F2","Potencia total instalada:",null,"C7",7,3]
["Formato A3F2","A03F2","Presión mínima entrada:",null,"C8",8,3]
["Formato A3F2","A03F2","Presión máxima salida:",null,"C9",9,3]
["Formato A3F2","A03F2","Días de ejecución del proyecto:",null,"C10",10,3]
["Formato A3F2","A03F2","Fecha inicio del proyecto:",null,"C11",11,3]
["Formato A3F2","A03F2","Fecha finalización del proyecto:",null,"C12",12,3]
["Formato A3F2","A03F2","Ubicación geográfica del compresor",null,"K5",5,11]
["Formato A3F2","A03F2","Latitud:",null,"K7",7,11]
["Formato A3F2","A03F2","Longitud:",null,"K9",9,11]
["Formato A3F2","A03F2","Altura:",null,"K11",11,11]
["Formato A3F2","A03F2","Caracterización compresor",null,"C15",15,3]
["Formato A3F2","A03F2","No. Unidad",null,"C16",16,3]
["Formato A3F2","A03F2","Tecnología ",null,"D16",16,4]
["Formato A3F2","A03F2","Potencia",null,"E16",16,5]
["Formato A3F2","A03F2","Presión mínima entrada",null,"F16",16,6]
["Formato A3F2","A03F2","Presión máxima salida",null,"G16",16,7]
["Formato A3F2","A03F2","Número de etapas",null,"H16",16,8]
["Formato A3F2","A03F2","Tipo de combustible que usa el compresor para operar ",null,"I16",16,9]
["Formato A3F2","A03F2","Consumo a plena carga [BTU/hora]",null,"J16",16,10]
["Formato A3F2","A03F2","Consumo a plena carga [kWh]",null,"K16",16,11]
["Formato A3F2","A03F2","Inversión total (a)",null,"L16",16,12]
["Formato A3F2","A03F2","Costo de equipos (b)",null,"M16",16,13]
["Formato A3F2","A03F2","Costo obra civil y mecánica (c) ",null,"N16",16,14]
["Formato A3F2","A03F2","Costo de permisos temporales servidumbres (d)",null,"O16",16,15]
["Formato A3F2","A03F2","Costo de inversión socio ambiental (e)",null,"P16",16,16]
["Formato A3F3","A03F3","Datos generales del proyecto",null,"B3",3,2]
["Formato A3F3","A03F3","Nombre:",null,"C5",5,3]
["Formato A3F3","A03F3","Tipo (a):",null,"C6",6,3]
["Formato A3F3","A03F3","Días de ejecución (c):",null,{"$f":"ADDRESS(F220,G220,4)","v":"C7"},7,3]
["Formato A3F3","A03F3","Fecha de inicio:",null,"C8",8,3]
["Formato A3F3","A03F3","Fecha de finalización:",null,"C9",9,3]
["Formato A3F3","A03F3","Gasoducto troncal asociado:",null,"C10",10,3]
["Formato A3F3","A03F3","Tipo de activo asociado:",null,"C11",11,3]
["Formato A3F3","A03F3","Nombre del activo asociado:",null,"C12",12,3]
["Formato A3F3","A03F3","No. del segmento reportado al que se conecta:",null,"C13",13,3]
["Formato A3F3","A03F3","Ubicación geográfica del proyecto",null,"P5",5,16]
["Formato A3F3","A03F3","Latitud (d):",null,"P7",7,16]
["Formato A3F3","A03F3","Longitud (d):",null,"P9",9,16]
["Formato A3F3","A03F3","Altura:",null,"P11",11,16]
["Formato A3F3","A03F3","Descripción del proyecto (b):",null,"C15",15,3]
["Formato A3F3","A03F3","Flujo de construcción",null,"B26",26,2]
["Formato A3F3","A03F3","No.",null,"B27",27,2]
["Formato A3F3","A03F3","Año",null,"C27",27,3]
["Formato A3F3","A03F3","Otras actividades (e)","Inversión total (e)","D27",27,4]
["Formato A3F3","A03F3","Costo de equipos (f)",null,"F27",27,6]
["Formato A3F3","A03F3","Costo obra civil y mecánica (g)",null,"H27",27,8]
["Formato A3F3","A03F3","Costo de permisos temporales servidumbres (h)",null,"K27",27,11]
["Formato A3F3","A03F3","Costo de inversión socio ambiental (i)",null,"P27",27,16]
["Formato A3F3","A03F3","Total",null,"T27",27,20]
["Formato A4F1","A04F1","Tramo:",null,"B3",3,2]
["Formato A4F1","A04F1","Año:",null,"B4",4,2]
["Formato A4F1","A04F1","Fecha base:",null,"B5",5,2]
["Formato A4F1","A04F1","Reconocido",null,"A9",9,1]
["Formato A4F1","A04F1","Código concepto",null,"B9",9,2]
["Formato A4F1","A04F1","Concepto",null,"C9",9,3]
["Formato A4F1","A04F1","Proceso operativo",null,"D7",7,4]
["Formato A4F1","A04F1",55155,null,"D8",8,4]
["Formato A4F1","A04F1",55157,null,"E8",8,5]
["Formato A4F1","A04F1",55159,null,"F8",8,6]
["Formato A4F1","A04F1",55160,null,"G8",8,7]
["Formato A4F1","A04F1",55161,null,"H8",8,8]
["Formato A4F1","A04F1","Coordinación transporte",null,"D9",9,4]
["Formato A4F1","A04F1","Operación sistema",null,"E9",9,5]
["Formato A4F1","A04F1","Mantenimiento",null,"F9",9,6]
["Formato A4F1","A04F1","Manejo de recursos naturales y del ambiente",null,"G9",9,7]
["Formato A4F1","A04F1","Control de calidad del servicio",null,"H9",9,8]
["Formato A4F1","A04F1","Subtotal proceso operativo",null,"I9",9,9]
["Formato A4F1","A04F1","Proceso comercial",null,"J7",7,10]
["Formato A4F1","A04F1",55175,null,"J8",8,10]
["Formato A4F1","A04F1",55178,null,"K8",8,11]
["Formato A4F1","A04F1",55179,null,"L8",8,12]
["Formato A4F1","A04F1",55181,null,"M8",8,13]
["Formato A4F1","A04F1",55183,null,"N8",8,14]
["Formato A4F1","A04F1","Mercadeo",null,"J9",9,10]
["Formato A4F1","A04F1","Gestión de gas",null,"K9",9,11]
["Formato A4F1","A04F1","Atención a clientes",null,"L9",9,12]
["Formato A4F1","A04F1","Facturación y recaudo",null,"M9",9,13]
["Formato A4F1","A04F1","Control comercial",null,"N9",9,14]
["Formato A4F1","A04F1","Subtotal proceso comercial",null,"O9",9,15]
["Formato A4F1","A04F1","Subtotal proceso estratégico y de soporte",null,"P9",9,16]
["Formato A4F1","A04F1","Total tramo",null,"Q9",9,17]
["Formato A4F1","A04F1","Otras actividades",null,"R7",7,18]
["Formato A4F1","A04F1",1,null,"R8",8,18]
["Formato A4F1","A04F1",2,null,"S8",8,19]
["Formato A4F1","A04F1",3,null,"T8",8,20]
["Formato A4F1","A04F1",4,null,"U8",8,21]
["Formato A4F1","A04F1",5,null,"V8",8,22]
["Formato A4F1","A04F1",6,null,"W8",8,23]
["Formato A4F1","A04F1",7,null,"X8",8,24]
["Formato A4F1","A04F1",8,null,"Y8",8,25]
["Formato A4F1","A04F1",9,null,"Z8",8,26]
["Formato A4F1","A04F1",10,null,"AA8",8,27]
["Formato A4F1","A04F1",11,null,{"$f":"ADDRESS(F284,G284,4)","v":"AB8"},8,28]
["Formato A4F1","A04F1","Gastos por concepto de compresión asociada al sistema de transporte",null,"R9",9,18]
["Formato A4F1","A04F1","Gastos por concepto de corridas con raspador inteligente",null,"S9",9,19]
["Formato A4F1","A04F1","Gastos asociados al lleno de línea",null,"T9",9,20]
["Formato A4F1","A04F1","Gastos asociados con otras actividades y otros agentes de la cadena de prestación del servicio",null,"U9",9,21]
["Formato A4F1","A04F1","Gastos asociados a activos de conexión al SNT",null,"V9",9,22]
["Formato A4F1","A04F1","Gastos asociados con la reposición de activos del tramo",null,"W9",9,23]
["Formato A4F1","A04F1","Erogaciones asociadas con los costos de la inversión en infraestructura",null,"X9",9,24]
["Formato A4F1","A04F1","Gastos de AOM asociados a puntos de entrada y salida",null,"Y9",9,25]
["Formato A4F1","A04F1","Gastos de AOM asociados a proyectos de IPAT","Gastos de AOM asociados a proyectos de IPAT o IFPNIt-1","Z9",9,26]
["Formato A4F1","A04F1","Gastos asociados al combustible utilizado para impulsar las estaciones",null,"AA9",9,27]
["Formato A4F1","A04F1","Gastos asociados con otras actividades y otros agentes de la cadena de prestación del servicio",null,"AB9",9,28]
["Formato A4F1","A04F1","Total gastos AOM otras actividades",null,"AC9",9,29]
["Formato A4F1","A04F1","Total gasto AOM transporte gas natural",null,"AD9",9,30]
["Formato A4F1","A04F1","Observaciones",null,"AE9",9,31]
["Formato A4F1","A04F1","5",null,"B10",10,2]
["Formato A4F1","A04F1",51,null,"B11",11,2]
["Formato A4F1","A04F1",5101,null,"B12",12,2]
["Formato A4F1","A04F1",510101,"510101","B13",13,2]
["Formato A4F1","A04F1",510102,null,"B14",14,2]
["Formato A4F1","A04F1",510103,null,"B15",15,2]
["Formato A4F1","A04F1",510108,null,"B16",16,2]
["Formato A4F1","A04F1",510119,null,"B17",17,2]
["Formato A4F1","A04F1",510123,null,"B18",18,2]
["Formato A4F1","A04F1",510145,null,"B19",19,2]
["Formato A4F1","A04F1",510159,null,"B20",20,2]
["Formato A4F1","A04F1",510160,null,"B21",21,2]
["Formato A4F1","A04F1",510190,null,"B22",22,2]
["Formato A4F1","A04F1",5107,null,"B23",23,2]
["Formato A4F1","A04F1",510701,null,"B24",24,2]
["Formato A4F1","A04F1",510702,null,"B25",25,2]
["Formato A4F1","A04F1",510703,null,"B26",26,2]
["Formato A4F1","A04F1",510704,null,"B27",27,2]
["Formato A4F1","A04F1",510705,null,"B28",28,2]
["Formato A4F1","A04F1",510706,null,"B29",29,2]
["Formato A4F1","A04F1",510790,null,"B30",30,2]
["Formato A4F1","A04F1",510795,null,"B31",31,2]
["Formato A4F1","A04F1",5108,null,"B32",32,2]
["Formato A4F1","A04F1",510801,null,"B33",33,2]
["Formato A4F1","A04F1",510802,null,"B34",34,2]
["Formato A4F1","A04F1",510803,null,"B35",35,2]
["Formato A4F1","A04F1",510804,null,"B36",36,2]
["Formato A4F1","A04F1",510805,null,"B37",37,2]
["Formato A4F1","A04F1",510806,null,"B38",38,2]
["Formato A4F1","A04F1",510807,null,"B39",39,2]
["Formato A4F1","A04F1",510808,null,"B40",40,2]
["Formato A4F1","A04F1",510809,null,"B41",41,2]
["Formato A4F1","A04F1",510810,null,"B42",42,2]
["Formato A4F1","A04F1",510811,null,"B43",43,2]
["Formato A4F1","A04F1",510812,null,"B44",44,2]
["Formato A4F1","A04F1",510890,null,"B45",45,2]
["Formato A4F1","A04F1",5102,null,"B46",46,2]
["Formato A4F1","A04F1",510201,null,"B47",47,2]
["Formato A4F1","A04F1",510202,null,"B48",48,2]
["Formato A4F1","A04F1",510203,null,"B49",49,2]
["Formato A4F1","A04F1",510204,null,"B50",50,2]
["Formato A4F1","A04F1",510205,null,"B51",51,2]
["Formato A4F1","A04F1",510206,null,"B52",52,2]
["Formato A4F1","A04F1",510207,null,"B53",53,2]
["Formato A4F1","A04F1",510208,null,"B54",54,2]
["Formato A4F1","A04F1",510209,null,"B55",55,2]
["Formato A4F1","A04F1",510210,null,"B56",56,2]
["Formato A4F1","A04F1",510211,null,"B57",57,2]
["Formato A4F1","A04F1",510212,null,"B58",58,2]
["Formato A4F1","A04F1",510213,null,{"$f":"ADDRESS(F348,G348,4)","v":"B59"},59,2]
["Formato A4F1","A04F1",510215,null,"B60",60,2]
["Formato A4F1","A04F1",510290,null,"B61",61,2]
["Formato A4F1","A04F1",5103,null,"B62",62,2]
["Formato A4F1","A04F1",510301,null,"B63",63,2]
["Formato A4F1","A04F1",510302,null,"B64",64,2]
["Formato A4F1","A04F1",510303,null,"B65",65,2]
["Formato A4F1","A04F1",510304,null,"B66",66,2]
["Formato A4F1","A04F1",510305,null,"B67",67,2]
["Formato A4F1","A04F1",510306,null,"B68",68,2]
["Formato A4F1","A04F1",510307,null,"B69",69,2]
["Formato A4F1","A04F1",510308,null,"B70",70,2]
["Formato A4F1","A04F1",510390,null,"B71",71,2]
["Formato A4F1","A04F1",5104,null,"B72",72,2]
["Formato A4F1","A04F1",510401,null,"B73",73,2]
["Formato A4F1","A04F1",510402,null,"B74",74,2]
["Formato A4F1","A04F1",510403,null,"B75",75,2]
["Formato A4F1","A04F1",510404,null,"B76",76,2]
["Formato A4F1","A04F1",510490,null,"B77",77,2]
["Formato A4F1","A04F1",5111,null,"B78",78,2]
["Formato A4F1","A04F1",511101,null,"B79",79,2]
["Formato A4F1","A04F1",511102,null,"B80",80,2]
["Formato A4F1","A04F1",511103,null,"B81",81,2]
["Formato A4F1","A04F1",511104,null,"B82",82,2]
["Formato A4F1","A04F1",511105,null,"B83",83,2]
["Formato A4F1","A04F1",511106,null,"B84",84,2]
["Formato A4F1","A04F1",511107,null,"B85",85,2]
["Formato A4F1","A04F1",511109,null,"B86",86,2]
["Formato A4F1","A04F1",511110,null,"B87",87,2]
["Formato A4F1","A04F1",511111,null,"B88",88,2]
["Formato A4F1","A04F1",511112,null,"B89",89,2]
["Formato A4F1","A04F1",511113,null,"B90",90,2]
["Formato A4F1","A04F1",511114,null,"B91",91,2]
["Formato A4F1","A04F1",511115,null,"B92",92,2]
["Formato A4F1","A04F1",511116,null,"B93",93,2]
["Formato A4F1","A04F1",511117,null,"B94",94,2]
["Formato A4F1","A04F1",511118,null,"B95",95,2]
["Formato A4F1","A04F1",511119,null,"B96",96,2]
["Formato A4F1","A04F1",511120,null,"B97",97,2]
["Formato A4F1","A04F1",511121,null,"B98",98,2]
["Formato A4F1","A04F1",511122,null,"B99",99,2]
["Formato A4F1","A04F1",511123,null,"B100",100,2]
["Formato A4F1","A04F1",511125,null,"B101",101,2]
["Formato A4F1","A04F1",511126,null,"B102",102,2]
["Formato A4F1","A04F1",511127,null,"B103",103,2]
["Formato A4F1","A04F1",511132,null,"B104",104,2]
["Formato A4F1","A04F1",511133,null,"B105",105,2]
["Formato A4F1","A04F1",511136,null,"B106",106,2]
["Formato A4F1","A04F1",511137,null,"B107",107,2]
["Formato A4F1","A04F1",511139,null,"B108",108,2]
["Formato A4F1","A04F1",511140,null,"B109",109,2]
["Formato A4F1","A04F1",511141,null,"B110",110,2]
["Formato A4F1","A04F1",511142,null,"B111",111,2]
["Formato A4F1","A04F1",511146,null,"B112",112,2]
["Formato A4F1","A04F1",511147,null,"B113",113,2]
["Formato A4F1","A04F1",511149,null,"B114",114,2]
["Formato A4F1","A04F1",511150,null,"B115",115,2]
["Formato A4F1","A04F1",511151,null,"B116",116,2]
["Formato A4F1","A04F1",511154,null,"B117",117,2]
["Formato A4F1","A04F1",511155,null,"B118",118,2]
["Formato A4F1","A04F1",511156,null,"B119",119,2]
["Formato A4F1","A04F1",511157,null,"B120",120,2]
["Formato A4F1","A04F1",511158,null,"B121",121,2]
["Formato A4F1","A04F1",511159,null,"B122",122,2]
["Formato A4F1","A04F1",511161,null,{"$f":"ADDRESS(F412,G412,4)","v":"B123"},123,2]
["Formato A4F1","A04F1",511162,null,"B124",124,2]
["Formato A4F1","A04F1",511163,null,"B125",125,2]
["Formato A4F1","A04F1",511190,null,"B126",126,2]
["Formato A4F1","A04F1",5120,null,"B127",127,2]
["Formato A4F1","A04F1",512001,null,"B128",128,2]
["Formato A4F1","A04F1",512002,null,"B129",129,2]
["Formato A4F1","A04F1",512006,null,"B130",130,2]
["Formato A4F1","A04F1",512007,null,"B131",131,2]
["Formato A4F1","A04F1",512008,null,"B132",132,2]
["Formato A4F1","A04F1",512009,null,"B133",133,2]
["Formato A4F1","A04F1",512010,null,"B134",134,2]
["Formato A4F1","A04F1",512011,null,"B135",135,2]
["Formato A4F1","A04F1",512012,null,"B136",136,2]
["Formato A4F1","A04F1",512013,null,"B137",137,2]
["Formato A4F1","A04F1",512017,null,"B138",138,2]
["Formato A4F1","A04F1",512018,null,"B139",139,2]
["Formato A4F1","A04F1",512019,null,"B140",140,2]
["Formato A4F1","A04F1",512021,null,"B141",141,2]
["Formato A4F1","A04F1",512022,null,"B142",142,2]
["Formato A4F1","A04F1",512023,null,"B143",143,2]
["Formato A4F1","A04F1",512024,null,"B144",144,2]
["Formato A4F1","A04F1",512025,null,"B145",145,2]
["Formato A4F1","A04F1",512026,null,"B146",146,2]
["Formato A4F1","A04F1",512027,null,"B147",147,2]
["Formato A4F1","A04F1",512028,null,"B148",148,2]
["Formato A4F1","A04F1",512029,null,"B149",149,2]
["Formato A4F1","A04F1",512032,null,"B150",150,2]
["Formato A4F1","A04F1",512033,null,"B151",151,2]
["Formato A4F1","A04F1",512034,null,"B152",152,2]
["Formato A4F1","A04F1",512036,null,"B153",153,2]
["Formato A4F1","A04F1","512037",null,"B154",154,2]
["Formato A4F1","A04F1","512038",null,"B155",155,2]
["Formato A4F1","A04F1",512090,null,"B156",156,2]
["Formato A4F1","A04F1",53,null,"B157",157,2]
["Formato A4F1","A04F1",5301,null,"B158",158,2]
["Formato A4F1","A04F1",530101,null,"B159",159,2]
["Formato A4F1","A04F1",530190,null,"B160",160,2]
["Formato A4F1","A04F1",5302,null,"B161",161,2]
["Formato A4F1","A04F1",530201,null,"B162",162,2]
["Formato A4F1","A04F1",530290,null,"B163",163,2]
["Formato A4F1","A04F1",5303,null,"B164",164,2]
["Formato A4F1","A04F1",530301,null,"B165",165,2]
["Formato A4F1","A04F1",530390,null,"B166",166,2]
["Formato A4F1","A04F1",5304,null,"B167",167,2]
["Formato A4F1","A04F1",530401,null,"B168",168,2]
["Formato A4F1","A04F1",530402,null,"B169",169,2]
["Formato A4F1","A04F1",null,null,"B170",170,2]
["Formato A4F1","A04F1",530490,null,"B171",171,2]
["Formato A4F1","A04F1",58,null,"B172",172,2]
["Formato A4F1","A04F1",5821,null,"B173",173,2]
["Formato A4F1","A04F1",582101,null,"B174",174,2]
["Formato A4F1","A04F1",582190,null,"B175",175,2]
["Formato A4F1","A04F1",7,null,"B176",176,2]
["Formato A4F1","A04F1",75,null,"B177",177,2]
["Formato A4F1","A04F1",7505,null,"B178",178,2]
["Formato A4F1","A04F1",750501,null,"B179",179,2]
["Formato A4F1","A04F1",750502,null,"B180",180,2]
["Formato A4F1","A04F1",750503,null,"B181",181,2]
["Formato A4F1","A04F1",750504,null,"B182",182,2]
["Formato A4F1","A04F1",750505,null,"B183",183,2]
["Formato A4F1","A04F1",750506,null,"B184",184,2]
["Formato A4F1","A04F1",750507,null,"B185",185,2]
["Formato A4F1","A04F1",750508,null,"B186",186,2]
["Formato A4F1","A04F1",750510,null,{"$f":"ADDRESS(F476,G476,4)","v":"B187"},187,2]
["Formato A4F1","A04F1",750511,null,"B188",188,2]
["Formato A4F1","A04F1",750512,null,"B189",189,2]
["Formato A4F1","A04F1",750513,null,"B190",190,2]
["Formato A4F1","A04F1",750514,null,"B191",191,2]
["Formato A4F1","A04F1",750515,null,"B192",192,2]
["Formato A4F1","A04F1",750516,null,"B193",193,2]
["Formato A4F1","A04F1",750517,null,"B194",194,2]
["Formato A4F1","A04F1",750518,null,"B195",195,2]
["Formato A4F1","A04F1",750519,null,"B196",196,2]
["Formato A4F1","A04F1",750520,null,"B197",197,2]
["Formato A4F1","A04F1",750521,null,"B198",198,2]
["Formato A4F1","A04F1",750522,null,"B199",199,2]
["Formato A4F1","A04F1",750523,null,"B200",200,2]
["Formato A4F1","A04F1",750524,null,"B201",201,2]
["Formato A4F1","A04F1",750525,null,"B202",202,2]
["Formato A4F1","A04F1",750529,null,"B203",203,2]
["Formato A4F1","A04F1",750530,null,"B204",204,2]
["Formato A4F1","A04F1",750531,null,"B205",205,2]
["Formato A4F1","A04F1",750533,null,"B206",206,2]
["Formato A4F1","A04F1",750535,null,"B207",207,2]
["Formato A4F1","A04F1",750536,null,"B208",208,2]
["Formato A4F1","A04F1",750537,null,"B209",209,2]
["Formato A4F1","A04F1",750538,null,"B210",210,2]
["Formato A4F1","A04F1",750539,null,"B211",211,2]
["Formato A4F1","A04F1",750540,null,"B212",212,2]
["Formato A4F1","A04F1",750541,null,"B213",213,2]
["Formato A4F1","A04F1",750543,null,"B214",214,2]
["Formato A4F1","A04F1",750544,null,"B215",215,2]
["Formato A4F1","A04F1",750545,null,"B216",216,2]
["Formato A4F1","A04F1",750546,null,"B217",217,2]
["Formato A4F1","A04F1",750547,null,"B218",218,2]
["Formato A4F1","A04F1",750548,null,"B219",219,2]
["Formato A4F1","A04F1",750549,null,"B220",220,2]
["Formato A4F1","A04F1",750552,null,"B221",221,2]
["Formato A4F1","A04F1",750562,null,"B222",222,2]
["Formato A4F1","A04F1",750567,null,"B223",223,2]
["Formato A4F1","A04F1",750568,null,"B224",224,2]
["Formato A4F1","A04F1",750569,null,"B225",225,2]
["Formato A4F1","A04F1",750570,null,"B226",226,2]
["Formato A4F1","A04F1",750571,null,"B227",227,2]
["Formato A4F1","A04F1",750572,null,"B228",228,2]
["Formato A4F1","A04F1",750573,null,"B229",229,2]
["Formato A4F1","A04F1",750574,null,"B230",230,2]
["Formato A4F1","A04F1",750575,null,"B231",231,2]
["Formato A4F1","A04F1",750576,null,"B232",232,2]
["Formato A4F1","A04F1",750577,null,"B233",233,2]
["Formato A4F1","A04F1",750578,null,"B234",234,2]
["Formato A4F1","A04F1",750579,"750579","B235",235,2]
["Formato A4F1","A04F1",750580,null,"B236",236,2]
["Formato A4F1","A04F1",750581,null,"B237",237,2]
["Formato A4F1","A04F1",750582,null,"B238",238,2]
["Formato A4F1","A04F1",750590,null,"B239",239,2]
["Formato A4F1","A04F1",7510,null,"B240",240,2]
["Formato A4F1","A04F1",751001,null,"B241",241,2]
["Formato A4F1","A04F1",751003,null,"B242",242,2]
["Formato A4F1","A04F1",751004,null,"B243",243,2]
["Formato A4F1","A04F1",751006,null,"B244",244,2]
["Formato A4F1","A04F1",751013,null,"B245",245,2]
["Formato A4F1","A04F1",751015,null,"B246",246,2]
["Formato A4F1","A04F1",751019,null,"B247",247,2]
["Formato A4F1","A04F1",751023,null,"B248",248,2]
["Formato A4F1","A04F1",751024,null,"B249",249,2]
["Formato A4F1","A04F1",751025,null,"B250",250,2]
["Formato A4F1","A04F1",751026,null,{"$f":"ADDRESS(F540,G540,4)","v":"B251"},251,2]
["Formato A4F1","A04F1",751027,null,"B252",252,2]
["Formato A4F1","A04F1",751028,null,"B253",253,2]
["Formato A4F1","A04F1",751036,null,"B254",254,2]
["Formato A4F1","A04F1",751037,null,"B255",255,2]
["Formato A4F1","A04F1",751038,null,"B256",256,2]
["Formato A4F1","A04F1",751039,null,"B257",257,2]
["Formato A4F1","A04F1",751040,null,"B258",258,2]
["Formato A4F1","A04F1",751041,null,"B259",259,2]
["Formato A4F1","A04F1",751042,null,"B260",260,2]
["Formato A4F1","A04F1",751043,null,"B261",261,2]
["Formato A4F1","A04F1",751044,null,"B262",262,2]
["Formato A4F1","A04F1",751045,null,"B263",263,2]
["Formato A4F1","A04F1",751046,null,"B264",264,2]
["Formato A4F1","A04F1",751047,null,"B265",265,2]
["Formato A4F1","A04F1",751048,null,"B266",266,2]
["Formato A4F1","A04F1",751049,null,"B267",267,2]
["Formato A4F1","A04F1",751050,null,"B268",268,2]
["Formato A4F1","A04F1",751090,null,"B269",269,2]
["Formato A4F1","A04F1",7515,null,"B270",270,2]
["Formato A4F1","A04F1",751501,null,"B271",271,2]
["Formato A4F1","A04F1",751590,null,"B272",272,2]
["Formato A4F1","A04F1",7517,null,"B273",273,2]
["Formato A4F1","A04F1",751701,null,"B274",274,2]
["Formato A4F1","A04F1",751702,null,"B275",275,2]
["Formato A4F1","A04F1",751703,null,"B276",276,2]
["Formato A4F1","A04F1",751704,null,"B277",277,2]
["Formato A4F1","A04F1",751705,null,"B278",278,2]
["Formato A4F1","A04F1",751706,null,"B279",279,2]
["Formato A4F1","A04F1",751707,null,"B280",280,2]
["Formato A4F1","A04F1",751790,null,"B281",281,2]
["Formato A4F1","A04F1",7520,null,"B282",282,2]
["Formato A4F1","A04F1",752006,null,"B283",283,2]
["Formato A4F1","A04F1",null,null,"B284",284,2]
["Formato A4F1","A04F1",752090,null,"B285",285,2]
["Formato A4F1","A04F1",7525,null,"B286",286,2]
["Formato A4F1","A04F1",752501,null,"B287",287,2]
["Formato A4F1","A04F1",752590,null,"B288",288,2]
["Formato A4F1","A04F1",7530,null,"B289",289,2]
["Formato A4F1","A04F1",753004,null,"B290",290,2]
["Formato A4F1","A04F1",753090,null,"B291",291,2]
["Formato A4F1","A04F1",7535,null,"B292",292,2]
["Formato A4F1","A04F1",753504,null,"B293",293,2]
["Formato A4F1","A04F1",753505,null,"B294",294,2]
["Formato A4F1","A04F1",753506,null,"B295",295,2]
["Formato A4F1","A04F1",753507,null,"B296",296,2]
["Formato A4F1","A04F1",753508,null,"B297",297,2]
["Formato A4F1","A04F1",753509,null,"B298",298,2]
["Formato A4F1","A04F1",753510,null,"B299",299,2]
["Formato A4F1","A04F1",753511,null,"B300",300,2]
["Formato A4F1","A04F1",753512,null,"B301",301,2]
["Formato A4F1","A04F1",753513,null,"B302",302,2]
["Formato A4F1","A04F1",753590,null,"B303",303,2]
["Formato A4F1","A04F1",7537,null,"B304",304,2]
["Formato A4F1","A04F1",753701,null,"B305",305,2]
["Formato A4F1","A04F1",753702,null,"B306",306,2]
["Formato A4F1","A04F1",753703,null,"B307",307,2]
["Formato A4F1","A04F1",753704,null,"B308",308,2]
["Formato A4F1","A04F1",753705,null,"B309",309,2]
["Formato A4F1","A04F1",753790,null,"B310",310,2]
["Formato A4F1","A04F1",7540,null,"B311",311,2]
["Formato A4F1","A04F1",754001,null,"B312",312,2]
["Formato A4F1","A04F1",754002,null,"B313",313,2]
["Formato A4F1","A04F1",754003,null,"B314",314,2]
["Formato A4F1","A04F1",754004,null,{"$f":"ADDRESS(F604,G604,4)","v":"B315"},315,2]
["Formato A4F1","A04F1",754005,null,"B316",316,2]
["Formato A4F1","A04F1",754006,null,"B317",317,2]
["Formato A4F1","A04F1",754007,null,"B318",318,2]
["Formato A4F1","A04F1",754008,null,"B319",319,2]
["Formato A4F1","A04F1",754009,null,"B320",320,2]
["Formato A4F1","A04F1",754010,null,"B321",321,2]
["Formato A4F1","A04F1",754011,null,"B322",322,2]
["Formato A4F1","A04F1",754012,null,"B323",323,2]
["Formato A4F1","A04F1",754013,null,"B324",324,2]
["Formato A4F1","A04F1",754014,null,"B325",325,2]
["Formato A4F1","A04F1",754015,null,"B326",326,2]
["Formato A4F1","A04F1",754090,null,"B327",327,2]
["Formato A4F1","A04F1",7542,null,"B328",328,2]
["Formato A4F1","A04F1",754204,null,"B329",329,2]
["Formato A4F1","A04F1",754207,null,"B330",330,2]
["Formato A4F1","A04F1",754208,null,"B331",331,2]
["Formato A4F1","A04F1",754290,null,"B332",332,2]
["Formato A4F1","A04F1",7545,null,"B333",333,2]
["Formato A4F1","A04F1",754501,null,"B334",334,2]
["Formato A4F1","A04F1",754502,null,"B335",335,2]
["Formato A4F1","A04F1",754590,null,"B336",336,2]
["Formato A4F1","A04F1",7550,null,"B337",337,2]
["Formato A4F1","A04F1",755001,null,"B338",338,2]
["Formato A4F1","A04F1",755002,null,"B339",339,2]
["Formato A4F1","A04F1",755003,null,"B340",340,2]
["Formato A4F1","A04F1",755004,null,"B341",341,2]
["Formato A4F1","A04F1",755005,null,"B342",342,2]
["Formato A4F1","A04F1",755006,null,"B343",343,2]
["Formato A4F1","A04F1",755007,null,"B344",344,2]
["Formato A4F1","A04F1",755008,null,"B345",345,2]
["Formato A4F1","A04F1",755009,null,"B346",346,2]
["Formato A4F1","A04F1",755010,null,"B347",347,2]
["Formato A4F1","A04F1",755011,null,"B348",348,2]
["Formato A4F1","A04F1",755012,null,"B349",349,2]
["Formato A4F1","A04F1",755013,null,"B350",350,2]
["Formato A4F1","A04F1",755014,null,"B351",351,2]
["Formato A4F1","A04F1",755015,null,"B352",352,2]
["Formato A4F1","A04F1",755090,null,"B353",353,2]
["Formato A4F1","A04F1",7560,null,"B354",354,2]
["Formato A4F1","A04F1",756001,null,"B355",355,2]
["Formato A4F1","A04F1",756002,null,"B356",356,2]
["Formato A4F1","A04F1",756003,null,"B357",357,2]
["Formato A4F1","A04F1",756004,null,"B358",358,2]
["Formato A4F1","A04F1",756005,null,"B359",359,2]
["Formato A4F1","A04F1",756006,null,"B360",360,2]
["Formato A4F1","A04F1",756007,null,"B361",361,2]
["Formato A4F1","A04F1",756008,null,"B362",362,2]
["Formato A4F1","A04F1",756009,null,"B363",363,2]
["Formato A4F1","A04F1",756010,null,"B364",364,2]
["Formato A4F1","A04F1",756011,null,"B365",365,2]
["Formato A4F1","A04F1",756012,null,"B366",366,2]
["Formato A4F1","A04F1",756090,null,"B367",367,2]
["Formato A4F1","A04F1",7565,null,"B368",368,2]
["Formato A4F1","A04F1",756502,null,"B369",369,2]
["Formato A4F1","A04F1",756503,null,"B370",370,2]
["Formato A4F1","A04F1",756504,null,"B371",371,2]
["Formato A4F1","A04F1",756505,null,"B372",372,2]
["Formato A4F1","A04F1",756506,null,"B373",373,2]
["Formato A4F1","A04F1",756507,null,"B374",374,2]
["Formato A4F1","A04F1",756508,null,"B375",375,2]
["Formato A4F1","A04F1",756510,null,"B376",376,2]
["Formato A4F1","A04F1",756590,null,"B377",377,2]
["Formato A4F1","A04F1",7570,null,"B378",378,2]
["Formato A4F1","A04F1",757001,null,{"$f":"ADDRESS(F668,G668,4)","v":"B379"},379,2]
["Formato A4F1","A04F1",757002,null,"B380",380,2]
["Formato A4F1","A04F1",757003,null,"B381",381,2]
["Formato A4F1","A04F1",757004,null,"B382",382,2]
["Formato A4F1","A04F1",757005,null,"B383",383,2]
["Formato A4F1","A04F1",757006,null,"B384",384,2]
["Formato A4F1","A04F1",757007,null,"B385",385,2]
["Formato A4F1","A04F1",757008,null,"B386",386,2]
["Formato A4F1","A04F1",757009,null,"B387",387,2]
["Formato A4F1","A04F1",757090,null,"B388",388,2]
["Formato A4F1","A04F1","GASTOS",null,"C10",10,3]
["Formato A4F1","A04F1","DE ADMINISTRACIÓN",null,"C11",11,3]
["Formato A4F1","A04F1","SUELDOS Y SALARIOS",null,"C12",12,3]
["Formato A4F1","A04F1","Sueldos",null,"C13",13,3]
["Formato A4F1","A04F1","Jornales",null,"C14",14,3]
["Formato A4F1","A04F1","Horas extras y festivos",null,"C15",15,3]
["Formato A4F1","A04F1","Sueldo por comisiones al exterior",null,"C16",16,3]
["Formato A4F1","A04F1","Bonificaciones",null,"C17",17,3]
["Formato A4F1","A04F1","Auxilio de transporte",null,"C18",18,3]
["Formato A4F1","A04F1","Salario integral",null,"C19",19,3]
["Formato A4F1","A04F1","Subsidio de vivienda",null,"C20",20,3]
["Formato A4F1","A04F1","Subsidio de alimentación",null,"C21",21,3]
["Formato A4F1","A04F1","Otros sueldos y salarios",null,"C22",22,3]
["Formato A4F1","A04F1","PRESTACIONES SOCIALES",null,"C23",23,3]
["Formato A4F1","A04F1","Vacaciones",null,"C24",24,3]
["Formato A4F1","A04F1","Cesantías",null,"C25",25,3]
["Formato A4F1","A04F1","Intereses a las cesantías",null,"C26",26,3]
["Formato A4F1","A04F1","Prima de vacaciones",null,"C27",27,3]
["Formato A4F1","A04F1","Prima de navidad",null,"C28",28,3]
["Formato A4F1","A04F1","Prima de servicios",null,"C29",29,3]
["Formato A4F1","A04F1","Otras primas",null,"C30",30,3]
["Formato A4F1","A04F1","Otras prestaciones sociales",null,"C31",31,3]
["Formato A4F1","A04F1","GASTOS DE PERSONAL DIVERSOS",null,"C32",32,3]
["Formato A4F1","A04F1","Remuneración por servicios técnicos",null,"C33",33,3]
["Formato A4F1","A04F1","Honorarios",null,"C34",34,3]
["Formato A4F1","A04F1","Capacitación, bienestar social y estímulos",null,"C35",35,3]
["Formato A4F1","A04F1","Dotación y suministro a trabajadores",null,"C36",36,3]
["Formato A4F1","A04F1","Gastos deportivos y de recreación",null,"C37",37,3]
["Formato A4F1","A04F1","Contratos de personal temporal",null,"C38",38,3]
["Formato A4F1","A04F1","Gastos de viaje",null,"C39",39,3]
["Formato A4F1","A04F1","Remuneración electoral",null,"C40",40,3]
["Formato A4F1","A04F1","Gastos de representación",null,"C41",41,3]
["Formato A4F1","A04F1","Viáticos",null,"C42",42,3]
["Formato A4F1","A04F1","Ajuste beneficios posempleo",null,"C43",43,3]
["Formato A4F1","A04F1","Ajuste beneficios a los empleados a largo plazo",null,"C44",44,3]
["Formato A4F1","A04F1","Otros gastos de personal diversos",null,"C45",45,3]
["Formato A4F1","A04F1","CONTRIBUCIONES IMPUTADAS",null,"C46",46,3]
["Formato A4F1","A04F1","Incapacidades",null,"C47",47,3]
["Formato A4F1","A04F1","Subsidio familiar",null,"C48",48,3]
["Formato A4F1","A04F1","Indemnizaciones",null,"C49",49,3]
["Formato A4F1","A04F1","Gastos médicos y drogas",null,"C50",50,3]
["Formato A4F1","A04F1","Auxilio y servicios funerarios",null,"C51",51,3]
["Formato A4F1","A04F1","Pensiones de jubilación patronales",null,"C52",52,3]
["Formato A4F1","A04F1","Cuotas partes de pensiones",null,"C53",53,3]
["Formato A4F1","A04F1","Indemnizaciones sustitutivas",null,"C54",54,3]
["Formato A4F1","A04F1","Amortización cálculo actuarial pensiones actuales",null,"C55",55,3]
["Formato A4F1","A04F1","Amortización cálculo actuarial de futuras pensiones",null,"C56",56,3]
["Formato A4F1","A04F1","Amort. cálculo actuarial de futuras cuotas partes de pensiones",null,"C57",57,3]
["Formato A4F1","A04F1","Amort. Liquid. provisional de cuotas partes de bono pensional",null,"C58",58,3]
["Formato A4F1","A04F1","Cuotas partes de bonos pensionales emitidos",null,"C59",59,3]
["Formato A4F1","A04F1","Subsidio por dependiente",null,"C60",60,3]
["Formato A4F1","A04F1","Otras contribuciones imputadas",null,"C61",61,3]
["Formato A4F1","A04F1","CONTRIBUCIONES EFECTIVAS",null,"C62",62,3]
["Formato A4F1","A04F1","Seguros de vida",null,"C63",63,3]
["Formato A4F1","A04F1","Aportes a cajas de compensación familiar",null,{"$f":"ADDRESS(F732,G732,4)","v":"C64"},64,3]
["Formato A4F1","A04F1","Cotizaciones a seguridad social en salud",null,"C65",65,3]
["Formato A4F1","A04F1","Aportes sindicales",null,"C66",66,3]
["Formato A4F1","A04F1","Cotizaciones a riesgos laborales",null,"C67",67,3]
["Formato A4F1","A04F1","Cotizaciones a entid. administ. del régimen de prima media",null,"C68",68,3]
["Formato A4F1","A04F1","Cotizaciones a entid. administ. del régimen de ahorro individual",null,"C69",69,3]
["Formato A4F1","A04F1","Medicina prepagada",null,"C70",70,3]
["Formato A4F1","A04F1","Otras contribuciones efectivas",null,"C71",71,3]
["Formato A4F1","A04F1","APORTES SOBRE LA NOMINA",null,"C72",72,3]
["Formato A4F1","A04F1","Aportes al ICBF",null,"C73",73,3]
["Formato A4F1","A04F1","Aportes al SENA",null,"C74",74,3]
["Formato A4F1","A04F1","Aportes ESAP",null,"C75",75,3]
["Formato A4F1","A04F1","Aportes a escuelas industriales e institutos técnicos",null,"C76",76,3]
["Formato A4F1","A04F1","Otros aportes sobre la nómina",null,"C77",77,3]
["Formato A4F1","A04F1","GENERALES",null,"C78",78,3]
["Formato A4F1","A04F1","Moldes y troqueles",null,"C79",79,3]
["Formato A4F1","A04F1","Material quirúrgico",null,"C80",80,3]
["Formato A4F1","A04F1","Elementos de lencería y ropería",null,"C81",81,3]
["Formato A4F1","A04F1","Loza y cristalería",null,"C82",82,3]
["Formato A4F1","A04F1","Gastos de organización y puesta en marcha",null,"C83",83,3]
["Formato A4F1","A04F1","Estudios y proyectos",null,"C84",84,3]
["Formato A4F1","A04F1","Gastos de exploración",null,"C85",85,3]
["Formato A4F1","A04F1","Gastos de desarrollo",null,"C86",86,3]
["Formato A4F1","A04F1","Gastos de asociación",null,"C87",87,3]
["Formato A4F1","A04F1","Comisiones, honorarios y servicios",null,"C88",88,3]
["Formato A4F1","A04F1","Obras y mejoras en propiedad ajena",null,"C89",89,3]
["Formato A4F1","A04F1","Vigilancia y seguridad",null,"C90",90,3]
["Formato A4F1","A04F1","Materiales y suministros",null,"C91",91,3]
["Formato A4F1","A04F1","Mantenimiento",null,"C92",92,3]
["Formato A4F1","A04F1","Reparaciones",null,"C93",93,3]
["Formato A4F1","A04F1","Servicios públicos",null,"C94",94,3]
["Formato A4F1","A04F1","Arrendamiento operativo",null,"C95",95,3]
["Formato A4F1","A04F1","Viáticos y gastos de viaje",null,"C96",96,3]
["Formato A4F1","A04F1","Publicidad y propaganda",null,"C97",97,3]
["Formato A4F1","A04F1","Impresos, publicaciones, suscripciones y afiliaciones",null,"C98",98,3]
["Formato A4F1","A04F1","Fotocopias",null,"C99",99,3]
["Formato A4F1","A04F1","Comunicaciones y transporte",null,"C100",100,3]
["Formato A4F1","A04F1","Seguros generales",null,"C101",101,3]
["Formato A4F1","A04F1","Imprevistos",null,"C102",102,3]
["Formato A4F1","A04F1","Promoción y divulgación",null,"C103",103,3]
["Formato A4F1","A04F1","Diseños y estudios",null,"C104",104,3]
["Formato A4F1","A04F1","Seguridad industrial",null,"C105",105,3]
["Formato A4F1","A04F1","Implementos deportivos",null,"C106",106,3]
["Formato A4F1","A04F1","Eventos culturales",null,"C107",107,3]
["Formato A4F1","A04F1","Participaciones y compensaciones",null,"C108",108,3]
["Formato A4F1","A04F1","Contratos de administración",null,"C109",109,3]
["Formato A4F1","A04F1","Sostenimiento de semovientes",null,"C110",110,3]
["Formato A4F1","A04F1","Gastos de operación aduanera",null,"C111",111,3]
["Formato A4F1","A04F1","Combustibles y lubricantes",null,"C112",112,3]
["Formato A4F1","A04F1","Servicios portuarios y aeroportuarios",null,"C113",113,3]
["Formato A4F1","A04F1","Servicios de aseo, cafetería, restaurante y lavandería",null,"C114",114,3]
["Formato A4F1","A04F1","Procesamiento de información",null,"C115",115,3]
["Formato A4F1","A04F1","Gastos por control de calidad",null,"C116",116,3]
["Formato A4F1","A04F1","Organización de eventos",null,"C117",117,3]
["Formato A4F1","A04F1","Elementos de aseo, lavandería y cafetería",null,"C118",118,3]
["Formato A4F1","A04F1","Bodegaje",null,"C119",119,3]
["Formato A4F1","A04F1","Concursos y licitaciones",null,"C120",120,3]
["Formato A4F1","A04F1","Videos",null,"C121",121,3]
["Formato A4F1","A04F1","Licencias y salvoconductos",null,"C122",122,3]
["Formato A4F1","A04F1","Relaciones publicas",null,"C123",123,3]
["Formato A4F1","A04F1","Equipo de seguridad industrial",null,"C124",124,3]
["Formato A4F1","A04F1","Contratos de aprendizaje",null,"C125",125,3]
["Formato A4F1","A04F1","Otros gastos generales",null,"C126",126,3]
["Formato A4F1","A04F1","IMPUESTOS, CONTRIBUCIONES Y TASAS",null,"C127",127,3]
["Formato A4F1","A04F1","Impuesto predial unificado",null,{"$f":"ADDRESS(F796,G796,4)","v":"C128"},128,3]
["Formato A4F1","A04F1","Cuota de fiscalización y auditaje",null,"C129",129,3]
["Formato A4F1","A04F1","Valorización",null,"C130",130,3]
["Formato A4F1","A04F1","Multas",null,"C131",131,3]
["Formato A4F1","A04F1","Sanciones",null,"C132",132,3]
["Formato A4F1","A04F1","Impuesto de industria y comercio",null,"C133",133,3]
["Formato A4F1","A04F1","Tasas",null,"C134",134,3]
["Formato A4F1","A04F1","Impuesto sobre vehículos automotores",null,"C135",135,3]
["Formato A4F1","A04F1","Impuesto de registro",null,"C136",136,3]
["Formato A4F1","A04F1","Regalías y compensaciones monetarias",null,"C137",137,3]
["Formato A4F1","A04F1","Intereses de mora",null,"C138",138,3]
["Formato A4F1","A04F1","Impuesto a las ventas, IVA no descontable",null,"C139",139,3]
["Formato A4F1","A04F1","Registro y salvoconducto",null,"C140",140,3]
["Formato A4F1","A04F1","Impuesto para preservar la seguridad democrática",null,"C141",141,3]
["Formato A4F1","A04F1","Peajes",null,"C142",142,3]
["Formato A4F1","A04F1","Impuesto al patrimonio",null,"C143",143,3]
["Formato A4F1","A04F1","Gravamen a los movimientos financieros",null,"C144",144,3]
["Formato A4F1","A04F1","Impuesto de timbre",null,"C145",145,3]
["Formato A4F1","A04F1","Contribuciones",null,"C146",146,3]
["Formato A4F1","A04F1","Licencias",null,"C147",147,3]
["Formato A4F1","A04F1","Impuestos sobre aduana y recargos",null,"C148",148,3]
["Formato A4F1","A04F1","Impuestos, contribuciones y tasas en el exterior",null,"C149",149,3]
["Formato A4F1","A04F1","Impuesto a la riqueza",null,"C150",150,3]
["Formato A4F1","A04F1","Impto comp. de normalización tributaria al impto a la riqueza",null,"C151",151,3]
["Formato A4F1","A04F1","Notariales",null,"C152",152,3]
["Formato A4F1","A04F1","Impuesto sobre el servicio de alumbrado público",null,"C153",153,3]
["Formato A4F1","A04F1","Impuestos territoriales - estampilla",null,"C154",154,3]
["Formato A4F1","A04F1","Sobretasa bomberil",null,"C155",155,3]
["Formato A4F1","A04F1","Otros impuestos",null,"C156",156,3]
["Formato A4F1","A04F1","DETERIORO, DEPRECIACIONES, AMORTIZACIONES Y PROVISIONES",null,"C157",157,3]
["Formato A4F1","A04F1","DETERIORO",null,"C158",158,3]
["Formato A4F1","A04F1","Deterioro de activos fijos",null,"C159",159,3]
["Formato A4F1","A04F1","Otros deterioros",null,"C160",160,3]
["Formato A4F1","A04F1","PROVISIONES",null,"C161",161,3]
["Formato A4F1","A04F1","Provisión para deudores",null,"C162",162,3]
["Formato A4F1","A04F1","Otras provisiones",null,"C163",163,3]
["Formato A4F1","A04F1","DEPRECIACIONES",null,"C164",164,3]
["Formato A4F1","A04F1","Depreciación de plantas, ductos y túneles",null,"C165",165,3]
["Formato A4F1","A04F1","Otras depreciaciones",null,"C166",166,3]
["Formato A4F1","A04F1","AMORTIZACIONES",null,"C167",167,3]
["Formato A4F1","A04F1","Licencias",null,"C168",168,3]
["Formato A4F1","A04F1","Software",null,"C169",169,3]
["Formato A4F1","A04F1","Arriendos",null,"C170",170,3]
["Formato A4F1","A04F1","Otras amortizaciones",null,"C171",171,3]
["Formato A4F1","A04F1","OTROS GASTOS",null,"C172",172,3]
["Formato A4F1","A04F1","IMPUESTO A LAS GANANCIAS - CORRIENTE",null,"C173",173,3]
["Formato A4F1","A04F1","Impuesto sobre la renta y complementarios",null,"C174",174,3]
["Formato A4F1","A04F1","Otros gastos diversos",null,"C175",175,3]
["Formato A4F1","A04F1","COSTOS",null,"C176",176,3]
["Formato A4F1","A04F1","SERVICIOS PUBLICOS",null,"C177",177,3]
["Formato A4F1","A04F1","SERVICIOS PERSONALES",null,"C178",178,3]
["Formato A4F1","A04F1","Sueldos de personal",null,"C179",179,3]
["Formato A4F1","A04F1","Jornales",null,"C180",180,3]
["Formato A4F1","A04F1","Horas extras y festivos",null,"C181",181,3]
["Formato A4F1","A04F1","Incapacidades",null,"C182",182,3]
["Formato A4F1","A04F1","Costos de representación",null,"C183",183,3]
["Formato A4F1","A04F1","Remuneración servicios técnicos",null,"C184",184,3]
["Formato A4F1","A04F1","Personal supernumerario",null,"C185",185,3]
["Formato A4F1","A04F1","Sueldos por comisiones al exterior",null,"C186",186,3]
["Formato A4F1","A04F1","Primas técnicas",null,"C187",187,3]
["Formato A4F1","A04F1","Prima de dirección",null,"C188",188,3]
["Formato A4F1","A04F1","Prima especial de servicios",null,"C189",189,3]
["Formato A4F1","A04F1","Prima de vacaciones",null,"C190",190,3]
["Formato A4F1","A04F1","Prima de navidad",null,"C191",191,3]
["Formato A4F1","A04F1","Primas extra legales",null,{"$f":"ADDRESS(F860,G860,4)","v":"C192"},192,3]
["Formato A4F1","A04F1","Primas extraordinarias",null,"C193",193,3]
["Formato A4F1","A04F1","Otras primas",null,"C194",194,3]
["Formato A4F1","A04F1","Vacaciones",null,"C195",195,3]
["Formato A4F1","A04F1","Bonificación especial de recreación",null,"C196",196,3]
["Formato A4F1","A04F1","Bonificaciones",null,"C197",197,3]
["Formato A4F1","A04F1","Subsidio familiar",null,"C198",198,3]
["Formato A4F1","A04F1","Subsidio de alimentación",null,"C199",199,3]
["Formato A4F1","A04F1","Auxilio de transporte",null,"C200",200,3]
["Formato A4F1","A04F1","Cesantías",null,"C201",201,3]
["Formato A4F1","A04F1","Intereses a las cesantías",null,"C202",202,3]
["Formato A4F1","A04F1","Indemnizaciones",null,"C203",203,3]
["Formato A4F1","A04F1","Capacitación, bienestar social y estímulos",null,"C204",204,3]
["Formato A4F1","A04F1","Dotación y suministro a trabajadores",null,"C205",205,3]
["Formato A4F1","A04F1","Costos deportivos y de recreación",null,"C206",206,3]
["Formato A4F1","A04F1","Aportes a cajas de compensación familiar",null,"C207",207,3]
["Formato A4F1","A04F1","Aportes al ICBF",null,"C208",208,3]
["Formato A4F1","A04F1","Aportes a seguridad social",null,"C209",209,3]
["Formato A4F1","A04F1","Aportes al SENA",null,"C210",210,3]
["Formato A4F1","A04F1","Aportes sindicales",null,"C211",211,3]
["Formato A4F1","A04F1","Otros aportes",null,"C212",212,3]
["Formato A4F1","A04F1","Costos médicos y drogas",null,"C213",213,3]
["Formato A4F1","A04F1","Otros auxilios",null,"C214",214,3]
["Formato A4F1","A04F1","Riesgos profesionales",null,"C215",215,3]
["Formato A4F1","A04F1","Salario integral",null,"C216",216,3]
["Formato A4F1","A04F1","Contratos personal temporal",null,"C217",217,3]
["Formato A4F1","A04F1","Viáticos",null,"C218",218,3]
["Formato A4F1","A04F1","Gastos de viaje",null,"C219",219,3]
["Formato A4F1","A04F1","Comisiones",null,"C220",220,3]
["Formato A4F1","A04F1","Prima de servicios",null,"C221",221,3]
["Formato A4F1","A04F1","Amortización del cálculo actuarial de futuras pensiones",null,"C222",222,3]
["Formato A4F1","A04F1","Cotizaciones a ent. administ. del régimen de prima media",null,"C223",223,3]
["Formato A4F1","A04F1","Cotización a soc. administ. del régimen de ahorro individual",null,"C224",224,3]
["Formato A4F1","A04F1","Indemnizaciones sustitutivas",null,"C225",225,3]
["Formato A4F1","A04F1","Auxilios y servicios funerarios",null,"C226",226,3]
["Formato A4F1","A04F1","Prima de costos de vida",null,"C227",227,3]
["Formato A4F1","A04F1","Bonificación por servicios prestados",null,"C228",228,3]
["Formato A4F1","A04F1","Estímulo a la eficiencia",null,"C229",229,3]
["Formato A4F1","A04F1","Prima de actividad",null,"C230",230,3]
["Formato A4F1","A04F1","Prima de coordinación",null,"C231",231,3]
["Formato A4F1","A04F1","Subsidio de vivienda",null,"C232",232,3]
["Formato A4F1","A04F1","Prima especial de quinquenio",null,"C233",233,3]
["Formato A4F1","A04F1","Subsidio de carestía",null,"C234",234,3]
["Formato A4F1","A04F1","Aporte fondos mutuos de inversión",null,"C235",235,3]
["Formato A4F1","A04F1","Medicina prepagada",null,"C236",236,3]
["Formato A4F1","A04F1","Aportes a la ESAP",null,"C237",237,3]
["Formato A4F1","A04F1","Aportes a escuelas industriales e institutos técnicos",null,"C238",238,3]
["Formato A4F1","A04F1","Otros servicios personales",null,"C239",239,3]
["Formato A4F1","A04F1","GENERALES",null,"C240",240,3]
["Formato A4F1","A04F1","Moldes y troqueles",null,"C241",241,3]
["Formato A4F1","A04F1","Material quirúrgico",null,"C242",242,3]
["Formato A4F1","A04F1","Loza y cristalería",null,"C243",243,3]
["Formato A4F1","A04F1","Estudios y proyectos",null,"C244",244,3]
["Formato A4F1","A04F1","Suscripciones y afiliaciones",null,"C245",245,3]
["Formato A4F1","A04F1","Obras y mejoras en propiedad ajena",null,"C246",246,3]
["Formato A4F1","A04F1","Viáticos y gastos de viaje",null,"C247",247,3]
["Formato A4F1","A04F1","Publicidad y propaganda",null,"C248",248,3]
["Formato A4F1","A04F1","Impresos y publicaciones",null,"C249",249,3]
["Formato A4F1","A04F1","Fotocopias, útiles de escritorio y papelería",null,"C250",250,3]
["Formato A4F1","A04F1","Comunicaciones",null,"C251",251,3]
["Formato A4F1","A04F1","Promoción y divulgación",null,"C252",252,3]
["Formato A4F1","A04F1","Tasas",null,"C253",253,3]
["Formato A4F1","A04F1","Seguridad industrial",null,"C254",254,3]
["Formato A4F1","A04F1","Transporte, fletes y acarreos",null,"C255",255,3]
["Formato A4F1","A04F1","Imprevistos",null,{"$f":"ADDRESS(F924,G924,4)","v":"C256"},256,3]
["Formato A4F1","A04F1","Implementos deportivos",null,"C257",257,3]
["Formato A4F1","A04F1","Eventos culturales",null,"C258",258,3]
["Formato A4F1","A04F1","Contratos de administración",null,"C259",259,3]
["Formato A4F1","A04F1","Sostenimiento de semovientes",null,"C260",260,3]
["Formato A4F1","A04F1","Gastos de operación aduanera",null,"C261",261,3]
["Formato A4F1","A04F1","Servicios portuarios y aeroportuarios",null,"C262",262,3]
["Formato A4F1","A04F1","Costos por control de calidad",null,"C263",263,3]
["Formato A4F1","A04F1","Elementos de aseo, lavandería, y cafetería",null,"C264",264,3]
["Formato A4F1","A04F1","Videos",null,"C265",265,3]
["Formato A4F1","A04F1","Licencias y salvoconductos",null,"C266",266,3]
["Formato A4F1","A04F1","Relaciones públicas",null,"C267",267,3]
["Formato A4F1","A04F1","Contratos de aprendizaje",null,"C268",268,3]
["Formato A4F1","A04F1","Otros costos generales",null,"C269",269,3]
["Formato A4F1","A04F1","DEPRECIACIONES",null,"C270",270,3]
["Formato A4F1","A04F1","Depreciación de plantas, ductos y túneles",null,"C271",271,3]
["Formato A4F1","A04F1","Otras depreciaciones",null,"C272",272,3]
["Formato A4F1","A04F1","ARRENDAMIENTOS",null,"C273",273,3]
["Formato A4F1","A04F1","Otros terrenos",null,"C274",274,3]
["Formato A4F1","A04F1","Construcciones y edificaciones",null,"C275",275,3]
["Formato A4F1","A04F1","Maquinaria y equipo",null,"C276",276,3]
["Formato A4F1","A04F1","Equipo de oficina",null,"C277",277,3]
["Formato A4F1","A04F1","Equipo de computación y comunicación",null,"C278",278,3]
["Formato A4F1","A04F1","Equipo científico",null,"C279",279,3]
["Formato A4F1","A04F1","Flota y equipo de transporte",null,"C280",280,3]
["Formato A4F1","A04F1","Otros",null,"C281",281,3]
["Formato A4F1","A04F1","AMORTIZACIONES",null,"C282",282,3]
["Formato A4F1","A04F1","Amortización Intangibles",null,"C283",283,3]
["Formato A4F1","A04F1","Arriendos",null,"C284",284,3]
["Formato A4F1","A04F1","Otras amortizaciones",null,"C285",285,3]
["Formato A4F1","A04F1","AGOTAMIENTO",null,"C286",286,3]
["Formato A4F1","A04F1","Agotamientos de recursos no renovables en explotación",null,"C287",287,3]
["Formato A4F1","A04F1","Otros agotamientos",null,"C288",288,3]
["Formato A4F1","A04F1","COSTO DE BIENES Y SERVICIOS PÚBLICOS PARA LA VENTA",null,"C289",289,3]
["Formato A4F1","A04F1","Costo por conexión",null,"C290",290,3]
["Formato A4F1","A04F1","Otros costos de bienes y servicios públicos para la venta",null,"C291",291,3]
["Formato A4F1","A04F1","LICENCIAS, CONTRIBUCIONES Y REGALÍAS",null,"C292",292,3]
["Formato A4F1","A04F1","Departamento administrativo del medio ambiente DAMA",null,"C293",293,3]
["Formato A4F1","A04F1","Ley 56 de 1981",null,"C294",294,3]
["Formato A4F1","A04F1","Medio ambiente, ley 99 de 1993",null,"C295",295,3]
["Formato A4F1","A04F1","Regalías",null,"C296",296,3]
["Formato A4F1","A04F1","Licencia de operación del servicio",null,"C297",297,3]
["Formato A4F1","A04F1","Fazni",null,"C298",298,3]
["Formato A4F1","A04F1","Faer",null,"C299",299,3]
["Formato A4F1","A04F1","Cuota de fomento de gas",null,"C300",300,3]
["Formato A4F1","A04F1","Ministerio de comunicaciones y/o fondo de comunicaciones",null,"C301",301,3]
["Formato A4F1","A04F1","Comité de estratificación, ley 505 de 1999",null,"C302",302,3]
["Formato A4F1","A04F1","Otras contribuciones",null,"C303",303,3]
["Formato A4F1","A04F1","CONSUMO DE INSUMOS DIRECTOS",null,"C304",304,3]
["Formato A4F1","A04F1","Productos químicos",null,"C305",305,3]
["Formato A4F1","A04F1","Gas combustible",null,"C306",306,3]
["Formato A4F1","A04F1","Carbón mineral",null,"C307",307,3]
["Formato A4F1","A04F1","Energía",null,"C308",308,3]
["Formato A4F1","A04F1","ACPM, fuel oíl",null,"C309",309,3]
["Formato A4F1","A04F1","Otros elementos de consumo de insumos directos",null,"C310",310,3]
["Formato A4F1","A04F1","ORDENES Y CONTRATOS DE MANTENIMIENTO Y REPARACIONES",null,"C311",311,3]
["Formato A4F1","A04F1","Mantenimiento de construcciones y edificaciones",null,"C312",312,3]
["Formato A4F1","A04F1","Mantenimiento maquinaria y equipo",null,"C313",313,3]
["Formato A4F1","A04F1","Mantenimiento de equipo de oficina",null,"C314",314,3]
["Formato A4F1","A04F1","Mantenimiento de equipo computación y comunicación",null,"C315",315,3]
["Formato A4F1","A04F1","Mantenimiento equipo de transporte, tracción y elevación",null,"C316",316,3]
["Formato A4F1","A04F1","Mantenimiento terrenos",null,"C317",317,3]
["Formato A4F1","A04F1","Mantenimiento líneas, redes y ductos",null,"C318",318,3]
["Formato A4F1","A04F1","Mantenimiento de plantas",null,"C319",319,3]
["Formato A4F1","A04F1","Reparaciones de construcciones y edificaciones",null,{"$f":"ADDRESS(F988,G988,4)","v":"C320"},320,3]
["Formato A4F1","A04F1","Reparaciones de maquinaria y equipo",null,"C321",321,3]
["Formato A4F1","A04F1","Reparaciones de equipo de oficina",null,"C322",322,3]
["Formato A4F1","A04F1","Reparaciones de equipo de computación y comunicación",null,"C323",323,3]
["Formato A4F1","A04F1","Reparaciones de equipo de transporte, tracción y elevación",null,"C324",324,3]
["Formato A4F1","A04F1","Reparación de líneas, redes, y ductos",null,"C325",325,3]
["Formato A4F1","A04F1","Reparación de Plantas",null,"C326",326,3]
["Formato A4F1","A04F1","Otros contratos de mantenimiento y reparaciones",null,"C327",327,3]
["Formato A4F1","A04F1","HONORARIOS",null,"C328",328,3]
["Formato A4F1","A04F1","Avalúos",null,"C329",329,3]
["Formato A4F1","A04F1","Asesoría técnica",null,"C330",330,3]
["Formato A4F1","A04F1","Diseños y estudios",null,"C331",331,3]
["Formato A4F1","A04F1","Otros",null,"C332",332,3]
["Formato A4F1","A04F1","SERVICIOS PÚBLICOS",null,"C333",333,3]
["Formato A4F1","A04F1","Energía eléctrica",null,"C334",334,3]
["Formato A4F1","A04F1","Gas combustible",null,"C335",335,3]
["Formato A4F1","A04F1","Otros servicios públicos",null,"C336",336,3]
["Formato A4F1","A04F1","MATERIALES Y OTROS COSTOS DE OPERACIÓN",null,"C337",337,3]
["Formato A4F1","A04F1","Repuestos para vehículos",null,"C338",338,3]
["Formato A4F1","A04F1","Llantas y neumáticos",null,"C339",339,3]
["Formato A4F1","A04F1","Rodamientos",null,"C340",340,3]
["Formato A4F1","A04F1","Combustibles y lubricantes",null,"C341",341,3]
["Formato A4F1","A04F1","Materiales para construcción",null,"C342",342,3]
["Formato A4F1","A04F1","Materiales para laboratorio",null,"C343",343,3]
["Formato A4F1","A04F1","Materiales eléctricos",null,"C344",344,3]
["Formato A4F1","A04F1","Elementos y accesorios de gas combustible",null,"C345",345,3]
["Formato A4F1","A04F1","Elementos y accesorios de telecomunicaciones",null,"C346",346,3]
["Formato A4F1","A04F1","Elementos y accesorios de acueducto",null,"C347",347,3]
["Formato A4F1","A04F1","Elementos y accesorios de alcantarillado",null,"C348",348,3]
["Formato A4F1","A04F1","Elementos y accesorios de aseo",null,"C349",349,3]
["Formato A4F1","A04F1","Otros elementos y materiales",null,"C350",350,3]
["Formato A4F1","A04F1","Otros repuestos",null,"C351",351,3]
["Formato A4F1","A04F1","Costos de gestión ambiental",null,"C352",352,3]
["Formato A4F1","A04F1","Otros costos",null,"C353",353,3]
["Formato A4F1","A04F1","SEGUROS",null,"C354",354,3]
["Formato A4F1","A04F1","De manejo",null,"C355",355,3]
["Formato A4F1","A04F1","De cumplimiento",null,"C356",356,3]
["Formato A4F1","A04F1","De corriente débil",null,"C357",357,3]
["Formato A4F1","A04F1","De vida colectiva",null,"C358",358,3]
["Formato A4F1","A04F1","De incendio",null,"C359",359,3]
["Formato A4F1","A04F1","De terremoto",null,"C360",360,3]
["Formato A4F1","A04F1","De sustracción y hurto",null,"C361",361,3]
["Formato A4F1","A04F1","De flota y equipo de transporte",null,"C362",362,3]
["Formato A4F1","A04F1","De responsabilidad civil y extracontractual",null,"C363",363,3]
["Formato A4F1","A04F1","De rotura de maquinaria",null,"C364",364,3]
["Formato A4F1","A04F1","De equipo fluvial y marítimo",null,"C365",365,3]
["Formato A4F1","A04F1","De terrorismo",null,"C366",366,3]
["Formato A4F1","A04F1","Otros seguros",null,"C367",367,3]
["Formato A4F1","A04F1","IMPUESTOS Y TASAS",null,"C368",368,3]
["Formato A4F1","A04F1","De timbre",null,"C369",369,3]
["Formato A4F1","A04F1","Predial",null,"C370",370,3]
["Formato A4F1","A04F1","De valorización",null,"C371",371,3]
["Formato A4F1","A04F1","De vehículos",null,"C372",372,3]
["Formato A4F1","A04F1","Registro",null,"C373",373,3]
["Formato A4F1","A04F1","Tasa por utilización de recursos naturales",null,"C374",374,3]
["Formato A4F1","A04F1","Tasa por contaminación de recursos naturales",null,"C375",375,3]
["Formato A4F1","A04F1","Peajes de carreteras",null,"C376",376,3]
["Formato A4F1","A04F1","Otros impuestos",null,"C377",377,3]
["Formato A4F1","A04F1","ORDENES Y CONTRATOS POR OTROS SERVICIOS",null,"C378",378,3]
["Formato A4F1","A04F1","Aseo",null,"C379",379,3]
["Formato A4F1","A04F1","Vigilancia",null,"C380",380,3]
["Formato A4F1","A04F1","Casino y cafetería",null,"C381",381,3]
["Formato A4F1","A04F1","Toma de lectura",null,"C382",382,3]
["Formato A4F1","A04F1","Entrega de facturas",null,"C383",383,3]
["Formato A4F1","A04F1","Venta de derechos por comisión",null,{"$f":"ADDRESS(F1052,G1052,4)","v":"C384"},384,3]
["Formato A4F1","A04F1","Administración de infraestructura informática",null,"C385",385,3]
["Formato A4F1","A04F1","Suministro y servicios informáticos",null,"C386",386,3]
["Formato A4F1","A04F1","Servicio de instalación y desinstalación",null,"C387",387,3]
["Formato A4F1","A04F1","Otros contratos",null,"C388",388,3]
["Formato A4F2","A04F2","Año",null,"A3",3,1]
["Formato A4F2","A04F2","Departamento - Municipio - Centro Poblado",null,"B3",3,2]
["Formato A4F2","A04F2","Código Divipola",null,"C3",3,3]
["Formato A4F2","A04F2","Nombre del gasoducto",null,"D3",3,4]
["Formato A4F2","A04F2","Tramo",null,"E3",3,5]
["Formato A4F2","A04F2","Cédula Catastral",null,"F3",3,6]
["Formato A4F2","A04F2","Área del terreno (M2 )",null,"G3",3,7]
["Formato A4F2","A04F2","Valor catastral",null,"H3",3,8]
["Formato A4F2","A04F2","%T",null,"I3",3,9]
["Formato A4F2","A04F2","%OA",null,"J3",3,10]
["Formato A4F2","A04F2","%Total",null,"K3",3,11]
["Formato A4F3","A04F3","Nombre del gasoducto asociado al reporte:",null,"A3",3,1]
["Formato A4F3","A04F3","Tipo de activo que se está reportando:",null,"A4",4,1]
["Formato A4F3","A04F3","Tramo:",null,"A5",5,1]
["Formato A4F3","A04F3","Descripción",null,"A7",7,1]
["Formato A4F3","A04F3","Año",null,"B7",7,2]
["Formato A4F3","A04F3","Activos asociados al transporte",null,"C7",7,3]
["Formato A4F3","A04F3","Activos asociados a otras actividades",null,"D7",7,4]
["Formato A4F3","A04F3","Total activos",null,"E7",7,5]
["Formato A4F4","A04F4","Descripción",null,"A4",4,1]
["Formato A4F4","A04F4","Fecha Activación",null,"B4",4,2]
["Formato A4F4","A04F4","Escritura Pública",null,"C4",4,3]
["Formato A4F4","A04F4","Matrícula inmobiliaria",null,"D4",4,4]
["Formato A4F4","A04F4","Departamento - Municipio - Centro Poblado",null,"E4",4,5]
["Formato A4F4","A04F4","Código Divipola",null,"F4",4,6]
["Formato A4F4","A04F4","Tramo",null,"G4",4,7]
["Formato A4F4","A04F4","Costo de Adquisición",null,"H4",4,8]
["Formato A4F4","A04F4","Uso de la Servidumbre ",null,"I4",4,9]
["Formato A4F4","A04F4","% Transporte",null,"J4",4,10]
["Formato A4F4","A04F4","% Otros Negocios",null,"K4",4,11]
["Formato A4F4","A04F4","% Total",null,"L4",4,12]
["Formato A5F1","A05F1","Información",null,"B3",3,2]
["Formato A5F1","A05F1","Tramo:",null,"C5",5,3]
["Formato A5F1","A05F1","Presión en cada punto de recibo:",null,"C6",6,3]
["Formato A5F1","A05F1","temperatura punto de recibo:",null,"C7",7,3]
["Formato A5F1","A05F1","longitud:",null,"C8",8,3]
["Formato A5F1","A05F1","Diámetro:",null,"C9",9,3]
["Formato A5F1","A05F1","Espesor:",null,"C10",10,3]
["Formato A5F1","A05F1","Rugosidad (inicio vida útil):",null,"C11",11,3]
["Formato A5F1","A05F1","Eficiencia ducto (1):",null,"C12",12,3]
["Formato A5F1","A05F1","temperatura punto de entrega:",null,"C13",13,3]
["Formato A5F1Aux","A05F1Aux","Agente",null,"B15",15,2]
["Formato A5F1Aux","A05F1Aux","Tramo",null,"B16",16,2]
["Formato A5F1Aux","A05F1Aux","Sistema:",null,"C17",17,3]
["Formato A5F1Aux","A05F1Aux","CMMP sin IAC:",null,"B18",18,2]
["Formato A5F1Aux","A05F1Aux","CMMP con IAC:",null,"B19",19,2]
["Formato A5F1Aux","A05F1Aux","Nombre del Archivo PDF Memoría Técnica (e):",null,"B20",20,2]
["Formato A5F1Aux","A05F1Aux","Nombre del Archivo con simulación (f):",null,"B21",21,2]
["Formato A5F1Aux","A05F1Aux","Observaciones:",null,"B22",22,2]
["Formato A5F1Aux","A05F1Aux","Item",null,"A28",28,1]
["Formato A5F1Aux","A05F1Aux","Nombre",null,"B28",28,2]
["Formato A5F1Aux","A05F1Aux","Presión",null,"C28",28,3]
["Formato A5F1Aux","A05F1Aux","Temperatura",null,"D28",28,4]
["Formato A5F1Aux","A05F1Aux","Longitud (m)",null,"E28",28,5]
["Formato A5F1Aux","A05F1Aux","Diámetro (Pulg)",null,"F28",28,6]
["Formato A5F1Aux","A05F1Aux","Espesor (Pulg)",null,"G28",28,7]
["Formato A5F1Aux","A05F1Aux","Rugosidad (inicio vida útil) (Pulg)",null,"H28",28,8]
["Formato A5F1Aux","A05F1Aux","Eficiencia Ducto (d)",null,"I28",28,9]
["Formato A5F1Aux","A05F1Aux","Nombre",null,"J28",28,10]
["Formato A5F1Aux","A05F1Aux","Presión","Presión [Psig]",{"$f":"ADDRESS(F1116,G1116,4)","v":"K28"},28,11]
["Formato A5F1Aux","A05F1Aux","Temperatura",null,"L28",28,12]
["Formato A5F2","A05F2","Información",null,"B3",3,2]
["Formato A5F2","A05F2","Componente / Fórmula Química",null,"D5",5,4]
["Formato A5F2","A05F2","Punto de Recibo",null,"C6",6,3]
["Formato A5F2","A05F2","Metano",null,"D6",6,4]
["Formato A5F2","A05F2","Nitrógeno",null,"E6",6,5]
["Formato A5F2","A05F2","Dióxido de Carbono",null,"F6",6,6]
["Formato A5F2","A05F2","Etano",null,"G6",6,7]
["Formato A5F2","A05F2","Propano",null,"H6",6,8]
["Formato A5F2","A05F2","Agua",null,"I6",6,9]
["Formato A5F2","A05F2","Sulfuro de Hidrógeno",null,"J6",6,10]
["Formato A5F2","A05F2","Hidrógeno",null,"K6",6,11]
["Formato A5F2","A05F2","Monóxido de Carbono",null,"L6",6,12]
["Formato A5F2","A05F2","Oxígeno",null,"M6",6,13]
["Formato A5F2","A05F2","i-Butano",null,"N6",6,14]
["Formato A5F2","A05F2","n-Butano",null,"O6",6,15]
["Formato A5F2","A05F2","i-Pentano",null,"P6",6,16]
["Formato A5F2","A05F2","n-Pentano",null,"Q6",6,17]
["Formato A5F2","A05F2","n-Hexano",null,"R6",6,18]
["Formato A5F2","A05F2","n-Heptano",null,"S6",6,19]
["Formato A5F2","A05F2","n-Octano",null,"T6",6,20]
["Formato A5F2","A05F2","n-Nonano",null,"U6",6,21]
["Formato A5F2","A05F2","n-Decano",null,"V6",6,22]
["Formato A5F2","A05F2","Helio",null,"W6",6,23]
["Formato A5F2","A05F2","Argón",null,"X6",6,24]
["Formato A5F2","A05F2","Total",null,"Y6",6,25]
["Formato A5F2","A05F2","CH4",null,"D7",7,4]
["Formato A5F2","A05F2","N2",null,"E7",7,5]
["Formato A5F2","A05F2","CO2",null,"F7",7,6]
["Formato A5F2","A05F2","C2H6",null,"G7",7,7]
["Formato A5F2","A05F2","C3H8",null,"H7",7,8]
["Formato A5F2","A05F2","H2O",null,"I7",7,9]
["Formato A5F2","A05F2","H2S",null,"J7",7,10]
["Formato A5F2","A05F2","H2",null,"K7",7,11]
["Formato A5F2","A05F2","CO",null,"L7",7,12]
["Formato A5F2","A05F2","O2",null,"M7",7,13]
["Formato A5F2","A05F2","C4H10",null,"N7",7,14]
["Formato A5F2","A05F2","C4H10",null,"O7",7,15]
["Formato A5F2","A05F2","C5H12",null,"P7",7,16]
["Formato A5F2","A05F2","C5H12",null,"Q7",7,17]
["Formato A5F2","A05F2","C6H14",null,"R7",7,18]
["Formato A5F2","A05F2","C7H16",null,"S7",7,19]
["Formato A5F2","A05F2","C8H18",null,"T7",7,20]
["Formato A5F2","A05F2","C9H20",null,"U7",7,21]
["Formato A5F2","A05F2","C10H22",null,"V7",7,22]
["Formato A5F2","A05F2","He",null,"W7",7,23]
["Formato A5F2","A05F2","Ar",null,"X7",7,24]
["Formato A5F2","A05F2",1,null,"Y7",7,25]
["Formato A5F3","A05F3","Información",null,"B3",3,2]
["Formato A5F3","A05F3","Hora / MPCD",null,"D5",5,4]
["Formato A5F3","A05F3","Punto de Entrega",null,"C6",6,3]
["Formato A5F3","A05F3",1,null,"D6",6,4]
["Formato A5F3","A05F3",4.1666666666666664E-2,null,"E6",6,5]
["Formato A5F3","A05F3",8.3333333333333329E-2,null,"F6",6,6]
["Formato A5F3","A05F3",0.125,null,"G6",6,7]
["Formato A5F3","A05F3",0.16666666666666666,null,"H6",6,8]
["Formato A5F3","A05F3",0.20833333333333334,null,"I6",6,9]
["Formato A5F3","A05F3",0.25,null,"J6",6,10]
["Formato A5F3","A05F3",0.29166666666666669,null,"K6",6,11]
["Formato A5F3","A05F3",0.33333333333333331,null,"L6",6,12]
["Formato A5F3","A05F3",0.375,null,"M6",6,13]
["Formato A5F3","A05F3",0.41666666666666669,null,"N6",6,14]
["Formato A5F3","A05F3",0.45833333333333331,null,"O6",6,15]
["Formato A5F3","A05F3",0.5,null,{"$f":"ADDRESS(F1180,G1180,4)","v":"P6"},6,16]
["Formato A5F3","A05F3",0.54166666666666663,null,"Q6",6,17]
["Formato A5F3","A05F3",0.58333333333333337,null,"R6",6,18]
["Formato A5F3","A05F3",0.625,null,"S6",6,19]
["Formato A5F3","A05F3",0.66666666666666663,null,"T6",6,20]
["Formato A5F3","A05F3",0.70833333333333337,null,"U6",6,21]
["Formato A5F3","A05F3",0.75,null,"V6",6,22]
["Formato A5F3","A05F3",0.79166666666666663,null,"W6",6,23]
["Formato A5F3","A05F3",0.83333333333333337,null,"X6",6,24]
["Formato A5F3","A05F3",0.875,null,"Y6",6,25]
["Formato A5F3","A05F3",0.91666666666666663,null,"Z6",6,26]
["Formato A5F3","A05F3",0.95833333333333337,null,"AA6",6,27]
["Formato A6F1","A06F1","Tramo o grupo de gasoductos:",null,"D5",5,4]
["Formato A6F1","A06F1","Componente",null,"C7",7,3]
["Formato A6F1","A06F1","Nombre",null,"D7",7,4]
["Formato A6F1","A06F1","Año de entrada en operación ",null,"E7",7,5]
["Formato A6F1","A06F1","Clasificación de variables [3]","Clasificación de variables","F7",7,6]
["Formato A6F1","A06F1","Inversión (Pesos de la fecha base)",null,"G7",7,7]
["Formato A6F1","A06F1","Diámetro (pulg.)",null,"H7",7,8]
["Formato A6F1","A06F1","Longitud (km.)",null,"I7",7,9]
["Formato A6F1","A06F1","Potencia instalada (HP) ",null,"J7",7,10]
["Formato A6F2","A06F2","Tramo o grupo de gasoductos:",null,"D5",5,4]
["Formato A6F2","A06F2","Componente",null,"C7",7,3]
["Formato A6F2","A06F2","Nombre",null,"D7",7,4]
["Formato A6F2","A06F2","Año de entrada en operación ",null,"E7",7,5]
["Formato A6F2","A06F2","Clasificación de variables [3]","Clasificación de variables","F7",7,6]
["Formato A6F2","A06F2","Inversión (Pesos de la fecha base)",null,"G7",7,7]
["Formato A6F2","A06F2","Diámetro (pulg.)",null,"H7",7,8]
["Formato A6F2","A06F2","Longitud (km.)",null,"I7",7,9]
["Formato A6F2","A06F2","Potencia instalada (HP) ",null,"J7",7,10]
["Formato A6F3","A06F3","Tramo o grupo de gasoductos:",null,"D5",5,4]
["Formato A6F3","A06F3","Año 1",null,"H7",7,8]
["Formato A6F3","A06F3","Año 2",null,"I7",7,9]
["Formato A6F3","A06F3","Año 3",null,"J7",7,10]
["Formato A6F3","A06F3","Año 4",null,"K7",7,11]
["Formato A6F3","A06F3","Año 5",null,"L7",7,12]
["Formato A6F3","A06F3","No.",null,"C9",9,3]
["Formato A6F3","A06F3","Nombre Proyecto [1]",null,"D9",9,4]
["Formato A6F3","A06F3","Año de entrada en operación",null,"E9",9,5]
["Formato A6F3","A06F3","Longitud (m)",null,"F9",9,6]
["Formato A6F3","A06F3","Diámetro (pulg)",null,"G9",9,7]
["Formato A6F3","A06F3","Inversión Año 1",null,"H9",9,8]
["Formato A6F3","A06F3","Inversión Año 2",null,"I9",9,9]
["Formato A6F3","A06F3","Inversión Año 3",null,"J9",9,10]
["Formato A6F3","A06F3","Inversión Año 4",null,"K9",9,11]
["Formato A6F3","A06F3","Inversión Año 5",null,"L9",9,12]
["Formato A6F3","A06F3","Descripción del proyecto",null,"M9",9,13]
["Formato A6F4","A06F4","Tramo o grupo de gasoductos:",null,"D5",5,4]
["Formato A6F4","A06F4","Año 1",null,"I7",7,9]
["Formato A6F4","A06F4","Año 2",null,"J7",7,10]
["Formato A6F4","A06F4","Año 3",null,"K7",7,11]
["Formato A6F4","A06F4","Año 4",null,"L7",7,12]
["Formato A6F4","A06F4","Año 5",null,"M7",7,13]
["Formato A6F4","A06F4","Componente",null,"C9",9,3]
["Formato A6F4","A06F4","Nombre",null,"D9",9,4]
["Formato A6F4","A06F4","Mes y año de entrada en operación",null,"E9",9,5]
["Formato A6F4","A06F4","Longitud (m)",null,"F9",9,6]
["Formato A6F4","A06F4","Diámetro (pulg)",null,"G9",9,7]
["Formato A6F4","A06F4","Potencia instalada (HP)",null,"H9",9,8]
["Formato A6F4","A06F4","Inversión Año 1",null,"I9",9,9]
["Formato A6F4","A06F4","Inversión Año 2",null,"J9",9,10]
["Formato A6F4","A06F4","Inversión Año 3",null,"K9",9,11]
["Formato A6F4","A06F4","Inversión Año 4",null,"L9",9,12]
["Formato A6F4","A06F4","Inversión Año 5",null,"M9",9,13]
["Formato A6F4","A06F4","Descripción del proyecto",null,"N9",9,14]
["Formato A6F5","A06F5","Información",null,"B3",3,2]
["Formato A6F5","A06F5","Tramo o grupo de gasoductos:",null,"D5",5,4]
["Formato A6F5","A06F5","Horizonte de proyección (VUN):",null,"D6",6,4]
["Formato A6F5","A06F5","Fecha Base",null,"D7",7,4]
["Formato A6F5","A06F5","Concepto",null,"C9",9,3]
["Formato A6F5","A06F5","Año: ",null,"C10",10,3]
["Formato A6F5","A06F5","Año 1",null,"E9",9,5]
["Formato A6F5","A06F5","Año 2",null,"F9",9,6]
["Formato A6F5","A06F5","Año 3",null,"G9",9,7]
["Formato A6F5","A06F5","Año 4",null,"H9",9,8]
["Formato A6F5","A06F5","Año 5",null,"I9",9,9]
["Formato A6F5","A06F5","Año 6",null,"J9",9,10]
["Formato A6F5","A06F5","Año 7",null,"K9",9,11]
["Formato A6F5","A06F5","Año 8",null,"L9",9,12]
["Formato A6F5","A06F5","Año 9",null,"M9",9,13]
["Formato A6F5","A06F5","Año 10",null,"N9",9,14]
["Formato A6F5","A06F5","Año 11",null,"O9",9,15]
["Formato A6F5","A06F5","Año 12",null,"P9",9,16]
["Formato A6F5","A06F5","Año 13",null,"Q9",9,17]
["Formato A6F5","A06F5","Año 14",null,"R9",9,18]
["Formato A6F5","A06F5","Año 15",null,"S9",9,19]
["Formato A6F5","A06F5","Año 16",null,"T9",9,20]
["Formato A6F5","A06F5","Año 17",null,"U9",9,21]
["Formato A6F5","A06F5","Año 18",null,"V9",9,22]
["Formato A6F5","A06F5","Año 19",null,"W9",9,23]
["Formato A6F5","A06F5","Año 20",null,"X9",9,24]
["Formato A6F5","A06F5","Año 21",null,"Y9",9,25]
["Formato A6F5","A06F5","Año 22",null,"Z9",9,26]
["Formato A6F5","A06F5","Año 23",null,"AA9",9,27]
["Formato A6F5","A06F5","Año 24",null,"AB9",9,28]
["Formato A6F5","A06F5","Año 25",null,"AC9",9,29]
["Formato A6F5","A06F5","Año 26",null,"AD9",9,30]
["Formato A6F5","A06F5","Año 27",null,"AE9",9,31]
["Formato A6F5","A06F5","Año 28",null,"AF9",9,32]
["Formato A6F5","A06F5","Año 29",null,"AG9",9,33]
["Formato A6F5","A06F5","Año 30",null,"AH9",9,34]
["Formato A6F6","A06F6","Tramo o grupo de gasoductos: ",null,"E5",5,5]
["Formato A6F6","A06F6","Horizonte de proyección (VUN): ",null,"E6",6,5]
["Formato A6F6","A06F6","Año Base: ",null,"E7",7,5]
["Formato A6F6","A06F6","Año b: ",null,"E8",8,5]
["Formato A6F6","A06F6","Año e: ",null,"E9",9,5]
["Formato A6F6","A06F6","Demandas de capacidad (kpcd) y de volumen (kpc)",null,"C11",11,3]
["Formato A6F6","A06F6","Concepto",null,"D13",13,4]
["Formato A6F6","A06F6","Año 1",null,"E13",13,5]
["Formato A6F6","A06F6","Año 2",null,"F13",13,6]
["Formato A6F6","A06F6","Año 3",null,"G13",13,7]
["Formato A6F6","A06F6","Año 4",null,"H13",13,8]
["Formato A6F6","A06F6","Año 5",null,"I13",13,9]
["Formato A6F6","A06F6","Año 6",null,"J13",13,10]
["Formato A6F6","A06F6","Año 7",null,"K13",13,11]
["Formato A6F6","A06F6","Año 8",null,"L13",13,12]
["Formato A6F6","A06F6","Año 9",null,"M13",13,13]
["Formato A6F6","A06F6","Año 10",null,"N13",13,14]
["Formato A6F6","A06F6","Año 11",null,"O13",13,15]
["Formato A6F6","A06F6","Año 12",null,"P13",13,16]
["Formato A6F6","A06F6","Año 13",null,"Q13",13,17]
["Formato A6F6","A06F6","Año 14",null,"R13",13,18]
["Formato A6F6","A06F6","Año 15",null,"S13",13,19]
["Formato A6F6","A06F6","Año 16",null,"T13",13,20]
["Formato A6F6","A06F6","Año 17",null,"U13",13,21]
["Formato A6F6","A06F6","Año 18",null,"V13",13,22]
["Formato A6F6","A06F6","Año 19",null,"W13",13,23]
["Formato A6F6","A06F6","Año 20",null,"X13",13,24]
["Formato A6F6","A06F6","Año 21",null,"Y13",13,25]
["Formato A6F6","A06F6","Año 22",null,"Z13",13,26]
["Formato A6F6","A06F6","Año 23",null,"AA13",13,27]
["Formato A6F6","A06F6","Año 24",null,"AB13",13,28]
["Formato A6F6","A06F6","Año 25",null,"AC13",13,29]
["Formato A6F6","A06F6","Año 26",null,"AD13",13,30]
["Formato A6F6","A06F6","Año 27",null,"AE13",13,31]
["Formato A6F6","A06F6","Año 28",null,"AF13",13,32]
["Formato A6F6","A06F6","Año 29",null,"AG13",13,33]
["Formato A6F6","A06F6","Año 30",null,"AH13",13,34]
["Formato A6F6","A06F6","Demanda esperada de capacidad, DEC (kpcd): ",null,"D14",14,4]
["Formato A6F6","A06F6","I. Dirección contractual A [2]:  ",null,"D15",15,4]
["Formato A6F6","A06F6","II. Dirección contractual B [2]:  ",null,"D16",16,4]
["Formato A6F6","A06F6","  Capacidad contratada [4] :  ",null,"D17",17,4]
["Formato A6F6","A06F6","i.  Distribuidor-comercializador: ",null,"D18",18,4]
["Formato A6F6","A06F6","ii. Industria: ",null,"D19",19,4]
["Formato A6F6","A06F6","iii. Generador térmico: ",null,"D20",20,4]
["Formato A6F6","A06F6","iv. Comercializador de GNCV: ",null,"D21",21,4]
["Formato A6F6","A06F6","Demanda esperada de volumen, DEV (kpc): ",null,"D22",22,4]
["Formato A6F6","A06F6","I. Dirección contractual A [2]:  ",null,"D23",23,4]
["Formato A6F6","A06F6","II. Dirección contractual B [2]:  ",null,"D24",24,4]
["Formato A6F6","A06F6","Capacidad máxima de mediano plazo, CMMP (kpcd) [8]:  ",null,"D25",25,4]
["Formato A6F6","A06F6","Demanda máxima de capacidad real, DMC (kpcd)",null,"C29",29,3]
["Formato A6F6","A06F6","Concepto",null,"D32",32,4]
["Formato A6F6","A06F6","Año 1",null,"E32",32,5]
["Formato A6F6","A06F6","Año 2",null,"F32",32,6]
["Formato A6F6","A06F6","Año 3",null,"G32",32,7]
["Formato A6F6","A06F6","Año 4",null,"H32",32,8]
["Formato A6F6","A06F6","Año 5",null,"I32",32,9]
["Formato A6F6","A06F6","Año 6",null,"J32",32,10]
["Formato A6F6","A06F6","Año 7",null,"K32",32,11]
["Formato A6F6","A06F6","Año 8",null,"L32",32,12]
["Formato A6F6","A06F6","Año 9",null,"M32",32,13]
["Formato A6F6","A06F6","Año 10",null,"N32",32,14]
["Formato A6F6","A06F6","Año 11",null,"O32",32,15]
["Formato A6F6","A06F6","Año 12",null,"P32",32,16]
["Formato A6F6","A06F6","Año 13",null,"Q32",32,17]
["Formato A6F6","A06F6","Año 14",null,"R32",32,18]
["Formato A6F6","A06F6","Año 15",null,"S32",32,19]
["Formato A6F6","A06F6","Año 16",null,"T32",32,20]
["Formato A6F6","A06F6","Año 17",null,"U32",32,21]
["Formato A6F6","A06F6","Año 18",null,"V32",32,22]
["Formato A6F6","A06F6","Año 19",null,"W32",32,23]
["Formato A6F6","A06F6","Año 20",null,"X32",32,24]
["Formato A6F6","A06F6","Año 21",null,"Y32",32,25]
["Formato A6F6","A06F6","Año 22",null,"Z32",32,26]
["Formato A6F6","A06F6","Año 23",null,"AA32",32,27]
["Formato A6F6","A06F6","Año 24",null,"AB32",32,28]
["Formato A6F6","A06F6","Año 25",null,"AC32",32,29]
["Formato A6F6","A06F6","Año 26",null,"AD32",32,30]
["Formato A6F6","A06F6","Año 27",null,"AE32",32,31]
["Formato A6F6","A06F6","Año 28",null,"AF32",32,32]
["Formato A6F6","A06F6","Año 29",null,"AG32",32,33]
["Formato A6F6","A06F6","Año 30",null,"AH32",32,34]
["Formato A6F6","A06F6","Demanda máxima de capacidad real, DMC (kpcd) [5]:  ",null,"D33",33,4]
["Formato A6F6","A06F6","Máximo volumen transportable en un día, CME (kpcd) [6]:  ",null,"D34",34,4]
["Formato A6F6","A06F6","Máximo volumen transportable en un día, CM (kpcd) [7]:  ",null,"D35",35,4]
["Formato A6F6","A06F6","Inversiones en Aumento de Capacidad, IAC, para la demanda esperada de capacidad, DEC",null,"C38",38,3]
["Formato A6F6","A06F6","Año 1",null,"E40",40,5]
["Formato A6F6","A06F6","Año 2",null,"F40",40,6]
["Formato A6F6","A06F6","Año 3",null,"G40",40,7]
["Formato A6F6","A06F6","Año 4",null,"H40",40,8]
["Formato A6F6","A06F6","Año 5",null,"I40",40,9]
["Formato A6F6","A06F6","Año 6",null,"J40",40,10]
["Formato A6F6","A06F6","Año 7",null,"K40",40,11]
["Formato A6F6","A06F6","Año 8",null,"L40",40,12]
["Formato A6F6","A06F6","Año 9",null,"M40",40,13]
["Formato A6F6","A06F6","Año 10",null,"N40",40,14]
["Formato A6F6","A06F6","Año 11",null,"O40",40,15]
["Formato A6F6","A06F6","Año 12",null,"P40",40,16]
["Formato A6F6","A06F6","Año 13",null,"Q40",40,17]
["Formato A6F6","A06F6","Año 14",null,"R40",40,18]
["Formato A6F6","A06F6","Año 15",null,"S40",40,19]
["Formato A6F6","A06F6","Año 16",null,"T40",40,20]
["Formato A6F6","A06F6","Año 17",null,"U40",40,21]
["Formato A6F6","A06F6","Año 18",null,"V40",40,22]
["Formato A6F6","A06F6","Año 19",null,"W40",40,23]
["Formato A6F6","A06F6","Año 20",null,"X40",40,24]
["Formato A6F6","A06F6","Año 21",null,"Y40",40,25]
["Formato A6F6","A06F6","Año 22",null,"Z40",40,26]
["Formato A6F6","A06F6","Año 23",null,"AA40",40,27]
["Formato A6F6","A06F6","Año 24",null,"AB40",40,28]
["Formato A6F6","A06F6","Año 25",null,"AC40",40,29]
["Formato A6F6","A06F6","Año 26",null,"AD40",40,30]
["Formato A6F6","A06F6","Año 27",null,"AE40",40,31]
["Formato A6F6","A06F6","Año 28",null,"AF40",40,32]
["Formato A6F6","A06F6","Año 29",null,"AG40",40,33]
["Formato A6F6","A06F6","Año 30",null,"AH40",40,34]
["Formato A6F6","A06F6","Proyecto de IAC [3] :  ",null,"D41",41,4]
["Formato A6F6","A06F6","I. Dirección contractual A [2]:  ",null,"D42",42,4]
["Formato A6F6","A06F6","II. Dirección contractual B [2]:  ",null,"D43",43,4]
["Formato A6F7","A06F7","Información",null,"B3",3,2]
["Formato A6F7","A06F7","Tramo o grupo de gasoductos:",null,"C5",5,3]
["Formato A6F7","A06F7","Horizonte de proyección (VUN):",null,"C6",6,3]
["Formato A6F7","A06F7","Año / MBTU Año",null,"D8",8,4]
["Formato A6F7","A06F7","Concepto",null,"C9",9,3]
["Formato A6F7","A06F7","Año 1",null,"D9",9,4]
["Formato A6F7","A06F7","Año 2",null,"E9",9,5]
["Formato A6F7","A06F7","Año 3",null,"F9",9,6]
["Formato A6F7","A06F7","Año 4",null,"G9",9,7]
["Formato A6F7","A06F7","Año 5",null,"H9",9,8]
["Formato A6F7","A06F7","Año 6",null,"I9",9,9]
["Formato A6F7","A06F7","Año 7",null,"J9",9,10]
["Formato A6F7","A06F7","Año 8",null,"K9",9,11]
["Formato A6F7","A06F7","Año 9",null,"L9",9,12]
["Formato A6F7","A06F7","Año 10",null,"M9",9,13]
["Formato A6F7","A06F7","Año 11",null,"N9",9,14]
["Formato A6F7","A06F7","Año 12",null,"O9",9,15]
["Formato A6F7","A06F7","Año 13",null,"P9",9,16]
["Formato A6F7","A06F7","Año 14",null,"Q9",9,17]
["Formato A6F7","A06F7","Año 15",null,"R9",9,18]
["Formato A6F7","A06F7","Año 16",null,"S9",9,19]
["Formato A6F7","A06F7","Año 17",null,"T9",9,20]
["Formato A6F7","A06F7","Año 18",null,"U9",9,21]
["Formato A6F7","A06F7","Año 19",null,"V9",9,22]
["Formato A6F7","A06F7","Año 20",null,"W9",9,23]
["Formato A6F7","A06F7","Año 21",null,"X9",9,24]
["Formato A6F7","A06F7","Año 22",null,"Y9",9,25]
["Formato A6F7","A06F7","Año 23",null,"Z9",9,26]
["Formato A6F7","A06F7","Año 24",null,"AA9",9,27]
["Formato A6F7","A06F7","Año 25",null,"AB9",9,28]
["Formato A6F7","A06F7","Año 26",null,"AC9",9,29]
["Formato A6F7","A06F7","Año 27",null,"AD9",9,30]
["Formato A6F7","A06F7","Año 28",null,"AE9",9,31]
["Formato A6F7","A06F7","Año 29",null,"AF9",9,32]
["Formato A6F7","A06F7","Año 30",null,"AG9",9,33]
["Formato A6F8","A06F8","Agente",null,"B13",13,2]
["Formato A6F8","A06F8","Ruta",null,{"$f":"ADDRESS(F1435,G1435,4)","v":"C13"},13,3]
["Formato A6F8","A06F8","Nombre Archivo",null,"D13",13,4]
["Formato A6F8","A06F8","Tipo Archivo",null,"E13",13,5]
["Formato A6F8","A06F8","Tamaño Archivo",null,"F13",13,6]
["Formato A6F8","A06F8","Radicado",null,"G13",13,7]
["Formato A6F8","A06F8","Nombre Archivo Descargado",null,"H13",13,8]
["Formato A6F8","A06F8","Título Project",null,"I13",13,9]
["Formato A6F8","A06F8","Nombre Tarea EDT",null,"J13",13,10]
["Formato A6F8","A06F8","Fecha Fin",null,"K13",13,11]
["Formato A6F8","A06F8","Nombre en PWA",null,"L13",13,12]
["Formato A6F8","A06F8","Proyectos Repetidos",null,"M13",13,13]
["Formato A6F8","A06F8","Aclaración proyectos Repetidos para identificar cual es el proyecto final",null,"N13",13,14]
["Formato A6F8","A06F8","Tramo Regulatorio",null,"O13",13,15]
["Formato A6F8","A06F8","Nombre del proyecto declarado en el formato A02F3Aux solicitado previamente",null,"P13",13,16]
["Formato A6F8","A06F8","Observación para incluir alguna consideración sobre el cronograma del proyecto",null,"Q13",13,17]
["Formato A6F8","A06F8","Variable",null,"R13",13,18]
["Formato A8F1","A08F1","Datos generales",null,"B3",3,2]
["Formato A8F1","A08F1","Nombre de la estación de compresión:",null,"C5",5,3]
["Formato A8F1","A08F1","Capacidad de compresión:",null,"C6",6,3]
["Formato A8F1","A08F1","Potencia total instalada:",null,"C7",7,3]
["Formato A8F1","A08F1","Presión mínima entrada:",null,"C8",8,3]
["Formato A8F1","A08F1","Presión máxima salida:",null,"C9",9,3]
["Formato A8F1","A08F1","Tecnología:",null,"C10",10,3]
["Formato A8F1","A08F1","Energía que usa el compresor para operar:",null,"C11",11,3]
["Formato A8F1","A08F1","Fecha base:",null,"C12",12,3]
["Formato A8F1","A08F1","Ubicación geográfica del compresor",null,"J5",5,10]
["Formato A8F1","A08F1","Latitud:",null,"J7",7,10]
["Formato A8F1","A08F1","Longitud:",null,"J9",9,10]
["Formato A8F1","A08F1","Altura:",null,"J11",11,10]
["Formato A8F1","A08F1","Costos distintos a combustible o energía [1] ",null,"F15",15,6]
["Formato A8F1","A08F1","No. Unidad",null,"F16",16,6]
["Formato A8F1","A08F1","Año",null,"G16",16,7]
["Formato A8F1","A08F1","Lubricantes",null,"H16",16,8]
["Formato A8F1","A08F1","Mano de obra para operación y mantenimiento",null,"I16",16,9]
["Formato A8F1","A08F1","Otros",null,"J16",16,10]
["Formato A8F1","A08F1","Especificación otros",null,"K16",16,11]
["Formato A9F1","A09F1","Información",null,"B3",3,2]
["Formato A9F1","A09F1","Datos generales",null,"C5",5,3]
["Formato A9F1","A09F1","Nombre de la estación:",null,"C7",7,3]
["Formato A9F1","A09F1","Nombre de gasoducto al que está conectada la estación:",null,"C8",8,3]
["Formato A9F1","A09F1","Agente que está operando y manteniendo la ERPC:",null,"C9",9,3]
["Formato A9F1","A09F1","Agente que asume responsabilidad de operación y mantenimiento de la ERPC:",null,"C10",10,3]
["Formato A9F1","A09F1","Nombre de la ERPC:",null,"C11",11,3]
["Formato A9F1","A09F1","Fecha de puesta en servicio:",null,"C12",12,3]
["Formato A9F1","A09F1","Fecha de finalización de vida útil normativa:",null,"C13",13,3]
["Formato A9F1","A09F1","Ubicación geográfica de la estación",null,"H5",5,8]
["Formato A9F1","A09F1","Latitud:",null,"I8",8,9]
["Formato A9F1","A09F1","Longitud:",null,"I10",10,9]
["Formato A9F1","A09F1","Altura:",null,"I12",12,9]
["Formato A9F1","A09F1","Información técnica",null,"C16",16,3]
["Formato A9F1","A09F1","Concepto",null,"C18",18,3]
["Formato A9F1","A09F1","Cantidad",null,"D18",18,4]
["Formato A9F1","A09F1","Descripción de la documentación adjunta",null,"E18",18,5]
["Formato A9F1","A09F1","Diagrama de tuberías e instrumentación:",null,"C19",19,3]
["Formato A9F1","A09F1","Filtros:",null,"C20",20,3]
["Formato A9F1","A09F1","Válvulas:",null,"C21",21,3]
["Formato A9F1","A09F1","Presión mínima entrada (psig):",null,"C22",22,3]
["Formato A9F1","A09F1","Presión máxima salida (psig):",null,"C23",23,3]
["Formato A9F1","A09F1","Capacidad PCH:",null,"C24",24,3]
["Formato A9F1","A09F1","Estación de medición:",null,"C25",25,3]
["Formato A9F1","A09F1","Inversión",null,"H16",16,8]
["Formato A9F1","A09F1","Concepto",null,"H18",18,8]
["Formato A9F1","A09F1","Valor ($)",null,"K18",18,11]
["Formato A9F1","A09F1","Inversión total (a):",null,"H19",19,8]
["Formato A9F1","A09F1","Costo de equipos (b):",null,"H20",20,8]
["Formato A9F1","A09F1","Costo obra civil y mecánica (c):",null,"H21",21,8]
["Formato A9F1","A09F1","Costo de permisos temporales servidumbres (d):",null,"H22",22,8]
["Formato A9F1","A09F1","Costo de inversión socio ambiental (e):",null,{"$f":"ADDRESS(F1502,G1502,4)","v":"H23"},23,8]
["Formato A9F1Aux","A09F1Aux","No. Segmento",null,"B19",19,2]
["Formato A9F1Aux","A09F1Aux","Nombre Agente",null,"C19",19,3]
["Formato A9F1Aux","A09F1Aux","Radicado",null,"D19",19,4]
["Formato A9F1Aux","A09F1Aux","Nombre Estación",null,"E19",19,5]
["Formato A9F1Aux","A09F1Aux","Nombre Gasoducto",null,"F19",19,6]
["Formato A9F1Aux","A09F1Aux","Agente que Opera ERPC",null,"G19",19,7]
["Formato A9F1Aux","A09F1Aux","Agente Responsable ERPC",null,"H19",19,8]
["Formato A9F1Aux","A09F1Aux","Nombre ERPC",null,"I19",19,9]
["Formato A9F1Aux","A09F1Aux","Fecha Puesta Servicio",null,"J19",19,10]
["Formato A9F1Aux","A09F1Aux","Fecha Final Vida Útil",null,"K19",19,11]
["Formato A9F1Aux","A09F1Aux","Latitud",null,"L19",19,12]
["Formato A9F1Aux","A09F1Aux","Longitud",null,"M19",19,13]
["Formato A9F1Aux","A09F1Aux","Altura",null,"N19",19,14]
["Formato A9F1Aux","A09F1Aux","Diagrama de tuberías e instrumentación:",null,"O19",19,15]
["Formato A9F1Aux","A09F1Aux","Descripción Documentación",null,"P19",19,16]
["Formato A9F1Aux","A09F1Aux","Filtros:",null,"Q19",19,17]
["Formato A9F1Aux","A09F1Aux","Descripción Documentación2",null,"R19",19,18]
["Formato A9F1Aux","A09F1Aux","Válvulas:",null,"S19",19,19]
["Formato A9F1Aux","A09F1Aux","Descripción Documentación3",null,"T19",19,20]
["Formato A9F1Aux","A09F1Aux","Presión mínima entrada (psig):",null,"U19",19,21]
["Formato A9F1Aux","A09F1Aux","Descripción Documentación4",null,"V19",19,22]
["Formato A9F1Aux","A09F1Aux","Presión máxima salida (psig):",null,"W19",19,23]
["Formato A9F1Aux","A09F1Aux","Descripción Documentación5",null,"X19",19,24]
["Formato A9F1Aux","A09F1Aux","Capacidad PCH:",null,"Y19",19,25]
["Formato A9F1Aux","A09F1Aux","Descripción Documentación6",null,"Z19",19,26]
["Formato A9F1Aux","A09F1Aux","Estación de medición:",null,"AA19",19,27]
["Formato A9F1Aux","A09F1Aux","Descripción Documentación7",null,"AB19",19,28]
["Formato A9F1Aux","A09F1Aux","Inversión total (a):",null,"AC19",19,29]
["Formato A9F1Aux","A09F1Aux","Costo de equipos (b):",null,"AD19",19,30]
["Formato A9F1Aux","A09F1Aux","Costo obra civil y mecánica (c):",null,"AE19",19,31]
["Formato A9F1Aux","A09F1Aux","Costo de permisos temporales servidumbres (d):",null,"AF19",19,32]
["Formato A9F1Aux","A09F1Aux","Costo de inversión socio ambiental (e):",null,{"$f":"ADDRESS(F1534,G1534,4)","v":"AG19"},19,33]
["Formato A9F1Aux","A09F1Aux","Código ERPC",null,"AH19",19,34]
["Formato A9F1Aux","A09F1Aux","Tipo ERPC",null,"AI19",19,35]
["Formato A9F1Aux","A09F1Aux","Diámetro Válvula  ESD",null,"AJ19",19,36]
["Formato A9F1Aux","A09F1Aux","Cantidad de Válvulas ESD",null,"AK19",19,37]
["Formato A9F1Aux","A09F1Aux","Tiene actuador la válvula ESD",null,"AL19",19,38]
["Formato A9F1Aux","A09F1Aux","Diámetro Skid - Filtro",null,"AM19",19,39]
["Formato A9F1Aux","A09F1Aux","Skid - Filtro cantidad",null,"AN19",19,40]
["Formato A9F1Aux","A09F1Aux","Diámetro Skid - Separador",null,"AO19",19,41]
["Formato A9F1Aux","A09F1Aux","Skid - Calentador- BTU/HR",null,"AP19",19,42]
["Formato A9F1Aux","A09F1Aux","Skid - Regulación (std by)",null,"AQ19",19,43]
["Formato A9F1Aux","A09F1Aux","Skid - Medición (std by)",null,"AR19",19,44]
["Formato A9F1Aux","A09F1Aux","Tipo de medidor ( std by)",null,"AS19",19,45]
["Formato A9F1Aux","A09F1Aux","Rango de Medición Min (std By)",null,"AT19",19,46]
["Formato A9F1Aux","A09F1Aux","Rango de Medición Max (std By)",null,"AU19",19,47]
["Formato A9F1Aux","A09F1Aux","Clase de medidor ( std by)",null,"AV19",19,48]
["Formato A9F1Aux","A09F1Aux","Skid - Medición",null,"AW19",19,49]
["Formato A9F1Aux","A09F1Aux","Tipo de medidor",null,"AX19",19,50]
["Formato A9F1Aux","A09F1Aux","Rango de Medición Min",null,"AY19",19,51]
["Formato A9F1Aux","A09F1Aux","Rango de Medición Max",null,"AZ19",19,52]
["Formato A9F1Aux","A09F1Aux","Clase de medidor",null,"BA19",19,53]
["Formato A9F1Aux","A09F1Aux","Skid - Odorizador - GL",null,"BB19",19,54]
["Formato A9F1Aux","A09F1Aux","Equipo Control Calidad de Gas",null,"BC19",19,55]
["Formato A9F1Aux","A09F1Aux","Unidad paquete (válvula ESD con actuador filtro separador, calent. eléctrico, sistema de regulación, medición y odorización)",null,"BD19",19,56]
["Formato A9F1Aux","A09F1Aux","Tubería relacionada",null,"BE19",19,57]
["Formato A9F1Aux","A09F1Aux","Área de terreno requerido (mts2 )",null,"BF19",19,58]
["Formato A9F1Aux","A09F1Aux","Válvula ESD\nNombre del archivo de registro fotográfico.",null,"BG19",19,59]
["Formato A9F1Aux","A09F1Aux","Skid - Filtro separador (std by)\nNombre del archivo de registro fotográfico.",null,"BH19",19,60]
["Formato A9F1Aux","A09F1Aux","Skid - separador (std by)\nNombre del archivo de registro fotográfico.",null,"BI19",19,61]
["Formato A9F1Aux","A09F1Aux","Skid - Calentador- BTU/HR\nNombre del archivo de registro fotográfico.",null,"BJ19",19,62]
["Formato A9F1Aux","A09F1Aux","Skid - Regulación (std by)\nNombre del archivo de registro fotográfico.",null,"BK19",19,63]
["Formato A9F1Aux","A09F1Aux","Skid - Medición (std by) \nNombre del archivo de registro fotográfico.",null,"BL19",19,64]
["Formato A9F1Aux","A09F1Aux","Skid - Medición\nNombre del archivo de registro fotográfico.",null,{"$f":"ADDRESS(F1566,G1566,4)","v":"BM19"},19,65]
["Formato A9F1Aux","A09F1Aux","Skid - Odorizador - GL\nNombre del archivo de registro fotográfico.",null,"BN19",19,66]
["Formato A9F1Aux","A09F1Aux","Equipo Control Calidad de Gas\nNombre del archivo de registro fotográfico.",null,"BO19",19,67]
["Formato A9F1Aux","A09F1Aux","Unidad paquete (válvula ESD con actuador filtro separador, calent. eléctrico, sistema de regulación, medición y odorización)\nNombre del archivo de registro fotográfico.",null,"BP19",19,68]
["Formato A9F1Aux","A09F1Aux","Tubería relacionada\nNombre del archivo de registro fotográfico.",null,"BQ19",19,69]
["Formato A9F1Aux","A09F1Aux","Vista Panorámica EPRC\nNombre del archivo de registro fotográfico.",null,"BR19",19,70]
["Formato A9F1Aux","A09F1Aux","Diagrama P&ID ERPC nombre archivo PDF ",null,"BS19",19,71]
["Formato A9F1Aux","A09F1Aux","Observaciones o aclaraciones adicionales",null,"BT19",19,72]
["Formato A9F1Aux","A09F1Aux","Listado archivos complementarios separados por ;",null,"BU19",19,73]
["Formato A9F2","A09F2","Nombre Representante Legal Vigente:",null,"B22",22,2]
["Formato A9F2","A09F2","CC Representante legal",null,"B23",23,2]
["Formato A9F2","A09F2","Nombre del contador:",null,"B24",24,2]
["Formato A9F2","A09F2","CC contador:",null,"B25",25,2]
["Formato A9F2","A09F2","Tarjeta profesional Contador nro.:",null,"B26",26,2]
["Formato A9F2","A09F2","Nombre Revisor Fiscal:",null,"B27",27,2]
["Formato A9F2","A09F2","CC Revisor Fiscal:",null,"B28",28,2]
["Formato A9F2","A09F2","Tarjeta profesional Revisor fiscal nro.:",null,"B29",29,2]
["Formato A9F2","A09F2","Firma representante legal  (solo en pdf)",null,"B30",30,2]
["Formato A9F2","A09F2","Firma contador  (solo en pdf)",null,"B31",31,2]
["Formato A9F2","A09F2","Firma Revisor fiscal (solo en pdf)",null,"B32",32,2]
["Formato A9F2","A09F2","Observaciones adicionales:",null,"B39",39,2]
["Formato A9F2","A09F2","Información general de las ERPCs",null,"A43",43,1]
["Formato A9F2","A09F2","No. ERPC",null,"A45",45,1]
["Formato A9F2","A09F2","Nombre Agente",null,"B45",45,2]
["Formato A9F2","A09F2","Radicado",null,"C45",45,3]
["Formato A9F2","A09F2","Nombre EPC",null,"D45",45,4]
["Formato A9F2","A09F2","Nombre tramo gasoducto",null,"E45",45,5]
["Formato A9F2","A09F2","Agente que Opera ERPC",null,"F45",45,6]
["Formato A9F2","A09F2","Agente Responsable ERPC",null,"G45",45,7]
["Formato A9F2","A09F2","Va a reemplazar la estación completa ?",null,"H45",45,8]
["Formato A9F2","A09F2","va a cambiar de ubicación la nueva ERPC",null,"I46",46,9]
["Formato A9F2","A09F2","Latitud ",null,"J46",46,10]
["Formato A9F2","A09F2","Longitud",null,"K46",46,11]
["Formato A9F2","A09F2","Valor en libros  de la ERPCs COP 2021 (A)",null,{"$f":"ADDRESS(F1599,G1599,4)","v":"L45"},45,12]
["Formato A9F2","A09F2","Valor depreciación de la ERPCs COP 2021 (B)",null,"M45",45,13]
["Formato A9F2","A09F2","Valor depreciado  (A-B) COP 2021 (B)",null,"N45",45,14]
["Formato A9F2","A09F2","Fecha de activación",null,"O45",45,15]
["Formato A9F2","A09F2","código del concepto contable",null,"P45",45,16]
["Formato A9F2","A09F2","nombre del concepto contable",null,"Q45",45,17]
["Formato A9F2","A09F2","listado de nombres de soportes separado por \";\" ejemplo: \"factura_medidor.pdf; \"factura_filtro.pdf;\"factura_ERPC_llave_en_mano.pdf",null,"R45",45,18]
["Formato A9F2","A09F2","Información de componentes de la ERPC  a reemplazar en  la ERPC que desea mantener en operación",null,"A89",89,1]
["Formato A9F2","A09F2","No. Componente",null,"A91",91,1]
["Formato A9F2","A09F2","Nombre EPC",null,"B91",91,2]
["Formato A9F2","A09F2","Nombre tramo gasoducto",null,"C91",91,3]
["Formato A9F2","A09F2","Fecha instalación de Equipo a reemplazar",null,"D91",91,4]
["Formato A9F2","A09F2","Seleccione cuales componentes de la ERPC va a reemplazar",null,"E91",91,5]
["Formato A9F2","A09F2","Otro componente",null,"F91",91,6]
["Formato A9F2","A09F2","Descripción otro componente",null,"G91",91,7]
["Formato A9F2","A09F2","Indique nombre del archivo del Certificado de mantenimiento",null,"H91",91,8]
["Formato A9F2","A09F2","Tipo de equipo existente",null,"I91",91,9]
["Formato A9F2","A09F2","Tipo de equipo de reemplazo",null,"J91",91,10]
["Formato A9F2","A09F2","Fecha de entrada en operación del equipo nuevo",null,"K91",91,11]
["Formato A9F2","A09F2","Fotografía de equipo a reemplazar",null,"L91",91,12]
["Formato A9F2","A09F2","Observaciones o aclaraciones adicionales",null,"M91",91,13]
["Formato A9F2","A09F2","Listado archivos complementarios separados por ;",null,{"$f":"ADDRESS(F1620,G1620,4)","v":"N91"},91,14]
["Formato A9F3","A09F3","Nombre Representante Legal Vigente:",null,"C12",12,3]
["Formato A9F3","A09F3","CC Representante legal",null,"C13",13,3]
["Formato A9F3","A09F3","Nombre del contador:",null,"C14",14,3]
["Formato A9F3","A09F3","CC contador:",null,"C15",15,3]
["Formato A9F3","A09F3","Tarjeta profesional Contador nro.:",null,"C16",16,3]
["Formato A9F3","A09F3","Nombre Revisor Fiscal:",null,"C17",17,3]
["Formato A9F3","A09F3","CC Revisor Fiscal:",null,"C18",18,3]
["Formato A9F3","A09F3","Tarjeta profesional Revisor fiscal nro.:",null,"C19",19,3]
["Formato A9F3","A09F3","Firma representante legal  (solo en pdf)",null,"C20",20,3]
["Formato A9F3","A09F3","Firma contador  (solo en pdf)",null,"C21",21,3]
["Formato A9F3","A09F3","Firma Revisor fiscal (solo en pdf)",null,"C22",22,3]
["Formato A9F3","A09F3","Observaciones adicionales:",null,"C29",29,3]
["Formato A9F3","A09F3","Nombre:",null,"C35",35,3]
["Formato A9F3","A09F3","Tipo (a):",null,"C36",36,3]
["Formato A9F3","A09F3","Días de ejecución (c):",null,"C37",37,3]
["Formato A9F3","A09F3","Fecha de inicio:",null,"C38",38,3]
["Formato A9F3","A09F3","Fecha de finalización:",null,"C39",39,3]
["Formato A9F3","A09F3","Gasoducto troncal asociado:",null,"C40",40,3]
["Formato A9F3","A09F3","Tipo de activo asociado:",null,"C41",41,3]
["Formato A9F3","A09F3","Nombre del activo asociado:",null,"C42",42,3]
["Formato A9F3","A09F3","No. del segmento reportado al que se conecta:",null,"C43",43,3]
["Formato A9F3","A09F3","Latitud (d):",null,"P37",37,16]
["Formato A9F3","A09F3","Longitud (d):",null,"P39",39,16]
["Formato A9F3","A09F3","Altura:",null,"P41",41,16]
["Formato A9F3","A09F3","Descripción del proyecto (b):",null,"C45",45,3]
["Formato A9F3","A09F3","Flujo de construcción",null,"B56",56,2]
["Formato A9F3","A09F3","No.",null,"B58",58,2]
["Formato A9F3","A09F3","Año",null,"C58",58,3]
["Formato A9F3","A09F3","Otras actividades (e)",null,"D58",58,4]
["Formato A9F3","A09F3","Costo de equipos (f)",null,"F58",58,6]
["Formato A9F3","A09F3","Costo obra civil y mecánica (g)",null,"H58",58,8]
["Formato A9F3","A09F3","Costo de permisos temporales servidumbres (h)",null,{"$f":"ADDRESS(F1652,G1652,4)","v":"K58"},58,11]
["Formato A9F3","A09F3","Costo de inversión socio ambiental (i)",null,"P58",58,16]
["Formato A9F3","A09F3","Total",null,"T58",58,20]
["Formato A9F3","A09F3","Listado de soportes",null,"B78",78,2]
["Formato A9F3","A09F3","No.",null,"B80",80,2]
["Formato A9F3","A09F3","Año",null,"C80",80,3]
["Formato A9F3","A09F3","Tipo Inversión",null,"D80",80,4]
["Formato A9F3","A09F3","Archivo (sepárelos por ; )",null,"F80",80,6]
["Formato A9F3","A09F3","Descripción",null,"H80",80,8]
["Formato A10F1","A10F1","Información",null,{"$f":"ADDRESS(F1661,G1661,4)","v":"B3"},3,2]
["Formato A10F1","A10F1","Datos generales",null,"C5",5,3]
["Formato A10F1","A10F1","Nombre de la estación:",null,"C7",7,3]
["Formato A10F1","A10F1","Nombre de gasoducto al que está conectada la estación:",null,"C8",8,3]
["Formato A10F1","A10F1","Agente que está operando y manteniendo la ERPC:",null,"C9",9,3]
["Formato A10F1","A10F1","Nombre de la ERPC:",null,"C10",10,3]
["Formato A10F1","A10F1","Fecha de puesta en servicio:",null,"C11",11,3]
["Formato A10F1","A10F1","Fecha de finalización de vida útil normativa:",null,"C12",12,3]
["Formato A10F1","A10F1","Ubicación geográfica de la estación",null,"H5",5,8]
["Formato A10F1","A10F1","Latitud:",null,"I8",8,9]
["Formato A10F1","A10F1","Longitud:",null,"I10",10,9]
["Formato A10F1","A10F1","Altura:",null,"I12",12,9]
["Formato A10F1","A10F1","Información técnica",null,"C15",15,3]
["Formato A10F1","A10F1","Concepto",null,{"$f":"ADDRESS(F1674,G1674,4)","v":"C17"},17,3]
["Formato A10F1","A10F1","Cantidad",null,"D17",17,4]
["Formato A10F1","A10F1","Descripción de la documentación adjunta",null,"E17",17,5]
["Formato A10F1","A10F1","Diagrama de tuberías e instrumentación:",null,"C18",18,3]
["Formato A10F1","A10F1","Filtros:",null,"C19",19,3]
["Formato A10F1","A10F1","Válvulas:",null,"C20",20,3]
["Formato A10F1","A10F1","Presión mínima entrada (psig):",null,"C21",21,3]
["Formato A10F1","A10F1","Presión máxima salida (psig):",null,"C22",22,3]
["Formato A10F1","A10F1","Capacidad PCH:",null,"C23",23,3]
["Formato A10F1","A10F1","Estación de medición:",null,"C24",24,3]
["Formato A10F1","A10F1","Inversión",null,"H15",15,8]
["Formato A10F1","A10F1","Concepto",null,"H17",17,8]
["Formato A10F1","A10F1","Valor ($)",null,"K17",17,11]
["Formato A10F1","A10F1","Inversión total (a):",null,"H18",18,8]
["Formato A10F1","A10F1","Costo de equipos (b):",null,"H19",19,8]
["Formato A10F1","A10F1","Costo obra civil y mecánica (c):",null,"H20",20,8]
["Formato A10F1","A10F1","Costo de permisos temporales servidumbres (d):",null,"H21",21,8]
["Formato A10F1","A10F1","Costo de inversión socio ambiental (e):",null,"H22",22,8]

{"sheet":"TipoDatos","index":9,"n_rows":826,"n_cols":23,"rows_kept":826,"cut":false,"hidden":true,"merged":[]}
["Formulario","Formato Validación","Nombre del Rango","Celda","Fila","Columna","Modelo","Requerido","Tipo de Dato","Número_Mínimo_Decimales","Número_Mínimo","Número_Máximo","Texto_Lista Desplegable","Texto_Long. Mínima","Texto_Long. Máxima","Fecha_Validación","Valor Celda","Valida Número","Valida Texto","Valida Lista Externa","Valida Lista Interna","Valida Fecha","Validador"]
["Datos Empresa","DATOS","Nombre de la Empresa",{"$f":"ADDRESS(E2,F2,4)","v":"D5"},5,4,"Maestro","Si","Texto",null,null,null,null,5]
["Datos Empresa","DATOS","NIT","D6",6,4,"Maestro","Si","Texto",null,null,null,null,9,13]
["Datos Empresa","DATOS","Nombre del Representante Legal","D7",7,4,"Maestro","Si","Texto",null,null,null,null,5]
["Datos Empresa","DATOS","Nombre de Contacto para Aclarar Inquietudes","D8",8,4,"Maestro","Si","Texto",null,null,null,null,5]
["Datos Empresa","DATOS","Correo Electrónico de Contacto","D9",9,4,"Maestro","Si","Texto",null,null,null,null,5]
["Formato A2F1","A02F1","Nombre del gasoducto troncal asociado al reporte:","D3",3,4,"Maestro","Si","ListaExterna",null,null,null,"Gasoductos[NOMBRE GASODUCTO TRONCAL]"]
["Formato A2F1","A02F1","Tipo de activo que se está reportando:","D4",4,4,"Maestro","Si","ListaInterna",null,null,null,"TipoActivo[Nombre Tipo de Activo]"]
["Formato A2F1","A02F1","Nombre del activo que se está reportando:","D5",5,4,"Maestro","Si","ListaExterna",null,null,null,"Activos[NOMBRE ACTIVO]"]
["Formato A2F1","A02F1","Fecha Base:","D6",6,4,"Maestro","Si","Fecha",null,null,null,null,null,null,{"$f":"DATE(2021,12,31)","v":"2021-12-31"}]
["Formato A2F1","A02F1","Valor total (en $COP de la fecha base):","D7",7,4,"Maestro","Si","Número",null,0]
["Formato A2F1","A02F1","Año de entrada en operación:","D8",8,4,"Maestro","Si","Número",null,1900,9999]
["Formato A2F1","A02F1","No. Segmento","A11",11,1,"Detalle","Si","Número",null,1]
["Formato A2F1","A02F1","Longitud segmento (metros)","B11",11,2,"Detalle","Si","Número",null,0]
["Formato A2F1","A02F1","Latitud(Decimal)","C11",11,3,"Detalle","Si","Número",5]
["Formato A2F1","A02F1","Longitud(Decimal)","D11",11,4,"Detalle","Si","Número",5]
["Formato A2F1","A02F1","Altura (metros sobre el nivel del mar)","E11",11,5,"Detalle","Si","Número"]
["Formato A2F1","A02F1","Diámetro (pulgadas)","F11",11,6,"Detalle","Si","Número",null,0]
["Formato A2F1","A02F1","Tipo de suelo","G11",11,7,"Detalle","Si","ListaInterna",null,null,null,"TipoSuelo[Nombre Tipo de Suelo]"]
["Formato A2F1","A02F1","Vegetación","H11",11,8,"Detalle","Si","ListaInterna",null,null,null,"TipoVegetacion[Nombre tipo de vegetación]"]
["Formato A2F1","A02F1","Nivel freático","I11",11,9,"Detalle","Si","ListaInterna",null,null,null,"TipoNivelFreatico[Nombre Nivel Freático]"]
["Formato A2F1","A02F1","Clase de localidad","J11",11,10,"Detalle","Si","ListaInterna",null,null,null,"ClaseLocalidad[Nombre Clase de localidad]"]
["Formato A2F1","A02F1","Cruces de cuerpos de agua","K11",11,11,"Detalle","Si","ListaInterna",null,null,null,"TipoCrucesCuerposAgua[Tipo de cruce cuerpos de agua]"]
["Formato A2F1","A02F1","Cruces fallas geológicas (cruces sismicos)","L11",11,12,"Detalle","Si","Número",null,0,1]
["Formato A2F1","A02F1","Terreno cultivado","M11",11,13,"Detalle","Si","Número",null,0,1]
["Formato A2F1","A02F1","Inclinación de terreno","N11",11,14,"Detalle","Si","ListaInterna",null,null,null,"InclinacionTerreo[Inclinación del terreno]"]
["Formato A2F1","A02F1","Media ladera","O11",11,15,"Detalle","Si","ListaInterna",null,null,null,"MediaLadera[Media ladera]"]
["Formato A2F1","A02F1","Gasoducto construido a Doble junta","P11",11,16,"Detalle","Si","Número",null,0,1]
["Formato A2F1","A02F1","Área congestionada","Q11",11,17,"Detalle","Si","Número",null,0,1]
["Formato A2F1","A02F1","No. de conexiones tapón doble más hot tap y bypass","R11",11,18,"Detalle","Si","Número",null,0]
["Formato A2F1","A02F1","No. de conexiones tapón doble más hot tap ","S11",11,19,"Detalle","Si","Número",null,0]
["Formato A2F1","A02F1","No. de conexiones corte en caliente,  hot tap ","T11",11,20,"Detalle","Si","Número",null,0]
["Formato A2F1","A02F1","No. de conexiones corte en frio,  cold tap ","U11",11,21,"Detalle","Si","Número",null,0]
["Formato A2F2","A02F2","Nombre del compresor:","F5",5,6,"Maestro","Si","Texto",null,null,null,null,5,150]
["Formato A2F2","A02F2","Capacidad total:","F6",6,6,"Maestro","Si","Número",null,0]
["Formato A2F2","A02F2","Potencia total:","F7",7,6,"Maestro","Si","Número",null,0]
["Formato A2F2","A02F2","Presión mínima entrada:","F8",8,6,"Maestro","Si","Número",null,0]
["Formato A2F2","A02F2","Presión máxima salida:","F9",9,6,"Maestro","Si","Número",null,0]
["Formato A2F2","A02F2","Temperatura de succión:","F10",10,6,"Maestro","Si","Número",null,0]
["Formato A2F2","A02F2","Temperatura de descarga:","F11",11,6,"Maestro","Si","Número",null,0]
["Formato A2F2","A02F2","Fecha inicio del proyecto:","F12",12,6,"Maestro","Si","Fecha"]
["Formato A2F2","A02F2","Fecha Puesta en operación comercial:","F13",13,6,"Maestro","Si","Fecha"]
["Formato A2F2","A02F2","Valor insonorización:","F14",14,6,"Maestro","Si","Número",null,0]
["Formato A2F2","A02F2","Valor total estación compresora:","F15",15,6,"Maestro","Si","Número",null,0]
["Formato A2F2","A02F2","Incluye tea:","F16",16,6,"Maestro","Si","Número",null,0,1]
["Formato A2F2","A02F2","Latitud:","Q7",7,17,"Maestro","Si","Número",5]
["Formato A2F2","A02F2","Longitud:","Q9",9,17,"Maestro","Si","Número",5]
["Formato A2F2","A02F2","Altura:","Q11",11,17,"Maestro","Si","Número"]
["Formato A2F2","A02F2","Tramo o grupos de gasoductos asociados:","P16",16,16,"Maestro","Si","ListaExterna",null,null,null,"Activos[NOMBRE ACTIVO]"]
["Formato A2F2","A02F2","Breve descripción del alcance del sistema de control:","C19",19,3,"Maestro","Si","Texto",null,null,null,null,20,3000]
["Formato A2F2","A02F2","Breve descripción del alcance del sistema de monitoreo y protección del equipo:","C24",24,3,"Maestro","Si","Texto",null,null,null,null,null,3000]
["Formato A2F2","A02F2","Si se incluye tea haga la descripción aquí:","C29",29,3,"Maestro","Si","Texto",null,null,null,null,null,3000]
["Formato A2F2","A02F2","Descripción insonorización:","C35",35,3,"Maestro","Si","Texto",null,null,null,null,null,3000]
["Formato A2F2","A02F2","No. Unidad","B44",44,2,"Detalle","Si","Número",null,1]
["Formato A2F2","A02F2","Tecnología ","C44",44,3,"Detalle","No","Texto"]
["Formato A2F2","A02F2","Potencia","D44",44,4,"Detalle","No","Número"]
["Formato A2F2","A02F2","Presión mínima entrada","E44",44,5,"Detalle","No","Número"]
["Formato A2F2","A02F2","Presión máxima salida","G44",44,7,"Detalle","No","Número"]
["Formato A2F2","A02F2","Número de etapas","I44",44,9,"Detalle","No","Número"]
["Formato A2F2","A02F2","Tipo de combustible que usa el compresor para operar ","K44",44,11,"Detalle","No","Texto"]
["Formato A2F2","A02F2","Consumo a plena carga [BTU/hora]","P44",44,16,"Detalle","No","Número"]
["Formato A2F2","A02F2","Consumo a plena carga [kWh]","S44",44,19,"Detalle","No","Número"]
["Formato A2F2","A02F2","Metano","G69",69,7,"Maestro","Si","Número",null,0,100]
["Formato A2F2","A02F2","Nitrógeno","G70",70,7,"Maestro","Si","Número",null,0,100]
["Formato A2F2","A02F2","Dióxido de Carbono","G71",71,7,"Maestro","Si","Número",null,0,100]
["Formato A2F2","A02F2","Etano",{"$f":"ADDRESS(E66,F66,4)","v":"G72"},72,7,"Maestro","Si","Número",null,0,100]
["Formato A2F2","A02F2","Propano","G73",73,7,"Maestro","Si","Número",null,0,100]
["Formato A2F2","A02F2","Agua","G74",74,7,"Maestro","Si","Número",null,0,100]
["Formato A2F2","A02F2","Sulfuro de Hidrógeno","G75",75,7,"Maestro","Si","Número",null,0,100]
["Formato A2F2","A02F2","Hidrógeno","G76",76,7,"Maestro","Si","Número",null,0,100]
["Formato A2F2","A02F2","Monóxido de Carbono","G77",77,7,"Maestro","Si","Número",null,0,100]
["Formato A2F2","A02F2","Oxígeno","G78",78,7,"Maestro","Si","Número",null,0,100]
["Formato A2F2","A02F2","i-Butano","G79",79,7,"Maestro","Si","Número",null,0,100]
["Formato A2F2","A02F2","n-Butano","G80",80,7,"Maestro","Si","Número",null,0,100]
["Formato A2F2","A02F2","i-Pentano","G81",81,7,"Maestro","Si","Número",null,0,100]
["Formato A2F2","A02F2","n-Pentano","G82",82,7,"Maestro","Si","Número",null,0,100]
["Formato A2F2","A02F2","n-Hexano","G83",83,7,"Maestro","Si","Número",null,0,100]
["Formato A2F2","A02F2","n-Heptano","G84",84,7,"Maestro","Si","Número",null,0,100]
["Formato A2F2","A02F2","n-Octano","G85",85,7,"Maestro","Si","Número",null,0,100]
["Formato A2F2","A02F2","n-Nonano","G86",86,7,"Maestro","Si","Número",null,0,100]
["Formato A2F2","A02F2","n-Decano","G87",87,7,"Maestro","Si","Número",null,0,100]
["Formato A2F2","A02F2","Helio","G88",88,7,"Maestro","Si","Número",null,0,100]
["Formato A2F2","A02F2","Argón","G89",89,7,"Maestro","Si","Número",null,0,100]
["Formato A2F2","A02F2","Total","G90",90,7,"Maestro","Si","Número",null,0,100]
["Formato A2F3","A02F3","Nombre:","G5",5,7,"Maestro","Si","Texto"]
["Formato A2F3","A02F3","Tipo (a):","G6",6,7,"Maestro","Si","Texto"]
["Formato A2F3","A02F3","Días de ejecución (c):","G7",7,7,"Maestro","Si","Número",null,0]
["Formato A2F3","A02F3","Fecha de inicio:","G8",8,7,"Maestro","Si","Fecha"]
["Formato A2F3","A02F3","Fecha de finalización:","G9",9,7,"Maestro","Si","Fecha"]
["Formato A2F3","A02F3","Gasoducto troncal asociado:","G10",10,7,"Maestro","Si","ListaExterna",null,null,null,"Gasoductos[NOMBRE GASODUCTO TRONCAL]"]
["Formato A2F3","A02F3","Tipo de activo asociado:","G11",11,7,"Maestro","Si","ListaInterna",null,null,null,"TipoActivo[Nombre Tipo de Activo]"]
["Formato A2F3","A02F3","Nombre del activo asociado:","G12",12,7,"Maestro","Si","ListaExterna",null,null,null,"Activos[NOMBRE ACTIVO]"]
["Formato A2F3","A02F3","No. del segmento reportado al que se conecta:","G13",13,7,"Maestro","No","Texto"]
["Formato A2F3","A02F3","Latitud  (d)","Q7",7,17,"Maestro","No","Número",5]
["Formato A2F3","A02F3","Longitud (d):","Q9",9,17,"Maestro","No","Número",5]
["Formato A2F3","A02F3","Altura:","Q11",11,17,"Maestro","No","Número"]
["Formato A2F3","A02F3","Descripción del proyecto (b):","C16",16,3,"Maestro","Si","Texto"]
["Formato A2F3","A02F3","No.","B27",27,2,"Detalle","Si","Número"]
["Formato A2F3","A02F3","Año","C27",27,3,"Detalle","Si","Número"]
["Formato A2F3","A02F3","Total otras actividades (e)","D27",27,4,"Detalle","Si","Número",null,0]
["Formato A2F3","A02F3","Costo de equipos (f)","F27",27,6,"Detalle","Si","Número",null,0]
["Formato A2F3","A02F3","Costo obra civil y mecánica (g)","H27",27,8,"Detalle","Si","Número",null,0]
["Formato A2F3","A02F3","Costo de permisos temporales servidumbres (h)","K27",27,11,"Detalle","Si","Número",null,0]
["Formato A2F3","A02F3","Costo de inversión socio ambiental (i)","P27",27,16,"Detalle","Si","Número",null,0]
["Formato A2F3","A02F3","Total","T27",27,20,"Detalle","Si","Número",null,0]
["Formato A2F3Aux","A02F3Aux","Nombre del proyecto:","G23",23,7,"Maestro","Si","Texto"]
["Formato A2F3Aux","A02F3Aux","Variable metodología:","G24",24,7,"Maestro","Si","Texto"]
["Formato A2F3Aux","A02F3Aux","Tipo proyecto:","G25",25,7,"Maestro","Si","Texto"]
["Formato A2F3Aux","A02F3Aux","Días de ejecución (a):","G26",26,7,"Maestro","Si","Número"]
["Formato A2F3Aux","A02F3Aux","Fecha de inicio:","G27",27,7,"Maestro","Si","Fecha"]
["Formato A2F3Aux","A02F3Aux","Fecha de finalización:","G28",28,7,"Maestro","Si","Fecha"]
["Formato A2F3Aux","A02F3Aux","Año y mes de entrada en operación:","G29",29,7,"Maestro","Si","Texto",null,null,null,null,7,7]
["Formato A2F3Aux","A02F3Aux","Año y mes de reconocimiento en cargos:","G30",30,7,"Maestro","No","Texto",null,null,null,null,7,7]
["Formato A2F3Aux","A02F3Aux","Gasoducto troncal asociado:","G31",31,7,"Maestro","Si","ListaExterna",null,null,null,"Gasoductos[NOMBRE GASODUCTO TRONCAL]"]
["Formato A2F3Aux","A02F3Aux","Tipo de activo asociado:","G32",32,7,"Maestro","Si","ListaInterna",null,null,null,"TipoActivo[Nombre Tipo de Activo]"]
["Formato A2F3Aux","A02F3Aux","Nombre del activo asociado:","G33",33,7,"Maestro","Si","ListaExterna",null,null,null,"Activos[NOMBRE ACTIVO]"]
["Formato A2F3Aux","A02F3Aux","Descripción del proyecto (b):","C36",36,3,"Maestro","Si","Texto"]
["Formato A2F3Aux","A02F3Aux","Justificación del proyecto:","C46",46,3,"Maestro","Si","Texto"]
["Formato A2F3Aux","A02F3Aux","Carpeta con la descripción del proyecto:","G55",55,7,"Maestro","Si","Texto"]
["Formato A2F3Aux","A02F3Aux","Documento memoria técnica del proyecto:","G56",56,7,"Maestro","Si","Texto"]
["Formato A2F3Aux","A02F3Aux","Nombre del archivo .kmz con trazado y ubicación del proyecto:","G57",57,7,"Maestro","Si","Texto"]
["Formato A2F3Aux","A02F3Aux","Nombre de la carpeta del archivo kmz asociada al gasoducto:","G58",58,7,"Maestro","Si","Texto"]
["Formato A2F3Aux","A02F3Aux","Información complementaria:","G59",59,7,"Maestro","No","Texto"]
["Formato A2F3Aux","A02F3Aux","No.","B65",65,2,"Detalle","Si","Número"]
["Formato A2F3Aux","A02F3Aux","Año","C65",65,3,"Detalle","Si","Número"]
["Formato A2F3Aux","A02F3Aux","Total otras actividades (d)","D65",65,4,"Detalle","Si","Número"]
["Formato A2F3Aux","A02F3Aux","Costo de equipos (e)","F65",65,6,"Detalle","Si","Número"]
["Formato A2F3Aux","A02F3Aux","Costo obra civil y mecánica (f)","H65",65,8,"Detalle","Si","Número"]
["Formato A2F3Aux","A02F3Aux","Costo de permisos temporales servidumbres (g)","K65",65,11,"Detalle","Si","Número"]
["Formato A2F3Aux","A02F3Aux","Costo de inversión socio ambiental (h)","P65",65,16,"Detalle","Si","Número"]
["Formato A2F3Aux","A02F3Aux","Total","T65",65,20,"Detalle","Si","Número"]
["Formato A2F3Aux","A02F3Aux","No.","B76",76,2,"Detalle","Si","Número"]
["Formato A2F3Aux","A02F3Aux","Tipo (j)","C76",76,3,"Detalle","Si","Texto"]
["Formato A2F3Aux","A02F3Aux","Longitud segmento (metros) (k)","D76",76,4,"Detalle","Si","Número"]
["Formato A2F3Aux","A02F3Aux","Latitud(Decimal) (l)","F76",76,6,"Detalle","Si","Número",5]
["Formato A2F3Aux","A02F3Aux","Longitud(Decimal) (m)","H76",76,8,"Detalle","Si","Número",5]
["Formato A2F3Aux","A02F3Aux","Altura (metros sobre el nivel del mar)","J76",76,10,"Detalle","Si","Número"]
["Formato A2F3Aux","A02F3Aux","Diámetro (pulgadas) (n)","K76",76,11,"Detalle","Si","Número"]
["Formato A2F3Aux","A02F3Aux","Comentarios (o)","L76",76,12,"Detalle","No","Texto"]
["Formato A2F4","A02F4","No.","A5",5,1,"Detalle","Si","Número",null,1]
["Formato A2F4","A02F4","Tipo  proyecto","B5",5,2,"Detalle","Si","ListaInterna",null,null,null,"TipoProyectoF4[Tipo Proyecto]"]
["Formato A2F4","A02F4","Año y mes de entrada en operación","C5",5,3,"Detalle","Si","Fecha"]
["Formato A2F4","A02F4","Año y mes en el que la CREG por primera vez lo reconoció en los cargos tarifarios","D5",5,4,"Detalle","Si","Fecha"]
["Formato A2F4","A02F4","Gasoducto troncal ","E5",5,5,"Detalle","Si","Texto"]
["Formato A2F4","A02F4","Tramo al que se le aplica el proyecto","F5",5,6,"Detalle","Si","ListaExterna",null,null,null,"Activos[NOMBRE ACTIVO]"]
["Formato A2F4","A02F4","Latitud(Decimal)","G5",5,7,"Detalle","No","Número",5]
["Formato A2F4","A02F4","Longitud(Decimal)","H5",5,8,"Detalle","No","Número",5]
["Formato A2F4","A02F4","Altura (metros sobre el nivel del mar)","I5",5,9,"Detalle","No","Número"]
["Formato A2F4","A02F4","descripción del proyecto","J5",5,10,"Detalle","Si","Texto"]
["Formato A2F4","A02F4","Justificación del proyecto.","K5",5,11,"Detalle","Si","Texto"]
["Formato A2F4","A02F4","Carpeta con la descripcion del proyecto ","L5",5,12,"Detalle","Si","Texto"]
["Formato A2F4","A02F4","Nombre del archivo .kmz con trazado y ubicación del proyecto","M5",5,13,"Detalle","Si","Texto"]
["Formato A2F4","A02F4","Nombre de la carpeta del archivo kmz asociada al gasoducto ","N5",5,14,"Detalle","Si","Texto"]
["Formato A2F4","A02F4","información complementaria","O5",5,15,"Detalle","Si","Texto"]
["Formato A3F1","A03F1","Nombre del gasoducto:","G5",5,7,"Maestro","Si","Texto"]
["Formato A3F1","A03F1","Capacidad máxima de mediano plazo:","G6",6,7,"Maestro","Si","Número",null,0]
["Formato A3F1","A03F1","Días de ejecución del proyecto:","G7",7,7,"Maestro","Si","Número",null,0]
["Formato A3F1","A03F1","Longitud de construcción por día:","G8",8,7,"Maestro","Si","Número",null,0]
["Formato A3F1","A03F1","Longitud total  del gasoducto:","G9",9,7,"Maestro","Si","Número",null,0]
["Formato A3F1","A03F1","No. de conexiones tapón doble más hot tap y bypass:","G10",10,7,"Maestro","Si","Número",null,0]
["Formato A3F1","A03F1","No. de conexiones tapón doble más hot tap:","G11",11,7,"Maestro","Si","Número",null,0]
["Formato A3F1","A03F1","No. de conexiones corte en caliente, hot tap:","G12",12,7,"Maestro","Si","Número",null,0]
["Formato A3F1","A03F1","No. de conexiones corte en frio,  cold tap:","G13",13,7,"Maestro","Si","Número",null,0]
["Formato A3F1","A03F1","Fecha inicio del proyecto:",{"$f":"ADDRESS(E164,F164,4)","v":"G14"},14,7,"Maestro","Si","Fecha"]
["Formato A3F1","A03F1","Fecha finalización del proyecto:","G15",15,7,"Maestro","Si","Fecha"]
["Formato A3F1","A03F1","Latitud:","Q7",7,17,"Maestro","Si","Número",5]
["Formato A3F1","A03F1","Longitud:","Q9",9,17,"Maestro","Si","Número",5]
["Formato A3F1","A03F1","Altura:","Q11",11,17,"Maestro","Si","Número"]
["Formato A3F1","A03F1","No.","B19",19,2,"Detalle","Si","Número",null,0]
["Formato A3F1","A03F1","Año","C19",19,3,"Detalle","Si","Número",null,0]
["Formato A3F1","A03F1","Metros construidos","D19",19,4,"Detalle","Si","Número",null,0]
["Formato A3F1","A03F1","Costo de construcción del gasoducto (a)","F19",19,6,"Detalle","Si","Número",null,0]
["Formato A3F1","A03F1","Costo de todos los materiales permanentes (b)","H19",19,8,"Detalle","Si","Número",null,0]
["Formato A3F1","A03F1","Costo de permisos temporales servidumbres (c) ","J19",19,10,"Detalle","Si","Número",null,0]
["Formato A3F1","A03F1","Costo en inversión social (d)","L19",19,12,"Detalle","Si","Número",null,0]
["Formato A3F1","A03F1","Costo en inversión ambiental (e) ","N19",19,14,"Detalle","Si","Número",null,0]
["Formato A3F1","A03F1","Costo en inversion de estación de transferencia entre transportadores (f)","P19",19,16,"Detalle","Si","Número",null,0]
["Formato A3F1","A03F1","Total","T19",19,20,"Detalle","Si","Número",null,0]
["Formato A3F2","A03F2","Nombre de la estación de compresión:","F5",5,6,"Maestro","Si","Texto"]
["Formato A3F2","A03F2","Capacidad de compresión:","F6",6,6,"Maestro","Si","Número",null,0]
["Formato A3F2","A03F2","Potencia total instalada:","F7",7,6,"Maestro","Si","Número",null,0]
["Formato A3F2","A03F2","Presión mínima entrada:","F8",8,6,"Maestro","Si","Número",null,0]
["Formato A3F2","A03F2","Presión máxima salida:","F9",9,6,"Maestro","Si","Número",null,0]
["Formato A3F2","A03F2","Días de ejecución del proyecto:","F10",10,6,"Maestro","Si","Número",null,0]
["Formato A3F2","A03F2","Fecha inicio del proyecto:","F11",11,6,"Maestro","Si","Fecha"]
["Formato A3F2","A03F2","Fecha finalización del proyecto:","F12",12,6,"Maestro","Si","Fecha"]
["Formato A3F2","A03F2","Latitud:","L7",7,12,"Maestro","Si","Número",5]
["Formato A3F2","A03F2","Longitud:","L9",9,12,"Maestro","Si","Número",5]
["Formato A3F2","A03F2","Altura:","L11",11,12,"Maestro","Si","Número"]
["Formato A3F2","A03F2","No. Unidad","C16",16,3,"Detalle","Si","Número",null,1]
["Formato A3F2","A03F2","Tecnología ","D16",16,4,"Detalle","No","Texto"]
["Formato A3F2","A03F2","Potencia","E16",16,5,"Detalle","No","Número"]
["Formato A3F2","A03F2","Presión mínima entrada","F16",16,6,"Detalle","No","Número"]
["Formato A3F2","A03F2","Presión máxima salida","G16",16,7,"Detalle","No","Número"]
["Formato A3F2","A03F2","Número de etapas","H16",16,8,"Detalle","No","Número"]
["Formato A3F2","A03F2","Tipo de combustible que usa el compresor para operar ","I16",16,9,"Detalle","No","Texto"]
["Formato A3F2","A03F2","Consumo a plena carga [BTU/hora]","J16",16,10,"Detalle","No","Número"]
["Formato A3F2","A03F2","Consumo a plena carga [kWh]","K16",16,11,"Detalle","No","Número"]
["Formato A3F2","A03F2","Inversión total (a)","L16",16,12,"Detalle","No","Número"]
["Formato A3F2","A03F2","Costo de equipos (b)","M16",16,13,"Detalle","No","Número"]
["Formato A3F2","A03F2","Costo obra civil y mecánica (c) ","N16",16,14,"Detalle","No","Número"]
["Formato A3F2","A03F2","Costo de permisos temporales servidumbres (d)","O16",16,15,"Detalle","No","Número"]
["Formato A3F2","A03F2","Costo de inversión socio ambiental (e)","P16",16,16,"Detalle","No","Número"]
["Formato A3F3","A03F3","Nombre:","G5",5,7,"Maestro","Si","Texto"]
["Formato A3F3","A03F3","Tipo (a):","G6",6,7,"Maestro","Si","Texto"]
["Formato A3F3","A03F3","Días de ejecución (c):","G7",7,7,"Maestro","Si","Número",null,0]
["Formato A3F3","A03F3","Fecha de inicio:","G8",8,7,"Maestro","Si","Fecha"]
["Formato A3F3","A03F3","Fecha de finalización:","G9",9,7,"Maestro","Si","Fecha"]
["Formato A3F3","A03F3","Gasoducto troncal asociado:","G10",10,7,"Maestro","Si","ListaExterna",null,null,null,"Gasoductos[NOMBRE GASODUCTO TRONCAL]"]
["Formato A3F3","A03F3","Tipo de activo asociado:","G11",11,7,"Maestro","Si","ListaInterna",null,null,null,"TipoActivo[Nombre Tipo de Activo]"]
["Formato A3F3","A03F3","Nombre del activo asociado:","G12",12,7,"Maestro","Si","ListaExterna",null,null,null,"Activos[NOMBRE ACTIVO]"]
["Formato A3F3","A03F3","No. del segmento reportado al que se conecta:","G13",13,7,"Maestro","Si","Texto"]
["Formato A3F3","A03F3","Latitud (d):","Q7",7,17,"Maestro","No","Número",5]
["Formato A3F3","A03F3","Longitud (d):","Q9",9,17,"Maestro","No","Número",5]
["Formato A3F3","A03F3","Altura:","Q11",11,17,"Maestro","No","Número"]
["Formato A3F3","A03F3","Descripción del proyecto (b):","C16",16,3,"Maestro","Si","Texto"]
["Formato A3F3","A03F3","No.","B27",27,2,"Detalle","Si","Número"]
["Formato A3F3","A03F3","Año","C27",27,3,"Detalle","Si","Número"]
["Formato A3F3","A03F3","Otras actividades (e)","D27",27,4,"Detalle","Si","Número",null,0]
["Formato A3F3","A03F3","Costo de equipos (f)","F27",27,6,"Detalle","Si","Número",null,0]
["Formato A3F3","A03F3","Costo obra civil y mecánica (g)","H27",27,8,"Detalle","Si","Número",null,0]
["Formato A3F3","A03F3","Costo de permisos temporales servidumbres (h)","K27",27,11,"Detalle","Si","Número",null,0]
["Formato A3F3","A03F3","Costo de inversión socio ambiental (i)","P27",27,16,"Detalle","Si","Número",null,0]
["Formato A3F3","A03F3","Total","T27",27,20,"Detalle","Si","Número",null,0]
["Formato A4F1","A04F1","Tramo:","C3",3,3,"Maestro","Si","ListaExterna",null,null,null,"Activos[NOMBRE ACTIVO]"]
["Formato A4F1","A04F1","Año:","C4",4,3,"Maestro","Si","Número",null,0]
["Formato A4F1","A04F1","Fecha base:","C5",5,3,"Maestro","Si","Fecha",null,null,null,null,null,null,{"$f":"DATE(2021,12,31)","v":"2021-12-31"}]
["Formato A4F1","A04F1","Reconocido",{"$f":"ADDRESS(E228,F228,4)","v":"A9"},9,1,"Detalle","Si","Texto"]
["Formato A4F1","A04F1","Código concepto","B9",9,2,"Detalle","No","Texto"]
["Formato A4F1","A04F1","Concepto","C9",9,3,"Detalle","Si","Texto"]
["Formato A4F1","A04F1","Coordinación transporte","D9",9,4,"Detalle","No","Número",null,0]
["Formato A4F1","A04F1","Operación sistema","E9",9,5,"Detalle","No","Número",null,0]
["Formato A4F1","A04F1","Mantenimiento","F9",9,6,"Detalle","No","Número",null,0]
["Formato A4F1","A04F1","Manejo de recursos naturales y del ambiente","G9",9,7,"Detalle","No","Número",null,0]
["Formato A4F1","A04F1","Control de calidad del servicio","H9",9,8,"Detalle","No","Número",null,0]
["Formato A4F1","A04F1","Subtotal proceso operativo","I9",9,9,"Detalle","No","Número",null,0]
["Formato A4F1","A04F1","Mercadeo","J9",9,10,"Detalle","No","Número",null,0]
["Formato A4F1","A04F1","Gestión de gas","K9",9,11,"Detalle","No","Número",null,0]
["Formato A4F1","A04F1","Atención a clientes","L9",9,12,"Detalle","No","Número",null,0]
["Formato A4F1","A04F1","Facturación y recaudo","M9",9,13,"Detalle","No","Número",null,0]
["Formato A4F1","A04F1","Control comercial","N9",9,14,"Detalle","No","Número",null,0]
["Formato A4F1","A04F1","Subtotal proceso comercial","O9",9,15,"Detalle","No","Número",null,0]
["Formato A4F1","A04F1","Subtotal proceso estratégico y de soporte","P9",9,16,"Detalle","No","Número",null,0]
["Formato A4F1","A04F1","Total tramo","Q9",9,17,"Detalle","No","Número",null,0]
["Formato A4F1","A04F1","Gastos por concepto de compresión asociada al sistema de transporte","R9",9,18,"Detalle","No","Número",null,0]
["Formato A4F1","A04F1","Gastos por concepto de corridas con raspador inteligente","S9",9,19,"Detalle","No","Número",null,0]
["Formato A4F1","A04F1","Gastos asociados al lleno de línea","T9",9,20,"Detalle","No","Número",null,0]
["Formato A4F1","A04F1","Gastos asociados con otras actividades y otros agentes de la cadena de prestación del servicio","U9",9,21,"Detalle","No","Número",null,0]
["Formato A4F1","A04F1","Gastos asociados a activos de conexión al SNT","V9",9,22,"Detalle","No","Número",null,0]
["Formato A4F1","A04F1","Gastos asociados con la reposición de activos del tramo","W9",9,23,"Detalle","No","Número",null,0]
["Formato A4F1","A04F1","Erogaciones asociadas con los costos de la inversión en infraestructura","X9",9,24,"Detalle","No","Número",null,0]
["Formato A4F1","A04F1","Gastos de AOM asociados a puntos de entrada y salida","Y9",9,25,"Detalle","No","Número",null,0]
["Formato A4F1","A04F1","Gastos de AOM asociados a proyectos de IPAT","Z9",9,26,"Detalle","No","Número",null,0]
["Formato A4F1","A04F1","Gastos asociados al combustible utilizado para impulsar las estaciones","AA9",9,27,"Detalle","No","Número",null,0]
["Formato A4F1","A04F1","Gastos asociados con otras actividades y otros agentes de la cadena de prestación del servicio","AB9",9,28,"Detalle","No","Número",null,0]
["Formato A4F1","A04F1","Total gastos AOM otras actividades","AC9",9,29,"Detalle","No","Número",null,0]
["Formato A4F1","A04F1","Total gasto AOM transporte gas natural","AD9",9,30,"Detalle","No","Número",null,0]
["Formato A4F1","A04F1","Observaciones","AE9",9,31,"Detalle","No","Texto"]
["Formato A4F2","A04F2","Año","A3",3,1,"Detalle","Si","Número",null,0]
["Formato A4F2","A04F2","Departamento - Municipio - Centro Poblado","B3",3,2,"Detalle","Si","ListaExterna",null,null,null,"Divipola[Depto - Mun - CP]"]
["Formato A4F2","A04F2","Código Divipola","C3",3,3,"Detalle","Si","ListaExterna",null,null,null,"Divipola[Código CP]"]
["Formato A4F2","A04F2","Nombre del gasoducto","D3",3,4,"Detalle","Si","ListaExterna",null,null,null,"Gasoductos[NOMBRE GASODUCTO TRONCAL]"]
["Formato A4F2","A04F2","Tramo","E3",3,5,"Detalle","Si","ListaExterna",null,null,null,"Activos[NOMBRE ACTIVO]"]
["Formato A4F2","A04F2","Cédula Catastral","F3",3,6,"Detalle","Si","Texto"]
["Formato A4F2","A04F2","Área del terreno (M2 )","G3",3,7,"Detalle","Si","Número"]
["Formato A4F2","A04F2","Valor catastral","H3",3,8,"Detalle","Si","Número"]
["Formato A4F2","A04F2","%T","I3",3,9,"Detalle","Si","Número",null,0,1]
["Formato A4F2","A04F2","%OA","J3",3,10,"Detalle","Si","Número",null,0,1]
["Formato A4F2","A04F2","%Total","J3",3,10,"Detalle","Si","Número",null,0,1]
["Formato A4F3","A04F3","Nombre del gasoducto asociado al reporte:","D3",3,4,"Maestro","Si","ListaExterna",null,null,null,"Gasoductos[NOMBRE GASODUCTO TRONCAL]"]
["Formato A4F3","A04F3","Tipo de activo que se está reportando:","D4",4,4,"Maestro","Si","ListaInterna",null,null,null,"TipoActivo[Nombre Tipo de Activo]"]
["Formato A4F3","A04F3","Tramo:","D5",5,4,"Maestro","Si","ListaExterna",null,null,null,"Activos[NOMBRE ACTIVO]"]
["Formato A4F3","A04F3","Descripción","A7",7,1,"Detalle","Si","Texto"]
["Formato A4F3","A04F3","Año","B7",7,2,"Detalle","Si","Número",null,0]
["Formato A4F3","A04F3","Activos asociados al transporte","C7",7,3,"Detalle","Si","Número",null,0]
["Formato A4F3","A04F3","Activos asociados a otras actividades","D7",7,4,"Detalle","Si","Número",null,0]
["Formato A4F3","A04F3","Total activos","E7",7,5,"Detalle","Si","Número",null,0]
["Formato A4F4","A04F4","Descripción","A4",4,1,"Detalle","Si","Texto",null,null,null,null,5]
["Formato A4F4","A04F4","Fecha Activación","B4",4,2,"Detalle","Si","Fecha"]
["Formato A4F4","A04F4","Escritura Pública","C4",4,3,"Detalle","Si","Texto"]
["Formato A4F4","A04F4","Matrícula inmobiliaria","D4",4,4,"Detalle","Si","Texto"]
["Formato A4F4","A04F4","Departamento - Municipio - Centro Poblado","E4",4,5,"Detalle","Si","ListaExterna",null,null,null,"Divipola[Depto - Mun - CP]"]
["Formato A4F4","A04F4","Código Divipola","F4",4,6,"Detalle","Si","ListaExterna",null,null,null,"Divipola[Código CP]"]
["Formato A4F4","A04F4","Tramo","G4",4,7,"Detalle","Si","ListaExterna",null,null,null,"Activos[NOMBRE ACTIVO]"]
["Formato A4F4","A04F4","Costo de Adquisición","H4",4,8,"Detalle","Si","Número",null,0]
["Formato A4F4","A04F4","Uso de la Servidumbre ","I4",4,9,"Detalle","Si","ListaInterna",null,null,null,"UsoServidumbre[Nombre Uso Servidumbre]"]
["Formato A4F4","A04F4","% Transporte","J4",4,10,"Detalle","Si","Número",null,0,1]
["Formato A4F4","A04F4","% Otros Negocios","K4",4,11,"Detalle","Si","Número",null,0,1]
["Formato A4F4","A04F4","% Total","L4",4,12,"Detalle","Si","Número",null,0,1]
["Formato A5F1","A05F1","Tramo:","F5",5,6,"Maestro","Si","ListaExterna",null,null,null,"Activos[NOMBRE ACTIVO]"]
["Formato A5F1","A05F1","Presión en cada punto de recibo:","F6",6,6,"Maestro","Si","Número",null,0]
["Formato A5F1","A05F1","temperatura punto de recibo:","F7",7,6,"Maestro","Si","Número",null,0]
["Formato A5F1","A05F1","longitud:","F8",8,6,"Maestro","Si","Texto"]
["Formato A5F1","A05F1","Diámetro:","F9",9,6,"Maestro","Si","Texto"]
["Formato A5F1","A05F1","Espesor:","F10",10,6,"Maestro","Si","Texto"]
["Formato A5F1","A05F1","Rugosidad (inicio vida útil):","F11",11,6,"Maestro","Si","Texto"]
["Formato A5F1","A05F1","Eficiencia ducto (1):","F12",12,6,"Maestro","Si","Texto"]
["Formato A5F1","A05F1","temperatura punto de entrega:","F13",13,6,"Maestro","Si","Texto"]
["Formato A5F1Aux","A05F1Aux","Agente","D15",15,4,"Maestro","Si","ListaExterna",null,null,null,"Agente[Agente]"]
["Formato A5F1Aux","A05F1Aux","Tramo","D16",16,4,"Maestro","Si","ListaExterna",null,null,null,"Activos[NOMBRE ACTIVO]"]
["Formato A5F1Aux","A05F1Aux","Sistema:",{"$f":"ADDRESS(E301,F301,4)","v":"D17"},17,4,"Maestro","Si","Texto"]
["Formato A5F1Aux","A05F1Aux","CMMP sin IAC:","D18",18,4,"Maestro","Si","Número",null,0]
["Formato A5F1Aux","A05F1Aux","CMMP con IAC:","D19",19,4,"Maestro","Si","Número",null,0]
["Formato A5F1Aux","A05F1Aux","Nombre del Archivo PDF Memoría Técnica (e):","D20",20,4,"Maestro","Si","Texto"]
["Formato A5F1Aux","A05F1Aux","Nombre del Archivo con simulación (f):","D21",21,4,"Maestro","Si","Texto"]
["Formato A5F1Aux","A05F1Aux","Observaciones:","D22",22,4,"Maestro","Si","Texto"]
["Formato A5F1Aux","A05F1Aux","Item","A28",28,1,"Detalle","Si","Número",null,0]
["Formato A5F1Aux","A05F1Aux","Nombre","B28",28,2,"Detalle","No","Texto"]
["Formato A5F1Aux","A05F1Aux","Presión","C28",28,3,"Detalle","No","Número",null,0]
["Formato A5F1Aux","A05F1Aux","Temperatura","D28",28,4,"Detalle","No","Número",null,0]
["Formato A5F1Aux","A05F1Aux","Longitud (m)","E28",28,5,"Detalle","No","Número",null,0]
["Formato A5F1Aux","A05F1Aux","Diámetro (Pulg)","F28",28,6,"Detalle","No","Número",null,0]
["Formato A5F1Aux","A05F1Aux","Espesor (Pulg)","G28",28,7,"Detalle","No","Número",null,0]
["Formato A5F1Aux","A05F1Aux","Rugosidad (inicio vida útil) (Pulg)","H28",28,8,"Detalle","No","Número",null,0]
["Formato A5F1Aux","A05F1Aux","Eficiencia Ducto (d)","I28",28,9,"Detalle","No","Número",null,0]
["Formato A5F1Aux","A05F1Aux","Nombre","J28",28,10,"Detalle","No","Texto"]
["Formato A5F1Aux","A05F1Aux","Presión","K28",28,11,"Detalle","No","Número",null,0]
["Formato A5F1Aux","A05F1Aux","Temperatura","L28",28,12,"Detalle","No","Número",null,0]
["Formato A5F2","A05F2","Punto de Recibo","C7",7,3,"Detalle","Si","Texto"]
["Formato A5F2","A05F2","Metano","D7",7,4,"Detalle","Si","Número",null,0]
["Formato A5F2","A05F2","Nitrógeno","E7",7,5,"Detalle","Si","Número",null,0]
["Formato A5F2","A05F2","Dióxido de Carbono","F7",7,6,"Detalle","Si","Número",null,0]
["Formato A5F2","A05F2","Etano","G7",7,7,"Detalle","Si","Número",null,0]
["Formato A5F2","A05F2","Propano","H7",7,8,"Detalle","Si","Número",null,0]
["Formato A5F2","A05F2","Agua","I7",7,9,"Detalle","Si","Número",null,0]
["Formato A5F2","A05F2","Sulfuro de Hidrógeno","J7",7,10,"Detalle","Si","Número",null,0]
["Formato A5F2","A05F2","Hidrógeno","K7",7,11,"Detalle","Si","Número",null,0]
["Formato A5F2","A05F2","Monóxido de Carbono","L7",7,12,"Detalle","Si","Número",null,0]
["Formato A5F2","A05F2","Oxígeno","M7",7,13,"Detalle","Si","Número",null,0]
["Formato A5F2","A05F2","i-Butano","N7",7,14,"Detalle","Si","Número",null,0]
["Formato A5F2","A05F2","n-Butano","O7",7,15,"Detalle","Si","Número",null,0]
["Formato A5F2","A05F2","i-Pentano","P7",7,16,"Detalle","Si","Número",null,0]
["Formato A5F2","A05F2","n-Pentano","Q7",7,17,"Detalle","Si","Número",null,0]
["Formato A5F2","A05F2","n-Hexano","R7",7,18,"Detalle","Si","Número",null,0]
["Formato A5F2","A05F2","n-Heptano","S7",7,19,"Detalle","Si","Número",null,0]
["Formato A5F2","A05F2","n-Octano","T7",7,20,"Detalle","Si","Número",null,0]
["Formato A5F2","A05F2","n-Nonano","U7",7,21,"Detalle","Si","Número",null,0]
["Formato A5F2","A05F2","n-Decano","V7",7,22,"Detalle","Si","Número",null,0]
["Formato A5F2","A05F2","Helio","W7",7,23,"Detalle","Si","Número",null,0]
["Formato A5F2","A05F2","Argón","X7",7,24,"Detalle","Si","Número",null,0]
["Formato A5F2","A05F2","Total","Y7",7,25,"Detalle","Si","Número",null,0]
["Formato A5F3","A05F3","Punto de Entrega","C6",6,3,"Detalle","Si","Texto"]
["Formato A5F3","A05F3","00:00","D6",6,4,"Detalle","Si","Número"]
["Formato A5F3","A05F3","01:00","E6",6,5,"Detalle","Si","Número"]
["Formato A5F3","A05F3","02:00","F6",6,6,"Detalle","Si","Número"]
["Formato A5F3","A05F3","03:00","G6",6,7,"Detalle","Si","Número"]
["Formato A5F3","A05F3","04:00","H6",6,8,"Detalle","Si","Número"]
["Formato A5F3","A05F3","05:00","I6",6,9,"Detalle","Si","Número"]
["Formato A5F3","A05F3","06:00","J6",6,10,"Detalle","Si","Número"]
["Formato A5F3","A05F3","07:00","K6",6,11,"Detalle","Si","Número"]
["Formato A5F3","A05F3","08:00","L6",6,12,"Detalle","Si","Número"]
["Formato A5F3","A05F3","09:00","M6",6,13,"Detalle","Si","Número"]
["Formato A5F3","A05F3","10:00","N6",6,14,"Detalle","Si","Número"]
["Formato A5F3","A05F3","11:00","O6",6,15,"Detalle","Si","Número"]
["Formato A5F3","A05F3","12:00","P6",6,16,"Detalle","Si","Número"]
["Formato A5F3","A05F3","13:00","Q6",6,17,"Detalle","Si","Número"]
["Formato A5F3","A05F3","14:00","R6",6,18,"Detalle","Si","Número"]
["Formato A5F3","A05F3","15:00","S6",6,19,"Detalle","Si","Número"]
["Formato A5F3","A05F3","16:00","T6",6,20,"Detalle","Si","Número"]
["Formato A5F3","A05F3","17:00","U6",6,21,"Detalle","Si","Número"]
["Formato A5F3","A05F3","18:00","V6",6,22,"Detalle","Si","Número"]
["Formato A5F3","A05F3","19:00","W6",6,23,"Detalle","Si","Número"]
["Formato A5F3","A05F3","20:00","X6",6,24,"Detalle","Si","Número"]
["Formato A5F3","A05F3","21:00","Y6",6,25,"Detalle","Si","Número"]
["Formato A5F3","A05F3","22:00","Z6",6,26,"Detalle","Si","Número"]
["Formato A5F3","A05F3","23:00","AA6",6,27,"Detalle","Si","Número"]
["Formato A6F1","A06F1","Tramo o grupo de gasoductos:","E5",5,5,"Maestro","Si","ListaExterna",null,null,null,"Activos[NOMBRE ACTIVO]"]
["Formato A6F1","A06F1","Componente","C7",7,3,"Detalle","Si","Texto"]
["Formato A6F1","A06F1","Nombre","D7",7,4,"Detalle","Si","Texto"]
["Formato A6F1","A06F1","Año de entrada en operación ","E7",7,5,"Detalle","Si","Texto"]
["Formato A6F1","A06F1","Clasificación de variables [3]","F7",7,6,"Detalle","Si","Texto"]
["Formato A6F1","A06F1","Inversión (Pesos de la fecha base)","G7",7,7,"Detalle","Si","Número",null,0]
["Formato A6F1","A06F1","Diámetro (pulg.)","H7",7,8,"Detalle","No","Texto"]
["Formato A6F1","A06F1","Longitud (km.)","I7",7,9,"Detalle","No","Número"]
["Formato A6F1","A06F1","Potencia instalada (HP) ","J7",7,10,"Detalle","No","Número"]
["Formato A6F2","A06F2","Tramo o grupo de gasoductos:","E5",5,5,"Maestro","Si","ListaExterna",null,null,null,"Activos[NOMBRE ACTIVO]"]
["Formato A6F2","A06F2","Componente","C7",7,3,"Detalle","Si","Texto"]
["Formato A6F2","A06F2","Nombre","D7",7,4,"Detalle","Si","Texto"]
["Formato A6F2","A06F2","Año de entrada en operación ","E7",7,5,"Detalle","Si","Texto"]
["Formato A6F2","A06F2","Clasificación de variables [3]","F7",7,6,"Detalle","Si","Texto"]
["Formato A6F2","A06F2","Inversión (Pesos de la fecha base)","G7",7,7,"Detalle","Si","Número",null,0]
["Formato A6F2","A06F2","Diámetro (pulg.)","H7",7,8,"Detalle","No","Texto"]
["Formato A6F2","A06F2","Longitud (km.)","I7",7,9,"Detalle","No","Número"]
["Formato A6F2","A06F2","Potencia instalada (HP) ","J7",7,10,"Detalle","No","Número"]
["Formato A6F3","A06F3","Tramo o grupo de gasoductos:","E5",5,5,"Maestro","Si","ListaExterna",null,null,null,"Activos[NOMBRE ACTIVO]"]
["Formato A6F3","A06F3","Año 1","H8",8,8,"Maestro","Si","Número",null,0]
["Formato A6F3","A06F3","Año 2","I8",8,9,"Maestro","No","Número",null,0]
["Formato A6F3","A06F3","Año 3","J8",8,10,"Maestro","No","Número",null,0]
["Formato A6F3","A06F3","Año 4","K8",8,11,"Maestro","No","Número",null,0]
["Formato A6F3","A06F3","Año 5","L8",8,12,"Maestro","No","Número",null,0]
["Formato A6F3","A06F3","No.","C9",9,3,"Detalle","No","Número",null,1]
["Formato A6F3","A06F3","Nombre Proyecto [1]","D9",9,4,"Detalle","Si","Texto"]
["Formato A6F3","A06F3","Año de entrada en operación","E9",9,5,"Detalle","Si","Número",null,0]
["Formato A6F3","A06F3","Longitud (m)","F9",9,6,"Detalle","No","Número"]
["Formato A6F3","A06F3","Diámetro (pulg)","G9",9,7,"Detalle","No","Número"]
["Formato A6F3","A06F3","Inversión Año 1","H9",9,8,"Detalle","No","Número",null,0]
["Formato A6F3","A06F3","Inversión Año 2","I9",9,9,"Detalle","No","Número",null,0]
["Formato A6F3","A06F3","Inversión Año 3","J9",9,10,"Detalle","No","Número",null,0]
["Formato A6F3","A06F3","Inversión Año 4","K9",9,11,"Detalle","No","Número",null,0]
["Formato A6F3","A06F3","Inversión Año 5","L9",9,12,"Detalle","No","Número",null,0]
["Formato A6F3","A06F3","Descripción del proyecto","M9",9,13,"Detalle","No","Texto"]
["Formato A6F4","A06F4","Tramo o grupo de gasoductos:","E5",5,5,"Maestro","Si","ListaExterna",null,null,null,"Activos[NOMBRE ACTIVO]"]
["Formato A6F4","A06F4","Año 1","I8",8,9,"Maestro","Si","Número",null,0]
["Formato A6F4","A06F4","Año 2","J8",8,10,"Maestro","No","Número",null,0]
["Formato A6F4","A06F4","Año 3","K8",8,11,"Maestro","No","Número",null,0]
["Formato A6F4","A06F4","Año 4","L8",8,12,"Maestro","No","Número",null,0]
["Formato A6F4","A06F4","Año 5","M8",8,13,"Maestro","No","Número",null,0]
["Formato A6F4","A06F4","Componente","C9",9,3,"Detalle","Si","Texto"]
["Formato A6F4","A06F4","Nombre","D9",9,4,"Detalle","Si","Texto"]
["Formato A6F4","A06F4","Mes y año de entrada en operación","E9",9,5,"Detalle","Si","Fecha"]
["Formato A6F4","A06F4","Longitud (m)","F9",9,6,"Detalle","No","Número",null,0]
["Formato A6F4","A06F4","Diámetro (pulg)","G9",9,7,"Detalle","No","Número",null,0]
["Formato A6F4","A06F4","Potencia instalada (HP)","H9",9,8,"Detalle","No","Número",null,0]
["Formato A6F4","A06F4","Inversión Año 1","I9",9,9,"Detalle","No","Número",null,0]
["Formato A6F4","A06F4","Inversión Año 2","J9",9,10,"Detalle","No","Número",null,0]
["Formato A6F4","A06F4","Inversión Año 3","K9",9,11,"Detalle","No","Número",null,0]
["Formato A6F4","A06F4","Inversión Año 4","L9",9,12,"Detalle","No","Número",null,0]
["Formato A6F4","A06F4","Inversión Año 5","M9",9,13,"Detalle","No","Número",null,0]
["Formato A6F4","A06F4","Descripción del proyecto","N9",9,14,"Detalle","No","Texto"]
["Formato A6F5","A06F5","Tramo o grupo de gasoductos:","E5",5,5,"Maestro","Si","ListaExterna",null,null,null,"Activos[NOMBRE ACTIVO]"]
["Formato A6F5","A06F5","Horizonte de proyección (VUN):","E6",6,5,"Maestro","Si","ListaInterna",null,null,null,"VUN[Tiempo VUN]"]
["Formato A6F5","A06F5","Fecha Base","E7",7,5,"Maestro","Si","Fecha",null,null,null,null,null,null,{"$f":"DATE(2021,12,31)","v":"2021-12-31"}]
["Formato A6F5","A06F5","Concepto","C9",9,3,"Detalle","Si","Texto"]
["Formato A6F5","A06F5","Año 1","E9",9,5,"Detalle","No","Número",null,0]
["Formato A6F5","A06F5","Año 2","F9",9,6,"Detalle","No","Número",null,0]
["Formato A6F5","A06F5","Año 3","G9",9,7,"Detalle","No","Número",null,0]
["Formato A6F5","A06F5","Año 4","H9",9,8,"Detalle","No","Número",null,0]
["Formato A6F5","A06F5","Año 5","I9",9,9,"Detalle","No","Número",null,0]
["Formato A6F5","A06F5","Año 6","J9",9,10,"Detalle","No","Número",null,0]
["Formato A6F5","A06F5","Año 7","K9",9,11,"Detalle","No","Número",null,0]
["Formato A6F5","A06F5","Año 8","L9",9,12,"Detalle","No","Número",null,0]
["Formato A6F5","A06F5","Año 9","M9",9,13,"Detalle","No","Número",null,0]
["Formato A6F5","A06F5","Año 10","N9",9,14,"Detalle","No","Número",null,0]
["Formato A6F5","A06F5","Año 11","O9",9,15,"Detalle","No","Número",null,0]
["Formato A6F5","A06F5","Año 12","P9",9,16,"Detalle","No","Número",null,0]
["Formato A6F5","A06F5","Año 13","Q9",9,17,"Detalle","No","Número",null,0]
["Formato A6F5","A06F5","Año 14","R9",9,18,"Detalle","No","Número",null,0]
["Formato A6F5","A06F5","Año 15","S9",9,19,"Detalle","No","Número",null,0]
["Formato A6F5","A06F5","Año 16","T9",9,20,"Detalle","No","Número",null,0]
["Formato A6F5","A06F5","Año 17","U9",9,21,"Detalle","No","Número",null,0]
["Formato A6F5","A06F5","Año 18","V9",9,22,"Detalle","No","Número",null,0]
["Formato A6F5","A06F5","Año 19","W9",9,23,"Detalle","No","Número",null,0]
["Formato A6F5","A06F5","Año 20","X9",9,24,"Detalle","No","Número",null,0]
["Formato A6F5","A06F5","Año 21","Y9",9,25,"Detalle","No","Número",null,0]
["Formato A6F5","A06F5","Año 22","Z9",9,26,"Detalle","No","Número",null,0]
["Formato A6F5","A06F5","Año 23","AA9",9,27,"Detalle","No","Número",null,0]
["Formato A6F5","A06F5","Año 24","AB9",9,28,"Detalle","No","Número",null,0]
["Formato A6F5","A06F5","Año 25","AC9",9,29,"Detalle","No","Número",null,0]
["Formato A6F5","A06F5","Año 26","AD9",9,30,"Detalle","No","Número",null,0]
["Formato A6F5","A06F5","Año 27","AE9",9,31,"Detalle","No","Número",null,0]
["Formato A6F5","A06F5","Año 28","AF9",9,32,"Detalle","No","Número",null,0]
["Formato A6F5","A06F5","Año 29","AG9",9,33,"Detalle","No","Número",null,0]
["Formato A6F5","A06F5","Año 30","AH9",9,34,"Detalle","No","Número",null,0]
["Formato A6F6","A06F6","Tramo o grupo de gasoductos: ","F5",5,6,"Maestro","Si","ListaExterna",null,null,null,"Activos[NOMBRE ACTIVO]"]
["Formato A6F6","A06F6","Horizonte de proyección (VUN): ","F6",6,6,"Maestro","Si","ListaInterna",null,null,null,"VUN[Tiempo VUN]"]
["Formato A6F6","A06F6","Año Base: ","F7",7,6,"Maestro","Si","Número",null,0]
["Formato A6F6","A06F6","Año b: ","F8",8,6,"Maestro","Si","Número",null,0]
["Formato A6F6","A06F6","Año e: ","F9",9,6,"Maestro","Si","Número",null,0]
["Formato A6F6","A06F6","Concepto","D13",13,4,"Detalle","Si","Texto"]
["Formato A6F6","A06F6","Año 1","E13",13,5,"Detalle","No","Número"]
["Formato A6F6","A06F6","Año 2","F13",13,6,"Detalle","No","Número"]
["Formato A6F6","A06F6","Año 3","G13",13,7,"Detalle","No","Número"]
["Formato A6F6","A06F6","Año 4","H13",13,8,"Detalle","No","Número"]
["Formato A6F6","A06F6","Año 5","I13",13,9,"Detalle","No","Número"]
["Formato A6F6","A06F6","Año 6","J13",13,10,"Detalle","No","Número"]
["Formato A6F6","A06F6","Año 7","K13",13,11,"Detalle","No","Número"]
["Formato A6F6","A06F6","Año 8","L13",13,12,"Detalle","No","Número"]
["Formato A6F6","A06F6","Año 9","M13",13,13,"Detalle","No","Número"]
["Formato A6F6","A06F6","Año 10","N13",13,14,"Detalle","No","Número"]
["Formato A6F6","A06F6","Año 11","O13",13,15,"Detalle","No","Número"]
["Formato A6F6","A06F6","Año 12","P13",13,16,"Detalle","No","Número"]
["Formato A6F6","A06F6","Año 13","Q13",13,17,"Detalle","No","Número"]
["Formato A6F6","A06F6","Año 14","R13",13,18,"Detalle","No","Número"]
["Formato A6F6","A06F6","Año 15","S13",13,19,"Detalle","No","Número"]
["Formato A6F6","A06F6","Año 16","T13",13,20,"Detalle","No","Número"]
["Formato A6F6","A06F6","Año 17","U13",13,21,"Detalle","No","Número"]
["Formato A6F6","A06F6","Año 18","V13",13,22,"Detalle","No","Número"]
["Formato A6F6","A06F6","Año 19","W13",13,23,"Detalle","No","Número"]
["Formato A6F6","A06F6","Año 20","X13",13,24,"Detalle","No","Número"]
["Formato A6F6","A06F6","Año 21","Y13",13,25,"Detalle","No","Número"]
["Formato A6F6","A06F6","Año 22","Z13",13,26,"Detalle","No","Número"]
["Formato A6F6","A06F6","Año 23","AA13",13,27,"Detalle","No","Número"]
["Formato A6F6","A06F6","Año 24","AB13",13,28,"Detalle","No","Número"]
["Formato A6F6","A06F6","Año 25","AC13",13,29,"Detalle","No","Número"]
["Formato A6F6","A06F6","Año 26","AD13",13,30,"Detalle","No","Número"]
["Formato A6F6","A06F6","Año 27","AE13",13,31,"Detalle","No","Número"]
["Formato A6F6","A06F6","Año 28","AF13",13,32,"Detalle","No","Número"]
["Formato A6F6","A06F6","Año 29","AG13",13,33,"Detalle","No","Número"]
["Formato A6F6","A06F6","Año 30","AH13",13,34,"Detalle","No","Número"]
["Formato A6F6","A06F6","Concepto","D32",32,4,"Detalle","Si","Texto"]
["Formato A6F6","A06F6","Año 1","E32",32,5,"Detalle","No","Número"]
["Formato A6F6","A06F6","Año 2","F32",32,6,"Detalle","No","Número"]
["Formato A6F6","A06F6","Año 3","G32",32,7,"Detalle","No","Número"]
["Formato A6F6","A06F6","Año 4","H32",32,8,"Detalle","No","Número"]
["Formato A6F6","A06F6","Año 5","I32",32,9,"Detalle","No","Número"]
["Formato A6F6","A06F6","Año 6","J32",32,10,"Detalle","No","Número"]
["Formato A6F6","A06F6","Año 7","K32",32,11,"Detalle","No","Número"]
["Formato A6F6","A06F6","Año 8","L32",32,12,"Detalle","No","Número"]
["Formato A6F6","A06F6","Año 9","M32",32,13,"Detalle","No","Número"]
["Formato A6F6","A06F6","Año 10","N32",32,14,"Detalle","No","Número"]
["Formato A6F6","A06F6","Año 11","O32",32,15,"Detalle","No","Número"]
["Formato A6F6","A06F6","Año 12","P32",32,16,"Detalle","No","Número"]
["Formato A6F6","A06F6","Año 13","Q32",32,17,"Detalle","No","Número"]
["Formato A6F6","A06F6","Año 14","R32",32,18,"Detalle","No","Número"]
["Formato A6F6","A06F6","Año 15","S32",32,19,"Detalle","No","Número"]
["Formato A6F6","A06F6","Año 16","T32",32,20,"Detalle","No","Número"]
["Formato A6F6","A06F6","Año 17","U32",32,21,"Detalle","No","Número"]
["Formato A6F6","A06F6","Año 18","V32",32,22,"Detalle","No","Número"]
["Formato A6F6","A06F6","Año 19","W32",32,23,"Detalle","No","Número"]
["Formato A6F6","A06F6","Año 20","X32",32,24,"Detalle","No","Número"]
["Formato A6F6","A06F6","Año 21","Y32",32,25,"Detalle","No","Número"]
["Formato A6F6","A06F6","Año 22","Z32",32,26,"Detalle","No","Número"]
["Formato A6F6","A06F6","Año 23","AA32",32,27,"Detalle","No","Número"]
["Formato A6F6","A06F6","Año 24","AB32",32,28,"Detalle","No","Número"]
["Formato A6F6","A06F6","Año 25","AC32",32,29,"Detalle","No","Número"]
["Formato A6F6","A06F6","Año 26","AD32",32,30,"Detalle","No","Número"]
["Formato A6F6","A06F6","Año 27","AE32",32,31,"Detalle","No","Número"]
["Formato A6F6","A06F6","Año 28","AF32",32,32,"Detalle","No","Número"]
["Formato A6F6","A06F6","Año 29","AG32",32,33,"Detalle","No","Número"]
["Formato A6F6","A06F6","Año 30","AH32",32,34,"Detalle","No","Número"]
["Formato A6F6","A06F6","Proyecto","D40",40,4,"Detalle","Si","Texto"]
["Formato A6F6","A06F6","Año 1","E40",40,5,"Detalle","No","Número"]
["Formato A6F6","A06F6","Año 2","F40",40,6,"Detalle","No","Número"]
["Formato A6F6","A06F6","Año 3","G40",40,7,"Detalle","No","Número"]
["Formato A6F6","A06F6","Año 4","H40",40,8,"Detalle","No","Número"]
["Formato A6F6","A06F6","Año 5","I40",40,9,"Detalle","No","Número"]
["Formato A6F6","A06F6","Año 6","J40",40,10,"Detalle","No","Número"]
["Formato A6F6","A06F6","Año 7","K40",40,11,"Detalle","No","Número"]
["Formato A6F6","A06F6","Año 8","L40",40,12,"Detalle","No","Número"]
["Formato A6F6","A06F6","Año 9","M40",40,13,"Detalle","No","Número"]
["Formato A6F6","A06F6","Año 10","N40",40,14,"Detalle","No","Número"]
["Formato A6F6","A06F6","Año 11","O40",40,15,"Detalle","No","Número"]
["Formato A6F6","A06F6","Año 12","P40",40,16,"Detalle","No","Número"]
["Formato A6F6","A06F6","Año 13","Q40",40,17,"Detalle","No","Número"]
["Formato A6F6","A06F6","Año 14","R40",40,18,"Detalle","No","Número"]
["Formato A6F6","A06F6","Año 15","S40",40,19,"Detalle","No","Número"]
["Formato A6F6","A06F6","Año 16","T40",40,20,"Detalle","No","Número"]
["Formato A6F6","A06F6","Año 17","U40",40,21,"Detalle","No","Número"]
["Formato A6F6","A06F6","Año 18","V40",40,22,"Detalle","No","Número"]
["Formato A6F6","A06F6","Año 19","W40",40,23,"Detalle","No","Número"]
["Formato A6F6","A06F6","Año 20","X40",40,24,"Detalle","No","Número"]
["Formato A6F6","A06F6","Año 21","Y40",40,25,"Detalle","No","Número"]
["Formato A6F6","A06F6","Año 22",{"$f":"ADDRESS(E543,F543,4)","v":"Z40"},40,26,"Detalle","No","Número"]
["Formato A6F6","A06F6","Año 23","AA40",40,27,"Detalle","No","Número"]
["Formato A6F6","A06F6","Año 24","AB40",40,28,"Detalle","No","Número"]
["Formato A6F6","A06F6","Año 25","AC40",40,29,"Detalle","No","Número"]
["Formato A6F6","A06F6","Año 26","AD40",40,30,"Detalle","No","Número"]
["Formato A6F6","A06F6","Año 27","AE40",40,31,"Detalle","No","Número"]
["Formato A6F6","A06F6","Año 28","AF40",40,32,"Detalle","No","Número"]
["Formato A6F6","A06F6","Año 29","AG40",40,33,"Detalle","No","Número"]
["Formato A6F6","A06F6","Año 30","AH40",40,34,"Detalle","No","Número"]
["Formato A6F6","A06F6","Proyecto","D69",69,4,"Detalle","Si","Texto"]
["Formato A6F6","A06F6","Año 1","E69",69,5,"Detalle","No","Número"]
["Formato A6F6","A06F6","Año 2","F69",69,6,"Detalle","No","Número"]
["Formato A6F6","A06F6","Año 3","G69",69,7,"Detalle","No","Número"]
["Formato A6F6","A06F6","Año 4","H69",69,8,"Detalle","No","Número"]
["Formato A6F6","A06F6","Año 5","I69",69,9,"Detalle","No","Número"]
["Formato A6F6","A06F6","Año 6","J69",69,10,"Detalle","No","Número"]
["Formato A6F6","A06F6","Año 7","K69",69,11,"Detalle","No","Número"]
["Formato A6F6","A06F6","Año 8","L69",69,12,"Detalle","No","Número"]
["Formato A6F6","A06F6","Año 9","M69",69,13,"Detalle","No","Número"]
["Formato A6F6","A06F6","Año 10","N69",69,14,"Detalle","No","Número"]
["Formato A6F6","A06F6","Año 11","O69",69,15,"Detalle","No","Número"]
["Formato A6F6","A06F6","Año 12","P69",69,16,"Detalle","No","Número"]
["Formato A6F6","A06F6","Año 13","Q69",69,17,"Detalle","No","Número"]
["Formato A6F6","A06F6","Año 14","R69",69,18,"Detalle","No","Número"]
["Formato A6F6","A06F6","Año 15","S69",69,19,"Detalle","No","Número"]
["Formato A6F6","A06F6","Año 16","T69",69,20,"Detalle","No","Número"]
["Formato A6F6","A06F6","Año 17","U69",69,21,"Detalle","No","Número"]
["Formato A6F6","A06F6","Año 18","V69",69,22,"Detalle","No","Número"]
["Formato A6F6","A06F6","Año 19","W69",69,23,"Detalle","No","Número"]
["Formato A6F6","A06F6","Año 20","X69",69,24,"Detalle","No","Número"]
["Formato A6F6","A06F6","Año 21","Y69",69,25,"Detalle","No","Número"]
["Formato A6F6","A06F6","Año 22","Z69",69,26,"Detalle","No","Número"]
["Formato A6F6","A06F6","Año 23","AA69",69,27,"Detalle","No","Número"]
["Formato A6F6","A06F6","Año 24","AB69",69,28,"Detalle","No","Número"]
["Formato A6F6","A06F6","Año 25","AC69",69,29,"Detalle","No","Número"]
["Formato A6F6","A06F6","Año 26","AD69",69,30,"Detalle","No","Número"]
["Formato A6F6","A06F6","Año 27","AE69",69,31,"Detalle","No","Número"]
["Formato A6F6","A06F6","Año 28","AF69",69,32,"Detalle","No","Número"]
["Formato A6F6","A06F6","Año 29","AG69",69,33,"Detalle","No","Número"]
["Formato A6F6","A06F6","Año 30","AH69",69,34,"Detalle","No","Número"]
["Formato A6F7","A06F7","Tramo o grupo de gasoductos:","E5",5,5,"Maestro","Si","ListaExterna",null,null,null,"Activos[NOMBRE ACTIVO]"]
["Formato A6F7","A06F7","Horizonte de proyección (VUN):","E6",6,5,"Maestro","Si","ListaInterna",null,null,null,"VUN[Tiempo VUN]"]
["Formato A6F7","A06F7","Concepto","C9",9,3,"Detalle","Si","Texto"]
["Formato A6F7","A06F7","Año 1","D9",9,4,"Detalle","No","Número",null,0]
["Formato A6F7","A06F7","Año 2","E9",9,5,"Detalle","No","Número",null,0]
["Formato A6F7","A06F7","Año 3","F9",9,6,"Detalle","No","Número",null,0]
["Formato A6F7","A06F7","Año 4","G9",9,7,"Detalle","No","Número",null,0]
["Formato A6F7","A06F7","Año 5","H9",9,8,"Detalle","No","Número",null,0]
["Formato A6F7","A06F7","Año 6","I9",9,9,"Detalle","No","Número",null,0]
["Formato A6F7","A06F7","Año 7","J9",9,10,"Detalle","No","Número",null,0]
["Formato A6F7","A06F7","Año 8","K9",9,11,"Detalle","No","Número",null,0]
["Formato A6F7","A06F7","Año 9","L9",9,12,"Detalle","No","Número",null,0]
["Formato A6F7","A06F7","Año 10","M9",9,13,"Detalle","No","Número",null,0]
["Formato A6F7","A06F7","Año 11","N9",9,14,"Detalle","No","Número",null,0]
["Formato A6F7","A06F7","Año 12","O9",9,15,"Detalle","No","Número",null,0]
["Formato A6F7","A06F7","Año 13","P9",9,16,"Detalle","No","Número",null,0]
["Formato A6F7","A06F7","Año 14","Q9",9,17,"Detalle","No","Número",null,0]
["Formato A6F7","A06F7","Año 15","R9",9,18,"Detalle","No","Número",null,0]
["Formato A6F7","A06F7","Año 16","S9",9,19,"Detalle","No","Número",null,0]
["Formato A6F7","A06F7","Año 17","T9",9,20,"Detalle","No","Número",null,0]
["Formato A6F7","A06F7","Año 18","U9",9,21,"Detalle","No","Número",null,0]
["Formato A6F7","A06F7","Año 19","V9",9,22,"Detalle","No","Número",null,0]
["Formato A6F7","A06F7","Año 20","W9",9,23,"Detalle","No","Número",null,0]
["Formato A6F7","A06F7","Año 21","X9",9,24,"Detalle","No","Número",null,0]
["Formato A6F7","A06F7","Año 22","Y9",9,25,"Detalle","No","Número",null,0]
["Formato A6F7","A06F7","Año 23","Z9",9,26,"Detalle","No","Número",null,0]
["Formato A6F7","A06F7","Año 24","AA9",9,27,"Detalle","No","Número",null,0]
["Formato A6F7","A06F7","Año 25","AB9",9,28,"Detalle","No","Número",null,0]
["Formato A6F7","A06F7","Año 26","AC9",9,29,"Detalle","No","Número",null,0]
["Formato A6F7","A06F7","Año 27","AD9",9,30,"Detalle","No","Número",null,0]
["Formato A6F7","A06F7","Año 28","AE9",9,31,"Detalle","No","Número",null,0]
["Formato A6F7","A06F7","Año 29","AF9",9,32,"Detalle","No","Número",null,0]
["Formato A6F7","A06F7","Año 30","AG9",9,33,"Detalle","No","Número",null,0]
["Formato A6F8","A06F8","Agente","B13",13,2,"Detalle","Si","Texto"]
["Formato A6F8","A06F8","Ruta","C13",13,3,"Detalle","Si","Texto"]
["Formato A6F8","A06F8","Nombre Archivo","D13",13,4,"Detalle","Si","Texto"]
["Formato A6F8","A06F8","Tipo Archivo","E13",13,5,"Detalle","Si","Texto"]
["Formato A6F8","A06F8","Tamaño Archivo","F13",13,6,"Detalle","Si","Texto"]
["Formato A6F8","A06F8","Radicado","G13",13,7,"Detalle","Si","Texto"]
["Formato A6F8","A06F8","Nombre Archivo Descargado","H13",13,8,"Detalle","No","Texto"]
["Formato A6F8","A06F8","Título Project","I13",13,9,"Detalle","No","Texto"]
["Formato A6F8","A06F8","Nombre Tarea EDT","J13",13,10,"Detalle","No","Texto"]
["Formato A6F8","A06F8","Fecha Fin","K13",13,11,"Detalle","No","Fecha"]
["Formato A6F8","A06F8","Nombre en PWA","L13",13,12,"Detalle","No","Texto"]
["Formato A6F8","A06F8","Proyectos Repetidos","M13",13,13,"Detalle","No","Texto"]
["Formato A6F8","A06F8","Aclaración proyectos Repetidos para identificar cual es el proyecto final","N13",13,14,"Detalle","No","Texto"]
["Formato A6F8","A06F8","Tramo Regulatorio","O13",13,15,"Detalle","Si","ListaExterna",null,null,null,"Activos[NOMBRE ACTIVO]"]
["Formato A6F8","A06F8","Nombre del proyecto declarado en el formato A02F3Aux solicitado previamente","P13",13,16,"Detalle","Si","Texto"]
["Formato A6F8","A06F8","Observación para incluir alguna consideración sobre el cronograma del proyecto","Q13",13,17,"Detalle","No","Texto"]
["Formato A6F8","A06F8","Variable","R13",13,18,"Detalle","Si","Texto"]
["Formato A8F1","A08F1","Nombre de la estación de compresión:","F5",5,6,"Maestro","Si","Texto"]
["Formato A8F1","A08F1","Capacidad de compresión:","F6",6,6,"Maestro","Si","Número",null,0]
["Formato A8F1","A08F1","Potencia total instalada:","F7",7,6,"Maestro","Si","Número",null,0]
["Formato A8F1","A08F1","Presión mínima entrada:","F8",8,6,"Maestro","Si","Número",null,0]
["Formato A8F1","A08F1","Presión máxima salida:","F9",9,6,"Maestro","Si","Número",null,0]
["Formato A8F1","A08F1","Tecnología:","F10",10,6,"Maestro","Si","ListaInterna",null,null,null,"Tecnologia[Tecnología]"]
["Formato A8F1","A08F1","Energía que usa el compresor para operar:","F11",11,6,"Maestro","Si","ListaInterna",null,null,null,"Energia_Uso[Energia Uso]"]
["Formato A8F1","A08F1","Fecha base:","F12",12,6,"Maestro","Si","Fecha",null,null,null,null,null,null,{"$f":"DATE(2021,12,31)","v":"2021-12-31"}]
["Formato A8F1","A08F1","Latitud:","K7",7,11,"Maestro","Si","Número",5]
["Formato A8F1","A08F1","Longitud:","K9",9,11,"Maestro","Si","Número",5]
["Formato A8F1","A08F1","Altura:",{"$f":"ADDRESS(E643,F643,4)","v":"K11"},11,11,"Maestro","Si","Número"]
["Formato A8F1","A08F1","No. Unidad","F16",16,6,"Detalle","Si","Texto"]
["Formato A8F1","A08F1","Año","G16",16,7,"Detalle","Si","Número",null,0]
["Formato A8F1","A08F1","Lubricantes","H16",16,8,"Detalle","Si","Número",null,0]
["Formato A8F1","A08F1","Mano de obra para operación y mantenimiento","I16",16,9,"Detalle","Si","Número",null,0]
["Formato A8F1","A08F1","Otros","J16",16,10,"Detalle","Si","Número",null,0]
["Formato A8F1","A08F1","Especificación otros","K16",16,11,"Detalle","Si","Texto"]
["Formato A9F1","A09F1","Nombre de la estación:","D7",7,4,"Maestro","Si","Texto"]
["Formato A9F1","A09F1","Nombre de gasoducto al que está conectada la estación:","D8",8,4,"Maestro","Si","ListaExterna",null,null,null,"Gasoductos[NOMBRE GASODUCTO TRONCAL]"]
["Formato A9F1","A09F1","Agente que está operando y manteniendo la ERPC:","D9",9,4,"Maestro","Si","Texto"]
["Formato A9F1","A09F1","Agente que asume responsabilidad de operación y mantenimiento de la ERPC:","D10",10,4,"Maestro","Si","Texto"]
["Formato A9F1","A09F1","Nombre de la ERPC:","D11",11,4,"Maestro","Si","Texto"]
["Formato A9F1","A09F1","Fecha de puesta en servicio:","D12",12,4,"Maestro","Si","Fecha"]
["Formato A9F1","A09F1","Fecha de finalización de vida útil normativa:","D13",13,4,"Maestro","Si","Fecha"]
["Formato A9F1","A09F1","Latitud:","J8",8,10,"Maestro","Si","Número",5]
["Formato A9F1","A09F1","Longitud:","J10",10,10,"Maestro","Si","Número",5]
["Formato A9F1","A09F1","Altura:","J12",12,10,"Maestro","Si","Número"]
["Formato A9F1","A09F1","Concepto","C18",18,3,"Detalle","No","Texto"]
["Formato A9F1","A09F1","Cantidad","D18",18,4,"Detalle","No","Número"]
["Formato A9F1","A09F1","Descripción de la documentación adjunta","E18",18,5,"Detalle","No","Texto"]
["Formato A9F1","A09F1","Concepto","H18",18,8,"Detalle","No","Texto"]
["Formato A9F1","A09F1","Valor ($)",{"$f":"ADDRESS(E664,F664,4)","v":"K18"},18,11,"Detalle","No","Número"]
["Formato A9F1Aux","A09F1Aux","No. Segmento","B19",19,2,"Detalle","Si","Número"]
["Formato A9F1Aux","A09F1Aux","Nombre Agente","C19",19,3,"Detalle","Si","Texto"]
["Formato A9F1Aux","A09F1Aux","Radicado","D19",19,4,"Detalle","Si","Texto"]
["Formato A9F1Aux","A09F1Aux","Nombre Estación","E19",19,5,"Detalle","Si","Texto"]
["Formato A9F1Aux","A09F1Aux","Nombre Gasoducto","F19",19,6,"Detalle","Si","Texto"]
["Formato A9F1Aux","A09F1Aux","Agente que Opera ERPC","G19",19,7,"Detalle","Si","Texto"]
["Formato A9F1Aux","A09F1Aux","Agente Responsable ERPC","H19",19,8,"Detalle","Si","Texto"]
["Formato A9F1Aux","A09F1Aux","Nombre ERPC","I19",19,9,"Detalle","Si","Texto"]
["Formato A9F1Aux","A09F1Aux","Fecha Puesta Servicio","J19",19,10,"Detalle","Si","Fecha"]
["Formato A9F1Aux","A09F1Aux","Fecha Final Vida Útil","K19",19,11,"Detalle","Si","Fecha"]
["Formato A9F1Aux","A09F1Aux","Latitud","L19",19,12,"Detalle","Si","Número",5]
["Formato A9F1Aux","A09F1Aux","Longitud","M19",19,13,"Detalle","Si","Número",5]
["Formato A9F1Aux","A09F1Aux","Altura","N19",19,14,"Detalle","Si","Número"]
["Formato A9F1Aux","A09F1Aux","Diagrama de tuberías e instrumentación:","O19",19,15,"Detalle","No","Texto"]
["Formato A9F1Aux","A09F1Aux","Descripción Documentación","P19",19,16,"Detalle","No","Texto"]
["Formato A9F1Aux","A09F1Aux","Filtros:","Q19",19,17,"Detalle","No","Número"]
["Formato A9F1Aux","A09F1Aux","Descripción Documentación2","R19",19,18,"Detalle","No","Texto"]
["Formato A9F1Aux","A09F1Aux","Válvulas:","S19",19,19,"Detalle","No","Número"]
["Formato A9F1Aux","A09F1Aux","Descripción Documentación3","T19",19,20,"Detalle","No","Texto"]
["Formato A9F1Aux","A09F1Aux","Presión mínima entrada (psig):","U19",19,21,"Detalle","No","Número"]
["Formato A9F1Aux","A09F1Aux","Descripción Documentación4","V19",19,22,"Detalle","No","Texto"]
["Formato A9F1Aux","A09F1Aux","Presión máxima salida (psig):","W19",19,23,"Detalle","No","Texto"]
["Formato A9F1Aux","A09F1Aux","Descripción Documentación5","X19",19,24,"Detalle","No","Texto"]
["Formato A9F1Aux","A09F1Aux","Capacidad PCH:","Y19",19,25,"Detalle","No","Número"]
["Formato A9F1Aux","A09F1Aux","Descripción Documentación6","Z19",19,26,"Detalle","No","Texto"]
["Formato A9F1Aux","A09F1Aux","Estación de medición:","AA19",19,27,"Detalle","No","Texto"]
["Formato A9F1Aux","A09F1Aux","Descripción Documentación7","AB19",19,28,"Detalle","No","Texto"]
["Formato A9F1Aux","A09F1Aux","Inversión total (a):","AC19",19,29,"Detalle","No","Número"]
["Formato A9F1Aux","A09F1Aux","Costo de equipos (b):","AD19",19,30,"Detalle","No","Número"]
["Formato A9F1Aux","A09F1Aux","Costo obra civil y mecánica (c):","AE19",19,31,"Detalle","No","Número"]
["Formato A9F1Aux","A09F1Aux","Costo de permisos temporales servidumbres (d):","AF19",19,32,"Detalle","No","Número"]
["Formato A9F1Aux","A09F1Aux","Costo de inversión socio ambiental (e):",{"$f":"ADDRESS(E696,F696,4)","v":"AG19"},19,33,"Detalle","No","Número"]
["Formato A9F1Aux","A09F1Aux","Código ERPC","AH19",19,34,"Detalle","No","Texto"]
["Formato A9F1Aux","A09F1Aux","Tipo ERPC","AI19",19,35,"Detalle","No","Texto"]
["Formato A9F1Aux","A09F1Aux","Diámetro Válvula  ESD","AJ19",19,36,"Detalle","No","Número"]
["Formato A9F1Aux","A09F1Aux","Cantidad de Válvulas ESD","AK19",19,37,"Detalle","No","Número"]
["Formato A9F1Aux","A09F1Aux","Tiene actuador la válvula ESD","AL19",19,38,"Detalle","No","Texto"]
["Formato A9F1Aux","A09F1Aux","Diámetro Skid - Filtro","AM19",19,39,"Detalle","No","Texto"]
["Formato A9F1Aux","A09F1Aux","Skid - Filtro cantidad","AN19",19,40,"Detalle","No","Número"]
["Formato A9F1Aux","A09F1Aux","Diámetro Skid - Separador","AO19",19,41,"Detalle","No","Texto"]
["Formato A9F1Aux","A09F1Aux","Skid - Calentador- BTU/HR","AP19",19,42,"Detalle","No","Texto"]
["Formato A9F1Aux","A09F1Aux","Skid - Regulación (std by)","AQ19",19,43,"Detalle","No","Texto"]
["Formato A9F1Aux","A09F1Aux","Skid - Medición (std by)","AR19",19,44,"Detalle","No","Texto"]
["Formato A9F1Aux","A09F1Aux","Tipo de medidor ( std by)","AS19",19,45,"Detalle","No","Texto"]
["Formato A9F1Aux","A09F1Aux","Rango de Medición Min (std By)","AT19",19,46,"Detalle","No","Texto"]
["Formato A9F1Aux","A09F1Aux","Rango de Medición Max (std By)","AU19",19,47,"Detalle","No","Texto"]
["Formato A9F1Aux","A09F1Aux","Clase de medidor ( std by)","AV19",19,48,"Detalle","No","Texto"]
["Formato A9F1Aux","A09F1Aux","Skid - Medición","AW19",19,49,"Detalle","No","Texto"]
["Formato A9F1Aux","A09F1Aux","Tipo de medidor","AX19",19,50,"Detalle","No","Texto"]
["Formato A9F1Aux","A09F1Aux","Rango de Medición Min","AY19",19,51,"Detalle","No","Texto"]
["Formato A9F1Aux","A09F1Aux","Rango de Medición Max","AZ19",19,52,"Detalle","No","Texto"]
["Formato A9F1Aux","A09F1Aux","Clase de medidor","BA19",19,53,"Detalle","No","Texto"]
["Formato A9F1Aux","A09F1Aux","Skid - Odorizador - GL","BB19",19,54,"Detalle","No","Texto"]
["Formato A9F1Aux","A09F1Aux","Equipo Control Calidad de Gas","BC19",19,55,"Detalle","No","Texto"]
["Formato A9F1Aux","A09F1Aux","Unidad paquete (válvula ESD con actuador filtro separador, calent. eléctrico, sistema de regulación, medición y odorización)","BD19",19,56,"Detalle","No","Texto"]
["Formato A9F1Aux","A09F1Aux","Tubería relacionada","BE19",19,57,"Detalle","No","Texto"]
["Formato A9F1Aux","A09F1Aux","Área de terreno requerido (mts2 )","BF19",19,58,"Detalle","No","Número"]
["Formato A9F1Aux","A09F1Aux","Válvula ESD\nNombre del archivo de registro fotográfico.","BG19",19,59,"Detalle","No","Texto"]
["Formato A9F1Aux","A09F1Aux","Skid - Filtro separador (std by)\nNombre del archivo de registro fotográfico.","BH19",19,60,"Detalle","No","Texto"]
["Formato A9F1Aux","A09F1Aux","Skid - separador (std by)\nNombre del archivo de registro fotográfico.","BI19",19,61,"Detalle","No","Texto"]
["Formato A9F1Aux","A09F1Aux","Skid - Calentador- BTU/HR\nNombre del archivo de registro fotográfico.","BJ19",19,62,"Detalle","No","Texto"]
["Formato A9F1Aux","A09F1Aux","Skid - Regulación (std by)\nNombre del archivo de registro fotográfico.","BK19",19,63,"Detalle","No","Texto"]
["Formato A9F1Aux","A09F1Aux","Skid - Medición (std by) \nNombre del archivo de registro fotográfico.","BL19",19,64,"Detalle","No","Texto"]
["Formato A9F1Aux","A09F1Aux","Skid - Medición\nNombre del archivo de registro fotográfico.",{"$f":"ADDRESS(E728,F728,4)","v":"BM19"},19,65,"Detalle","No","Texto"]
["Formato A9F1Aux","A09F1Aux","Skid - Odorizador - GL\nNombre del archivo de registro fotográfico.","BN19",19,66,"Detalle","No","Texto"]
["Formato A9F1Aux","A09F1Aux","Equipo Control Calidad de Gas\nNombre del archivo de registro fotográfico.","BO19",19,67,"Detalle","No","Texto"]
["Formato A9F1Aux","A09F1Aux","Unidad paquete (válvula ESD con actuador filtro separador, calent. eléctrico, sistema de regulación, medición y odorización)\nNombre del archivo de registro fotográfico.","BP19",19,68,"Detalle","No","Texto"]
["Formato A9F1Aux","A09F1Aux","Tubería relacionada\nNombre del archivo de registro fotográfico.","BQ19",19,69,"Detalle","No","Texto"]
["Formato A9F1Aux","A09F1Aux","Vista Panorámica EPRC\nNombre del archivo de registro fotográfico.","BR19",19,70,"Detalle","No","Texto"]
["Formato A9F1Aux","A09F1Aux","Diagrama P&ID ERPC nombre archivo PDF ","BS19",19,71,"Detalle","No","Texto"]
["Formato A9F1Aux","A09F1Aux","Observaciones o aclaraciones adicionales","BT19",19,72,"Detalle","No","Texto"]
["Formato A9F1Aux","A09F1Aux","Listado archivos complementarios separados por ;","BU19",19,73,"Detalle","No","Texto"]
["Formato A9F2","A09F2","Nombre Representante Legal Vigente:","E22",22,5,"Maestro","Si","Texto"]
["Formato A9F2","A09F2","CC Representante legal","E23",23,5,"Maestro","Si","Texto"]
["Formato A9F2","A09F2","Nombre del contador:","E24",24,5,"Maestro","Si","Texto"]
["Formato A9F2","A09F2","CC contador:","E25",25,5,"Maestro","Si","Texto"]
["Formato A9F2","A09F2","Tarjeta profesional Contador nro.:","E26",26,5,"Maestro","Si","Texto"]
["Formato A9F2","A09F2","Nombre Revisor Fiscal:","E27",27,5,"Maestro","Si","Texto"]
["Formato A9F2","A09F2","CC Revisor Fiscal:","E28",28,5,"Maestro","Si","Texto"]
["Formato A9F2","A09F2","Tarjeta profesional Revisor fiscal nro.:","E29",29,5,"Maestro","Si","Texto"]
["Formato A9F2","A09F2","Observaciones adicionales:","D39",39,4,"Maestro","No","Texto"]
["Formato A9F2","A09F2","No. ERPC","A46",46,1,"Detalle","No","Número"]
["Formato A9F2","A09F2","Nombre Agente","B46",46,2,"Detalle","No","Texto"]
["Formato A9F2","A09F2","Radicado","C46",46,3,"Detalle","No","Texto"]
["Formato A9F2","A09F2","Nombre EPC","D46",46,4,"Detalle","No","Texto"]
["Formato A9F2","A09F2","Nombre tramo gasoducto","E46",46,5,"Detalle","No","Texto"]
["Formato A9F2","A09F2","Agente que Opera ERPC","F46",46,6,"Detalle","No","Texto"]
["Formato A9F2","A09F2","Agente Responsable ERPC","G46",46,7,"Detalle","No","Texto"]
["Formato A9F2","A09F2","Va a reemplazar la estación completa ?","H46",46,8,"Detalle","No","ListaInterna",null,null,null,"Si_No[Accion]"]
["Formato A9F2","A09F2","va a cambiar de ubicación la nueva ERPC","I46",46,9,"Detalle","No","ListaInterna",null,null,null,"Si_No[Accion]"]
["Formato A9F2","A09F2","Latitud ","J46",46,10,"Detalle","No","Número",5]
["Formato A9F2","A09F2","Longitud",{"$f":"ADDRESS(E756,F756,4)","v":"K46"},46,11,"Detalle","No","Número",5]
["Formato A9F2","A09F2","Valor en libros  de la ERPCs COP 2021 (A)","L46",46,12,"Detalle","No","Número"]
["Formato A9F2","A09F2","Valor depreciación de la ERPCs COP 2021 (B)","M46",46,13,"Detalle","No","Número"]
["Formato A9F2","A09F2","Valor depreciado  (A-B) COP 2021 (B)","N46",46,14,"Detalle","No","Número"]
["Formato A9F2","A09F2","Fecha de activación","O46",46,15,"Detalle","No","Fecha"]
["Formato A9F2","A09F2","código del concepto contable","P46",46,16,"Detalle","No","Texto"]
["Formato A9F2","A09F2","nombre del concepto contable","Q46",46,17,"Detalle","No","Texto"]
["Formato A9F2","A09F2","listado de nombres de soportes separado por \";\" ejemplo: \"factura_medidor.pdf; \"factura_filtro.pdf;\"factura_ERPC_llave_en_mano.pdf","R46",46,18,"Detalle","No","Texto"]
["Formato A9F2","A09F2","No. Componente","A91",91,1,"Detalle","No","Número"]
["Formato A9F2","A09F2","Nombre EPC","B91",91,2,"Detalle","No","Texto"]
["Formato A9F2","A09F2","Nombre tramo gasoducto","C91",91,3,"Detalle","No","Texto"]
["Formato A9F2","A09F2","Fecha instalación de Equipo a reemplazar","D91",91,4,"Detalle","No","Fecha"]
["Formato A9F2","A09F2","Seleccione cuales componentes de la ERPC va a reemplazar","E91",91,5,"Detalle","No","ListaInterna",null,null,null,"Componente_ERPC[Componentes de la ERPC]"]
["Formato A9F2","A09F2","Otro componente","F91",91,6,"Detalle","No","Texto"]
["Formato A9F2","A09F2","Descripción otro componente","G91",91,7,"Detalle","No","Texto"]
["Formato A9F2","A09F2","Indique nombre del archivo del Certificado de mantenimiento","H91",91,8,"Detalle","No","Texto"]
["Formato A9F2","A09F2","Tipo de equipo existente","I91",91,9,"Detalle","No","Texto"]
["Formato A9F2","A09F2","Tipo de equipo de reemplazo","J91",91,10,"Detalle","No","Texto"]
["Formato A9F2","A09F2","Fecha de entrada en operación del equipo nuevo","K91",91,11,"Detalle","No","Fecha"]
["Formato A9F2","A09F2","Fotografía de equipo a reemplazar","L91",91,12,"Detalle","No","Texto"]
["Formato A9F2","A09F2","Observaciones o aclaraciones adicionales","M91",91,13,"Detalle","No","Texto"]
["Formato A9F2","A09F2","Listado archivos complementarios separados por ;","N91",91,14,"Detalle","No","Texto"]
["Formato A9F3","A09F3","Nombre Representante Legal Vigente:","F12",12,6,"Maestro","Si","Texto"]
["Formato A9F3","A09F3","CC Representante legal","F13",13,6,"Maestro","Si","Texto"]
["Formato A9F3","A09F3","Nombre del contador:","F14",14,6,"Maestro","Si","Texto"]
["Formato A9F3","A09F3","CC contador:","F15",15,6,"Maestro","Si","Texto"]
["Formato A9F3","A09F3","Tarjeta profesional Contador nro.:","F16",16,6,"Maestro","Si","Texto"]
["Formato A9F3","A09F3","Nombre Revisor Fiscal:","F17",17,6,"Maestro","Si","Texto"]
["Formato A9F3","A09F3","CC Revisor Fiscal:","F18",18,6,"Maestro","Si","Texto"]
["Formato A9F3","A09F3","Tarjeta profesional Revisor fiscal nro.:","F19",19,6,"Maestro","Si","Texto"]
["Formato A9F3","A09F3","Observaciones adicionales:",{"$f":"ADDRESS(E786,F786,4)","v":"E29"},29,5,"Maestro","No","Texto"]
["Formato A9F3","A09F3","Nombre:","G35",35,7,"Maestro","Si","Texto"]
["Formato A9F3","A09F3","Tipo (a):","G36",36,7,"Maestro","Si","Texto"]
["Formato A9F3","A09F3","Días de ejecución (c):","G37",37,7,"Maestro","Si","Número"]
["Formato A9F3","A09F3","Fecha de inicio:","G38",38,7,"Maestro","Si","Fecha"]
["Formato A9F3","A09F3","Fecha de finalización:","G39",39,7,"Maestro","Si","Fecha"]
["Formato A9F3","A09F3","Gasoducto troncal asociado:","G40",40,7,"Maestro","Si","ListaExterna",null,null,null,"Gasoductos[NOMBRE GASODUCTO TRONCAL]"]
["Formato A9F3","A09F3","Tipo de activo asociado:","G41",41,7,"Maestro","Si","ListaInterna",null,null,null,"TipoActivo[Nombre Tipo de Activo]"]
["Formato A9F3","A09F3","Nombre del activo asociado:","G42",42,7,"Maestro","Si","ListaExterna",null,null,null,"Activos[NOMBRE ACTIVO]"]
["Formato A9F3","A09F3","No. del segmento reportado al que se conecta:","G43",43,7,"Maestro","Si","Número"]
["Formato A9F3","A09F3","Latitud (d):","Q37",37,17,"Maestro","Si","Número",5]
["Formato A9F3","A09F3","Longitud (d):","Q39",39,17,"Maestro","Si","Número",5]
["Formato A9F3","A09F3","Altura:","Q41",41,17,"Maestro","Si","Número"]
["Formato A9F3","A09F3","Descripción del proyecto (b):","C46",46,3,"Maestro","Si","Texto"]
["Formato A9F3","A09F3","No.","B58",58,2,"Detalle","Si","Número"]
["Formato A9F3","A09F3","Año","C58",58,3,"Detalle","Si","Número"]
["Formato A9F3","A09F3","Otras actividades (e)","D58",58,4,"Detalle","Si","Número"]
["Formato A9F3","A09F3","Costo de equipos (f)","F58",58,6,"Detalle","Si","Número"]
["Formato A9F3","A09F3","Costo obra civil y mecánica (g)","H58",58,8,"Detalle","Si","Número"]
["Formato A9F3","A09F3","Costo de permisos temporales servidumbres (h)","K58",58,11,"Detalle","Si","Número"]
["Formato A9F3","A09F3","Costo de inversión socio ambiental (i)","P58",58,16,"Detalle","Si","Número"]
["Formato A9F3","A09F3","Total","T58",58,20,"Detalle","Si","Número"]
["Formato A9F3","A09F3","No.","B80",80,2,"Detalle","No","Número"]
["Formato A9F3","A09F3","Año","C80",80,3,"Detalle","No","Número"]
["Formato A9F3","A09F3","Tipo Inversión","D80",80,4,"Detalle","No","Texto"]
["Formato A9F3","A09F3","Archivo (sepárelos por ; )","F80",80,6,"Detalle","No","Texto"]
["Formato A9F3","A09F3","Descripción","H80",80,8,"Detalle","No","Texto"]
["Formato A10F1","A10F1","Nombre de la estación:","D7",7,4,"Maestro","Si","Texto"]
["Formato A10F1","A10F1","Nombre de gasoducto al que está conectada la estación:","D8",8,4,"Maestro","Si","ListaExterna",null,null,null,"Gasoductos[NOMBRE GASODUCTO TRONCAL]"]
["Formato A10F1","A10F1","Agente que está operando y manteniendo la ERPC:","D9",9,4,"Maestro","Si","Texto"]
["Formato A10F1","A10F1","Nombre de la ERPC:","D10",10,4,"Maestro","Si","Texto"]
["Formato A10F1","A10F1","Fecha de puesta en servicio:","D11",11,4,"Maestro","Si","Fecha"]
["Formato A10F1","A10F1","Fecha de finalización de vida útil normativa:","D12",12,4,"Maestro","Si","Fecha"]
["Formato A10F1","A10F1","Latitud:","J8",8,10,"Maestro","Si","Número",5]
["Formato A10F1","A10F1","Longitud:","J10",10,10,"Maestro","Si","Número",5]
["Formato A10F1","A10F1","Altura:","J12",12,10,"Maestro","Si","Número"]
["Formato A10F1","A10F1","Concepto","C17",17,3,"Detalle","No","Texto"]
["Formato A10F1","A10F1","Cantidad","D17",17,4,"Detalle","No","Número"]
["Formato A10F1","A10F1","Descripción de la documentación adjunta","E17",17,5,"Detalle","No","Texto"]
["Formato A10F1","A10F1","Concepto","H17",17,8,"Detalle","No","Texto"]
["Formato A10F1","A10F1","Valor ($)","K17",17,11,"Detalle","No","Número"]